Body name,Service Area,Dept,Expenses Type,Capital/Revenue,Detailed Expenses Type,Expense Code,Date,Transaction number,Amount,Supplier Name,Supplier ID
WANDSWORTH COUNCIL,CS,ADMINISTRATION,SERVICES,Revenue,LEGAL & COURT COSTS,100434600,24/11/2015,809629,666.40,Michelmores LLP,RG0000001
WANDSWORTH COUNCIL,CS,ADMINISTRATION,SERVICES,Revenue,LEGAL & COURT COSTS,100434600,24/11/2015,809629,75.00,Michelmores LLP,RG0000001
WANDSWORTH COUNCIL,CS,,SERVICES,Revenue,CONSULTANTS FEES,100534200,04/11/2015,790025,"8,726.25",G L HEARN LTD,SP0009602
WANDSWORTH COUNCIL,CS,,SERVICES,Revenue,CONSULTANTS FEES,100534200,03/11/2015,790048,"3,375.00",LAVAT CONSULTING LTD,SP0003311
WANDSWORTH COUNCIL,CS,,PRINTING STAT & GEN OFFICE EXP,Revenue,PRINTING REGISTRATION A FORM,103033440,05/11/2015,790681,"8,570.37",BANNER MANAGED COMMUNICATION,SP0003555
WANDSWORTH COUNCIL,CS,,PRINTING STAT & GEN OFFICE EXP,Revenue,PRINTING REGISTRATION A FORM,103033440,09/11/2015,791483,"2,287.65",BANNER MANAGED COMMUNICATION,SP0003555
WANDSWORTH COUNCIL,CS,,PRINTING STAT & GEN OFFICE EXP,Revenue,PRINTING REGISTRATION A FORM,103033440,27/11/2015,810318,"1,898.32",BANNER MANAGED COMMUNICATION,SP0003555
WANDSWORTH COUNCIL,CS,,PRINTING STAT & GEN OFFICE EXP,Revenue,PRINTING REGISTRATION A FORM,103033440,27/11/2015,810320,581.93,BANNER MANAGED COMMUNICATION,SP0003555
WANDSWORTH COUNCIL,CS,,COMMUNICATIONS & COMP,Revenue,COMMUNICATIONS - POSTAGE,103036000,12/11/2015,798066,"1,097.09",ROYAL MAIL,SP0001067
WANDSWORTH COUNCIL,CS,,COMMUNICATIONS & COMP,Revenue,COMMUNICATIONS - POSTAGE,103036000,12/11/2015,799453,"1,274.79",ROYAL MAIL,SP0001067
WANDSWORTH COUNCIL,CS,,COMMUNICATIONS & COMP,Revenue,COMMUNICATIONS - POSTAGE,103036000,18/11/2015,803429,"3,499.83",ROYAL MAIL,SP0001067
WANDSWORTH COUNCIL,CS,,COMMUNICATIONS & COMP,Revenue,COMMUNICATIONS - POSTAGE,103036000,25/11/2015,810078,"3,549.18",ROYAL MAIL,SP0001067
WANDSWORTH COUNCIL,CS,,COMMUNICATIONS & COMP,Revenue,I.T. DEVELOPMENTS,103036200,04/11/2015,790362,"5,974.87",THE ELECTORAL  REFORM SERVICE,SP0007459
WANDSWORTH COUNCIL,CS,,"REPAIRS, ALTERATIONS & MTCE",Revenue,"REPS, ALTS & MTCE-BUILDINGS",103110000,24/11/2015,810702,900.00,MR R BAKER,SP0001444
WANDSWORTH COUNCIL,CS,,"EQUIPMENT, FURNITURE & MATS",Revenue,FLOWERS,103130170,12/11/2015,799485,646.00,PATRICIA WONG,SP0002085
WANDSWORTH COUNCIL,CS,,MISC,Revenue,MISCELLANEOUS EXPENSES,103138500,04/11/2015,789044,732.00,OSBOND AND TUTT LTD,SP0010203
WANDSWORTH COUNCIL,PH,,HEALTH,Revenue,GP LES CONTRACTS,105041520,12/11/2015,797207,"4,547.00",BALHAM PARK SURGERY,SP0000925
WANDSWORTH COUNCIL,PH,,HEALTH,Revenue,GP LES CONTRACTS,105041520,11/11/2015,797209,"1,183.00",BATTERSEA RISE GROUP PRACTICE H85049,SP0007572
WANDSWORTH COUNCIL,PH,,HEALTH,Revenue,GP LES CONTRACTS,105041520,12/11/2015,797198,787.00,BRIDGE LANE GROUP PRACTICE,SP0000516
WANDSWORTH COUNCIL,PH,,HEALTH,Revenue,GP LES CONTRACTS,105041520,11/11/2015,797199,"2,042.00",BROCKLEBANK GROUP PRACTICE,SP0007967
WANDSWORTH COUNCIL,PH,,HEALTH,Revenue,GP LES CONTRACTS,105041520,11/11/2015,797200,"1,526.00",CHARTFIELD SURGERY Y01132,SP0008380
WANDSWORTH COUNCIL,PH,,HEALTH,Revenue,GP LES CONTRACTS,105041520,12/11/2015,797201,"1,145.00",CHATFIELD HEALTH CARE,SP0002903
WANDSWORTH COUNCIL,PH,,HEALTH,Revenue,GP LES CONTRACTS,105041520,11/11/2015,797145,40.00,DR K BEGG H85659,SP0007574
WANDSWORTH COUNCIL,PH,,HEALTH,Revenue,GP LES CONTRACTS,105041520,11/11/2015,797204,"1,248.00",ELBOROUGH STREET SURGERY H85057,SP0007971
WANDSWORTH COUNCIL,PH,,HEALTH,Revenue,GP LES CONTRACTS,105041520,12/11/2015,796682,"1,932.00",HEATHBRIDGE PRACTICE,SP0008179
WANDSWORTH COUNCIL,PH,,HEALTH,Revenue,GP LES CONTRACTS,105041520,12/11/2015,796755,"5,323.00",LAVENDER HILL GROUP PRACTICE H85069,SP0003344
WANDSWORTH COUNCIL,PH,,HEALTH,Revenue,GP LES CONTRACTS,105041520,12/11/2015,796756,"2,732.00",MAYFIELD SURGERY,SP0002209
WANDSWORTH COUNCIL,PH,,HEALTH,Revenue,GP LES CONTRACTS,105041520,12/11/2015,796758,"3,709.00",PUTNEYMEAD GROUP MEDICAL PRACTICE H85012,SP0006951
WANDSWORTH COUNCIL,PH,,HEALTH,Revenue,GP LES CONTRACTS,105041520,11/11/2015,796759,147.00,QUEENSTOWN ROAD MEDICAL PRACTICE H85003,SP0003591
WANDSWORTH COUNCIL,PH,,HEALTH,Revenue,GP LES CONTRACTS,105041520,11/11/2015,797040,981.00,ST PAULS COTTAGE PRACTICE,SP0007978
WANDSWORTH COUNCIL,PH,,HEALTH,Revenue,GP LES CONTRACTS,105041520,11/11/2015,796679,324.00,THE FALCON ROAD MEDICAL CENTRE H85002,SP0007953
WANDSWORTH COUNCIL,PH,,HEALTH,Revenue,GP LES CONTRACTS,105041520,11/11/2015,796680,360.00,THE GREYSWOOD PRACTICE,SP0006936
WANDSWORTH COUNCIL,PH,,HEALTH,Revenue,GP LES CONTRACTS,105041520,11/11/2015,796683,"3,113.00",THURLEIGH ROAD PRACTICE H85114,SP0003310
WANDSWORTH COUNCIL,PH,,HEALTH,Revenue,GP LES CONTRACTS,105041520,12/11/2015,796688,762.00,TUDOR LODGE HEALTH CENTRE H85682,SP0008309
WANDSWORTH COUNCIL,PH,,HEALTH,Revenue,GP LES CONTRACTS,105041520,11/11/2015,796689,"2,774.00",WANDSWORTH MEDICAL CENTRE,SP0007088
WANDSWORTH COUNCIL,PH,,HEALTH,Revenue,EMERG HORMONAL CONTRACEPTION,105041670,17/11/2015,801786,69.00,ABC DRUGSTORE FH098,SP0005023
WANDSWORTH COUNCIL,PH,,HEALTH,Revenue,EMERG HORMONAL CONTRACEPTION,105041670,17/11/2015,801789,437.00,ABC PHARMACY FGT10,SP0008446
WANDSWORTH COUNCIL,PH,,HEALTH,Revenue,EMERG HORMONAL CONTRACEPTION,105041670,17/11/2015,801807,782.00,AMICHEM LIMITED FNQ61 T/A KRYSTAL PHARMA,SP0008457
WANDSWORTH COUNCIL,PH,,HEALTH,Revenue,EMERG HORMONAL CONTRACEPTION,105041670,17/11/2015,802240,"1,012.00",AMICHEM LTD,SP0005013
WANDSWORTH COUNCIL,PH,,HEALTH,Revenue,EMERG HORMONAL CONTRACEPTION,105041670,17/11/2015,801813,644.00,BESTWAY NATIONAL CHEMIST LTD T/A WEL PHA,SP0009458
WANDSWORTH COUNCIL,PH,,HEALTH,Revenue,EMERG HORMONAL CONTRACEPTION,105041670,17/11/2015,801702,"1,311.00",BOOTS THE CHEMISTS LTD,SP0006952
WANDSWORTH COUNCIL,PH,,HEALTH,Revenue,EMERG HORMONAL CONTRACEPTION,105041670,16/11/2015,801771,"1,334.00",BOOTS UK LTD FD303,SP0008385
WANDSWORTH COUNCIL,PH,,HEALTH,Revenue,EMERG HORMONAL CONTRACEPTION,105041670,16/11/2015,801773,"2,369.00",BOOTS UK LTD FKP46 T/A BOOTS THE CHEMIST,SP0008388
WANDSWORTH COUNCIL,PH,,HEALTH,Revenue,EMERG HORMONAL CONTRACEPTION,105041670,16/11/2015,801701,"5,819.00",BOOTS UK LTD FR560,SP0008387
WANDSWORTH COUNCIL,PH,,HEALTH,Revenue,EMERG HORMONAL CONTRACEPTION,105041670,17/11/2015,801776,"3,703.00",BOOTS UK LTD FVK09 T/A BOOTS THE CHEMIST,SP0008393
WANDSWORTH COUNCIL,PH,,HEALTH,Revenue,EMERG HORMONAL CONTRACEPTION,105041670,17/11/2015,802228,"4,186.00",BOOTS UK LTD FYN24 T/A BOOTS THE CHEMIST,SP0008391
WANDSWORTH COUNCIL,PH,,HEALTH,Revenue,EMERG HORMONAL CONTRACEPTION,105041670,17/11/2015,801526,345.00,DAY LEWIS PLC,SP0007580
WANDSWORTH COUNCIL,PH,,HEALTH,Revenue,EMERG HORMONAL CONTRACEPTION,105041670,16/11/2015,801804,23.00,HEALTHCHEM LTD,SP0007576
WANDSWORTH COUNCIL,PH,,HEALTH,Revenue,EMERG HORMONAL CONTRACEPTION,105041670,17/11/2015,802248,690.00,JOTOSHOURNE LTD FR323 T/A BARRONS CHEMIS,SP0008416
WANDSWORTH COUNCIL,PH,,HEALTH,Revenue,EMERG HORMONAL CONTRACEPTION,105041670,16/11/2015,801803,391.00,KDS MEDICARE LTD,SP0005016
WANDSWORTH COUNCIL,PH,,HEALTH,Revenue,EMERG HORMONAL CONTRACEPTION,105041670,16/11/2015,801811,161.00,MARKRISE PHARMACY,SP0006464
WANDSWORTH COUNCIL,PH,,HEALTH,Revenue,EMERG HORMONAL CONTRACEPTION,105041670,16/11/2015,801785,506.00,MEDIPHARMACY LIMITED FY644 T/A COOKS PH,SP0008377
WANDSWORTH COUNCIL,PH,,HEALTH,Revenue,EMERG HORMONAL CONTRACEPTION,105041670,17/11/2015,802271,184.00,NSK LTD,SP0007000
WANDSWORTH COUNCIL,PH,,HEALTH,Revenue,EMERG HORMONAL CONTRACEPTION,105041670,16/11/2015,801817,"1,311.00",PEARL CHEMIST LTD,SP0004997
WANDSWORTH COUNCIL,PH,,HEALTH,Revenue,EMERG HORMONAL CONTRACEPTION,105041670,17/11/2015,801808,"1,104.00",PEARL CHEMIST LTD FDV93 T/A LORDS PHARMA,SP0008419
WANDSWORTH COUNCIL,PH,,HEALTH,Revenue,EMERG HORMONAL CONTRACEPTION,105041670,16/11/2015,801530,414.00,PEARL CHEMIST LTD FHL06 T/A AUCKLAND ROG,SP0008417
WANDSWORTH COUNCIL,PH,,HEALTH,Revenue,EMERG HORMONAL CONTRACEPTION,105041670,17/11/2015,801809,276.00,POLYPHARM LTD FNG23,SP0005011
WANDSWORTH COUNCIL,PH,,HEALTH,Revenue,EMERG HORMONAL CONTRACEPTION,105041670,16/11/2015,801805,506.00,QUIZCHOICE LTD FCL10,SP0007577
WANDSWORTH COUNCIL,PH,,HEALTH,Revenue,EMERG HORMONAL CONTRACEPTION,105041670,17/11/2015,802270,46.00,SAAJ LTD,SP0005001
WANDSWORTH COUNCIL,PH,,HEALTH,Revenue,EMERG HORMONAL CONTRACEPTION,105041670,16/11/2015,801791,897.00,SALASJI LTD FG443 T/A DUMLERS PHARMACY,SP0005003
WANDSWORTH COUNCIL,PH,,HEALTH,Revenue,EMERG HORMONAL CONTRACEPTION,105041670,17/11/2015,801779,299.00,TINDACOL LTD T/A CARE CHEMISTS FW023,SP0008146
WANDSWORTH COUNCIL,PH,,HEALTH,Revenue,EMERG HORMONAL CONTRACEPTION,105041670,17/11/2015,802241,"1,173.00",WANDSWORTH PHARMACY FGJ32,SP0004998
WANDSWORTH COUNCIL,PH,,HEALTH,Revenue,EMERG HORMONAL CONTRACEPTION,105041670,16/11/2015,802227,"1,288.00",WRICKLEMARSH LTD FVM91,SP0008378
WANDSWORTH COUNCIL,PH,,HEALTH,Revenue,GP CHLAMYDIA SCREENING LES,105141540,12/11/2015,797207,210.00,BALHAM PARK SURGERY,SP0000925
WANDSWORTH COUNCIL,PH,,HEALTH,Revenue,GP CHLAMYDIA SCREENING LES,105141540,11/11/2015,797209,70.00,BATTERSEA RISE GROUP PRACTICE H85049,SP0007572
WANDSWORTH COUNCIL,PH,,HEALTH,Revenue,GP CHLAMYDIA SCREENING LES,105141540,11/11/2015,797144,490.00,BEDFORD HILL FAMILY PRACTICE H85009,SP0002543
WANDSWORTH COUNCIL,PH,,HEALTH,Revenue,GP CHLAMYDIA SCREENING LES,105141540,17/11/2015,800491,20.00,BOLINGBROKE MEDICAL CENTRE H85077,SP0008282
WANDSWORTH COUNCIL,PH,,HEALTH,Revenue,GP CHLAMYDIA SCREENING LES,105141540,12/11/2015,797198,10.00,BRIDGE LANE GROUP PRACTICE,SP0000516
WANDSWORTH COUNCIL,PH,,HEALTH,Revenue,GP CHLAMYDIA SCREENING LES,105141540,11/11/2015,797199,40.00,BROCKLEBANK GROUP PRACTICE,SP0007967
WANDSWORTH COUNCIL,PH,,HEALTH,Revenue,GP CHLAMYDIA SCREENING LES,105141540,12/11/2015,797201,50.00,CHATFIELD HEALTH CARE,SP0002903
WANDSWORTH COUNCIL,PH,,HEALTH,Revenue,GP CHLAMYDIA SCREENING LES,105141540,11/11/2015,797202,210.00,CLAPHAM JUNCTION MEDICAL PRACTICE,SP0008135
WANDSWORTH COUNCIL,PH,,HEALTH,Revenue,GP CHLAMYDIA SCREENING LES,105141540,11/11/2015,797204,40.00,ELBOROUGH STREET SURGERY H85057,SP0007971
WANDSWORTH COUNCIL,PH,,HEALTH,Revenue,GP CHLAMYDIA SCREENING LES,105141540,12/11/2015,796682,60.00,HEATHBRIDGE PRACTICE,SP0008179
WANDSWORTH COUNCIL,PH,,HEALTH,Revenue,GP CHLAMYDIA SCREENING LES,105141540,12/11/2015,796755,140.00,LAVENDER HILL GROUP PRACTICE H85069,SP0003344
WANDSWORTH COUNCIL,PH,,HEALTH,Revenue,GP CHLAMYDIA SCREENING LES,105141540,12/11/2015,796756,30.00,MAYFIELD SURGERY,SP0002209
WANDSWORTH COUNCIL,PH,,HEALTH,Revenue,GP CHLAMYDIA SCREENING LES,105141540,12/11/2015,796758,910.00,PUTNEYMEAD GROUP MEDICAL PRACTICE H85012,SP0006951
WANDSWORTH COUNCIL,PH,,HEALTH,Revenue,GP CHLAMYDIA SCREENING LES,105141540,11/11/2015,796759,180.00,QUEENSTOWN ROAD MEDICAL PRACTICE H85003,SP0003591
WANDSWORTH COUNCIL,PH,,HEALTH,Revenue,GP CHLAMYDIA SCREENING LES,105141540,11/11/2015,796761,50.00,SOUTHFIELDS GROUP PRACTICE H85007,SP0007583
WANDSWORTH COUNCIL,PH,,HEALTH,Revenue,GP CHLAMYDIA SCREENING LES,105141540,11/11/2015,797040,90.00,ST PAULS COTTAGE PRACTICE,SP0007978
WANDSWORTH COUNCIL,PH,,HEALTH,Revenue,GP CHLAMYDIA SCREENING LES,105141540,11/11/2015,797143,10.00,STREATHAM PARK SURGERY H85052,SP0008443
WANDSWORTH COUNCIL,PH,,HEALTH,Revenue,GP CHLAMYDIA SCREENING LES,105141540,11/11/2015,796679,350.00,THE FALCON ROAD MEDICAL CENTRE H85002,SP0007953
WANDSWORTH COUNCIL,PH,,HEALTH,Revenue,GP CHLAMYDIA SCREENING LES,105141540,11/11/2015,796680,10.00,THE GREYSWOOD PRACTICE,SP0006936
WANDSWORTH COUNCIL,PH,,HEALTH,Revenue,GP CHLAMYDIA SCREENING LES,105141540,11/11/2015,796681,220.00,THE HAIDER PRACTICE H85075,SP0008283
WANDSWORTH COUNCIL,PH,,HEALTH,Revenue,GP CHLAMYDIA SCREENING LES,105141540,11/11/2015,796757,540.00,THE OPEN DOOR SURGERY H85087,SP0008280
WANDSWORTH COUNCIL,PH,,HEALTH,Revenue,GP CHLAMYDIA SCREENING LES,105141540,11/11/2015,796683,60.00,THURLEIGH ROAD PRACTICE H85114,SP0003310
WANDSWORTH COUNCIL,PH,,HEALTH,Revenue,GP CHLAMYDIA SCREENING LES,105141540,11/11/2015,796684,370.00,TOOTING BEC SURGERY,SP0008284
WANDSWORTH COUNCIL,PH,,HEALTH,Revenue,GP CHLAMYDIA SCREENING LES,105141540,11/11/2015,796685,80.00,TOOTING SOUTH MEDICAL CENTRE,SP0007962
WANDSWORTH COUNCIL,PH,,HEALTH,Revenue,GP CHLAMYDIA SCREENING LES,105141540,11/11/2015,796686,10.00,TRIANGLE SURGERY,SP0008056
WANDSWORTH COUNCIL,PH,,HEALTH,Revenue,GP CHLAMYDIA SCREENING LES,105141540,12/11/2015,796688,30.00,TUDOR LODGE HEALTH CENTRE H85682,SP0008309
WANDSWORTH COUNCIL,PH,,HEALTH,Revenue,GP CHLAMYDIA SCREENING LES,105141540,11/11/2015,796689,270.00,WANDSWORTH MEDICAL CENTRE,SP0007088
WANDSWORTH COUNCIL,PH,,HEALTH,Revenue,HIV RAPID TESTING PILOT,105141710,11/11/2015,797144,595.00,BEDFORD HILL FAMILY PRACTICE H85009,SP0002543
WANDSWORTH COUNCIL,PH,,HEALTH,Revenue,HIV RAPID TESTING PILOT,105141710,17/11/2015,800491,5.00,BOLINGBROKE MEDICAL CENTRE H85077,SP0008282
WANDSWORTH COUNCIL,PH,,HEALTH,Revenue,HIV RAPID TESTING PILOT,105141710,11/11/2015,797199,195.00,BROCKLEBANK GROUP PRACTICE,SP0007967
WANDSWORTH COUNCIL,PH,,HEALTH,Revenue,HIV RAPID TESTING PILOT,105141710,12/11/2015,797201,20.00,CHATFIELD HEALTH CARE,SP0002903
WANDSWORTH COUNCIL,PH,,HEALTH,Revenue,HIV RAPID TESTING PILOT,105141710,11/11/2015,797145,15.00,DR K BEGG H85659,SP0007574
WANDSWORTH COUNCIL,PH,,HEALTH,Revenue,HIV RAPID TESTING PILOT,105141710,12/11/2015,796755,55.00,LAVENDER HILL GROUP PRACTICE H85069,SP0003344
WANDSWORTH COUNCIL,PH,,HEALTH,Revenue,HIV RAPID TESTING PILOT,105141710,13/11/2015,800036,"1,708.00",PASSANTE HEALTHCARE LTD,SP0006465
WANDSWORTH COUNCIL,PH,,HEALTH,Revenue,HIV RAPID TESTING PILOT,105141710,12/11/2015,796758,25.00,PUTNEYMEAD GROUP MEDICAL PRACTICE H85012,SP0006951
WANDSWORTH COUNCIL,PH,,HEALTH,Revenue,HIV RAPID TESTING PILOT,105141710,11/11/2015,796759,150.00,QUEENSTOWN ROAD MEDICAL PRACTICE H85003,SP0003591
WANDSWORTH COUNCIL,PH,,HEALTH,Revenue,HIV RAPID TESTING PILOT,105141710,11/11/2015,796761,85.00,SOUTHFIELDS GROUP PRACTICE H85007,SP0007583
WANDSWORTH COUNCIL,PH,,HEALTH,Revenue,HIV RAPID TESTING PILOT,105141710,11/11/2015,797040,235.00,ST PAULS COTTAGE PRACTICE,SP0007978
WANDSWORTH COUNCIL,PH,,HEALTH,Revenue,HIV RAPID TESTING PILOT,105141710,11/11/2015,797143,5.00,STREATHAM PARK SURGERY H85052,SP0008443
WANDSWORTH COUNCIL,PH,,HEALTH,Revenue,HIV RAPID TESTING PILOT,105141710,11/11/2015,796681,35.00,THE HAIDER PRACTICE H85075,SP0008283
WANDSWORTH COUNCIL,PH,,HEALTH,Revenue,HIV RAPID TESTING PILOT,105141710,11/11/2015,796757,420.00,THE OPEN DOOR SURGERY H85087,SP0008280
WANDSWORTH COUNCIL,PH,,HEALTH,Revenue,CHLAMYDIA SCREENING,105141760,17/11/2015,801789,20.00,ABC PHARMACY FGT10,SP0008446
WANDSWORTH COUNCIL,PH,,HEALTH,Revenue,CHLAMYDIA SCREENING,105141760,17/11/2015,801807,10.00,AMICHEM LIMITED FNQ61 T/A KRYSTAL PHARMA,SP0008457
WANDSWORTH COUNCIL,PH,,HEALTH,Revenue,CHLAMYDIA SCREENING,105141760,17/11/2015,801813,20.00,BESTWAY NATIONAL CHEMIST LTD T/A WEL PHA,SP0009458
WANDSWORTH COUNCIL,PH,,HEALTH,Revenue,CHLAMYDIA SCREENING,105141760,17/11/2015,801702,60.00,BOOTS THE CHEMISTS LTD,SP0006952
WANDSWORTH COUNCIL,PH,,HEALTH,Revenue,CHLAMYDIA SCREENING,105141760,17/11/2015,802228,50.00,BOOTS UK LTD FYN24 T/A BOOTS THE CHEMIST,SP0008391
WANDSWORTH COUNCIL,PH,,HEALTH,Revenue,CHLAMYDIA SCREENING,105141760,17/11/2015,802271,10.00,NSK LTD,SP0007000
WANDSWORTH COUNCIL,PH,,HEALTH,Revenue,CHLAMYDIA SCREENING,105141760,16/11/2015,801817,30.00,PEARL CHEMIST LTD,SP0004997
WANDSWORTH COUNCIL,PH,,HEALTH,Revenue,CHLAMYDIA SCREENING,105141760,17/11/2015,801808,50.00,PEARL CHEMIST LTD FDV93 T/A LORDS PHARMA,SP0008419
WANDSWORTH COUNCIL,PH,,HEALTH,Revenue,CHLAMYDIA SCREENING,105141760,16/11/2015,801530,20.00,PEARL CHEMIST LTD FHL06 T/A AUCKLAND ROG,SP0008417
WANDSWORTH COUNCIL,PH,,HEALTH,Revenue,CHLAMYDIA SCREENING,105141760,17/11/2015,801809,10.00,POLYPHARM LTD FNG23,SP0005011
WANDSWORTH COUNCIL,PH,,HEALTH,Revenue,CHLAMYDIA SCREENING,105141760,16/11/2015,801805,10.00,QUIZCHOICE LTD FCL10,SP0007577
WANDSWORTH COUNCIL,PH,,HEALTH,Revenue,CHLAMYDIA SCREENING,105141760,16/11/2015,801791,60.00,SALASJI LTD FG443 T/A DUMLERS PHARMACY,SP0005003
WANDSWORTH COUNCIL,PH,,HEALTH,Revenue,CHLAMYDIA SCREENING,105141760,17/11/2015,802241,10.00,WANDSWORTH PHARMACY FGJ32,SP0004998
WANDSWORTH COUNCIL,PH,,HEALTH,Revenue,ADVICE AND ADVOCACY SERVICES,105241840,04/11/2015,790027,742.50,WEM CONSULTANCY LTD,SP0006617
WANDSWORTH COUNCIL,PH,,HEALTH,Revenue,REVIEW,105241850,10/11/2015,793885,"4,227.50",WEBSTAR HEALTH LTD,SP0006752
WANDSWORTH COUNCIL,PH,,HEALTH,Revenue,THIRD PARTY PAYMENTS- TRAINING,105340530,05/11/2015,790284,"1,010.00",MAWBY MEDICAL LTD,SP0010295
WANDSWORTH COUNCIL,PH,,HEALTH,Revenue,COMMUNITY OUTREACH HEALTH CHCK,105341300,23/11/2015,804880,"5,000.00",SOLUTIONS 4 HEALTH LTD,SP0008222
WANDSWORTH COUNCIL,PH,,HEALTH,Revenue,LOCALLY ENHANCED SERVICES,105341380,12/11/2015,797207,"2,208.98",BALHAM PARK SURGERY,SP0000925
WANDSWORTH COUNCIL,PH,,HEALTH,Revenue,LOCALLY ENHANCED SERVICES,105341380,11/11/2015,797209,"1,028.84",BATTERSEA RISE GROUP PRACTICE H85049,SP0007572
WANDSWORTH COUNCIL,PH,,HEALTH,Revenue,LOCALLY ENHANCED SERVICES,105341380,11/11/2015,797144,726.24,BEDFORD HILL FAMILY PRACTICE H85009,SP0002543
WANDSWORTH COUNCIL,PH,,HEALTH,Revenue,LOCALLY ENHANCED SERVICES,105341380,17/11/2015,800491,"1,543.26",BOLINGBROKE MEDICAL CENTRE H85077,SP0008282
WANDSWORTH COUNCIL,PH,,HEALTH,Revenue,LOCALLY ENHANCED SERVICES,105341380,12/11/2015,797198,"3,631.20",BRIDGE LANE GROUP PRACTICE,SP0000516
WANDSWORTH COUNCIL,PH,,HEALTH,Revenue,LOCALLY ENHANCED SERVICES,105341380,11/11/2015,797199,"2,874.70",BROCKLEBANK GROUP PRACTICE,SP0007967
WANDSWORTH COUNCIL,PH,,HEALTH,Revenue,LOCALLY ENHANCED SERVICES,105341380,11/11/2015,797200,"1,391.96",CHARTFIELD SURGERY Y01132,SP0008380
WANDSWORTH COUNCIL,PH,,HEALTH,Revenue,LOCALLY ENHANCED SERVICES,105341380,12/11/2015,797201,"2,027.42",CHATFIELD HEALTH CARE,SP0002903
WANDSWORTH COUNCIL,PH,,HEALTH,Revenue,LOCALLY ENHANCED SERVICES,105341380,11/11/2015,797202,393.38,CLAPHAM JUNCTION MEDICAL PRACTICE,SP0008135
WANDSWORTH COUNCIL,PH,,HEALTH,Revenue,LOCALLY ENHANCED SERVICES,105341380,11/11/2015,797145,302.60,DR K BEGG H85659,SP0007574
WANDSWORTH COUNCIL,PH,,HEALTH,Revenue,LOCALLY ENHANCED SERVICES,105341380,11/11/2015,797203,"1,028.84",DR P ILVES T/A DANEBURY SURGERY H85067,SP0002029
WANDSWORTH COUNCIL,PH,,HEALTH,Revenue,LOCALLY ENHANCED SERVICES,105341380,11/11/2015,797204,"1,180.14",ELBOROUGH STREET SURGERY H85057,SP0007971
WANDSWORTH COUNCIL,PH,,HEALTH,Revenue,LOCALLY ENHANCED SERVICES,105341380,12/11/2015,796682,"4,024.58",HEATHBRIDGE PRACTICE,SP0008179
WANDSWORTH COUNCIL,PH,,HEALTH,Revenue,LOCALLY ENHANCED SERVICES,105341380,12/11/2015,796755,"2,965.48",LAVENDER HILL GROUP PRACTICE H85069,SP0003344
WANDSWORTH COUNCIL,PH,,HEALTH,Revenue,LOCALLY ENHANCED SERVICES,105341380,12/11/2015,796756,173.23,MAYFIELD SURGERY,SP0002209
WANDSWORTH COUNCIL,PH,,HEALTH,Revenue,LOCALLY ENHANCED SERVICES,105341380,12/11/2015,796756,"1,422.22",MAYFIELD SURGERY,SP0002209
WANDSWORTH COUNCIL,PH,,HEALTH,Revenue,LOCALLY ENHANCED SERVICES,105341380,11/11/2015,797206,544.68,P AND A KUMAR PRACTICE,SP0008285
WANDSWORTH COUNCIL,PH,,HEALTH,Revenue,LOCALLY ENHANCED SERVICES,105341380,12/11/2015,796758,"1,722.11",PUTNEYMEAD GROUP MEDICAL PRACTICE H85012,SP0006951
WANDSWORTH COUNCIL,PH,,HEALTH,Revenue,LOCALLY ENHANCED SERVICES,105341380,12/11/2015,796758,"5,507.32",PUTNEYMEAD GROUP MEDICAL PRACTICE H85012,SP0006951
WANDSWORTH COUNCIL,PH,,HEALTH,Revenue,LOCALLY ENHANCED SERVICES,105341380,11/11/2015,796759,"1,966.90",QUEENSTOWN ROAD MEDICAL PRACTICE H85003,SP0003591
WANDSWORTH COUNCIL,PH,,HEALTH,Revenue,LOCALLY ENHANCED SERVICES,105341380,11/11/2015,796761,"1,089.36",SOUTHFIELDS GROUP PRACTICE H85007,SP0007583
WANDSWORTH COUNCIL,PH,,HEALTH,Revenue,LOCALLY ENHANCED SERVICES,105341380,11/11/2015,797040,"1,634.04",ST PAULS COTTAGE PRACTICE,SP0007978
WANDSWORTH COUNCIL,PH,,HEALTH,Revenue,LOCALLY ENHANCED SERVICES,105341380,11/11/2015,797143,332.86,STREATHAM PARK SURGERY H85052,SP0008443
WANDSWORTH COUNCIL,PH,,HEALTH,Revenue,LOCALLY ENHANCED SERVICES,105341380,11/11/2015,796678,723.49,THE ALTON PRACTICE H85065,SP0008381
WANDSWORTH COUNCIL,PH,,HEALTH,Revenue,LOCALLY ENHANCED SERVICES,105341380,11/11/2015,796678,"2,420.80",THE ALTON PRACTICE H85065,SP0008381
WANDSWORTH COUNCIL,PH,,HEALTH,Revenue,LOCALLY ENHANCED SERVICES,105341380,11/11/2015,796679,"1,210.40",THE FALCON ROAD MEDICAL CENTRE H85002,SP0007953
WANDSWORTH COUNCIL,PH,,HEALTH,Revenue,LOCALLY ENHANCED SERVICES,105341380,11/11/2015,796680,"1,180.14",THE GREYSWOOD PRACTICE,SP0006936
WANDSWORTH COUNCIL,PH,,HEALTH,Revenue,LOCALLY ENHANCED SERVICES,105341380,11/11/2015,796681,363.12,THE HAIDER PRACTICE H85075,SP0008283
WANDSWORTH COUNCIL,PH,,HEALTH,Revenue,LOCALLY ENHANCED SERVICES,105341380,11/11/2015,796757,"2,753.66",THE OPEN DOOR SURGERY H85087,SP0008280
WANDSWORTH COUNCIL,PH,,HEALTH,Revenue,LOCALLY ENHANCED SERVICES,105341380,11/11/2015,796760,"3,207.56",THE ROEHAMPTON SURGERY,SP0008174
WANDSWORTH COUNCIL,PH,,HEALTH,Revenue,LOCALLY ENHANCED SERVICES,105341380,11/11/2015,796760,998.62,THE ROEHAMPTON SURGERY,SP0008174
WANDSWORTH COUNCIL,PH,,HEALTH,Revenue,LOCALLY ENHANCED SERVICES,105341380,11/11/2015,796683,"1,906.38",THURLEIGH ROAD PRACTICE H85114,SP0003310
WANDSWORTH COUNCIL,PH,,HEALTH,Revenue,LOCALLY ENHANCED SERVICES,105341380,11/11/2015,796684,484.16,TOOTING BEC SURGERY,SP0008284
WANDSWORTH COUNCIL,PH,,HEALTH,Revenue,LOCALLY ENHANCED SERVICES,105341380,11/11/2015,796685,847.28,TOOTING SOUTH MEDICAL CENTRE,SP0007962
WANDSWORTH COUNCIL,PH,,HEALTH,Revenue,LOCALLY ENHANCED SERVICES,105341380,11/11/2015,796686,"1,513.00",TRIANGLE SURGERY,SP0008056
WANDSWORTH COUNCIL,PH,,HEALTH,Revenue,LOCALLY ENHANCED SERVICES,105341380,11/11/2015,796687,"3,328.60",TRINITY MEDICAL CENTRE,SP0003735
WANDSWORTH COUNCIL,PH,,HEALTH,Revenue,LOCALLY ENHANCED SERVICES,105341380,12/11/2015,796688,"1,997.16",TUDOR LODGE HEALTH CENTRE H85682,SP0008309
WANDSWORTH COUNCIL,PH,,HEALTH,Revenue,LOCALLY ENHANCED SERVICES,105341380,11/11/2015,796689,"1,240.60",WANDSWORTH MEDICAL CENTRE,SP0007088
WANDSWORTH COUNCIL,PH,,HEALTH,Revenue,PHARMACY LES,105341410,17/11/2015,802271,105.00,NSK LTD,SP0007000
WANDSWORTH COUNCIL,PH,,HEALTH,Revenue,PHARMACY LES,105341410,16/11/2015,801817,21.00,PEARL CHEMIST LTD,SP0004997
WANDSWORTH COUNCIL,PH,,HEALTH,Revenue,PHARMACY LES,105341410,16/11/2015,801530,147.00,PEARL CHEMIST LTD FHL06 T/A AUCKLAND ROG,SP0008417
WANDSWORTH COUNCIL,PH,,HEALTH,Revenue,SOFTWARE FOR MANAGING DATA,105341510,10/11/2015,793893,"6,750.00",NORTH 51,SP0006463
WANDSWORTH COUNCIL,PH,,HEALTH,Revenue,PHARMACY LES,106341410,17/11/2015,801789,70.00,ABC PHARMACY FGT10,SP0008446
WANDSWORTH COUNCIL,PH,,HEALTH,Revenue,PHARMACY LES,106341410,17/11/2015,801807,"1,190.00",AMICHEM LIMITED FNQ61 T/A KRYSTAL PHARMA,SP0008457
WANDSWORTH COUNCIL,PH,,HEALTH,Revenue,PHARMACY LES,106341410,17/11/2015,801813,140.00,BESTWAY NATIONAL CHEMIST LTD T/A WEL PHA,SP0009458
WANDSWORTH COUNCIL,PH,,HEALTH,Revenue,PHARMACY LES,106341410,17/11/2015,801702,70.00,BOOTS THE CHEMISTS LTD,SP0006952
WANDSWORTH COUNCIL,PH,,HEALTH,Revenue,PHARMACY LES,106341410,16/11/2015,801771,70.00,BOOTS UK LTD FD303,SP0008385
WANDSWORTH COUNCIL,PH,,HEALTH,Revenue,PHARMACY LES,106341410,17/11/2015,801776,70.00,BOOTS UK LTD FVK09 T/A BOOTS THE CHEMIST,SP0008393
WANDSWORTH COUNCIL,PH,,HEALTH,Revenue,PHARMACY LES,106341410,17/11/2015,801526,210.00,DAY LEWIS PLC,SP0007580
WANDSWORTH COUNCIL,PH,,HEALTH,Revenue,PHARMACY LES,106341410,16/11/2015,801803,140.00,KDS MEDICARE LTD,SP0005016
WANDSWORTH COUNCIL,PH,,HEALTH,Revenue,PHARMACY LES,106341410,16/11/2015,801811,210.00,MARKRISE PHARMACY,SP0006464
WANDSWORTH COUNCIL,PH,,HEALTH,Revenue,PHARMACY LES,106341410,17/11/2015,802271,350.00,NSK LTD,SP0007000
WANDSWORTH COUNCIL,PH,,HEALTH,Revenue,PHARMACY LES,106341410,16/11/2015,801531,70.00,PATEL JG & KG LLP T/A AURA PHARMAC FV302,SP0007457
WANDSWORTH COUNCIL,PH,,HEALTH,Revenue,PHARMACY LES,106341410,16/11/2015,801817,350.00,PEARL CHEMIST LTD,SP0004997
WANDSWORTH COUNCIL,PH,,HEALTH,Revenue,PHARMACY LES,106341410,17/11/2015,801808,210.00,PEARL CHEMIST LTD FDV93 T/A LORDS PHARMA,SP0008419
WANDSWORTH COUNCIL,PH,,HEALTH,Revenue,PHARMACY LES,106341410,16/11/2015,801530,70.00,PEARL CHEMIST LTD FHL06 T/A AUCKLAND ROG,SP0008417
WANDSWORTH COUNCIL,PH,,HEALTH,Revenue,PHARMACY LES,106341410,17/11/2015,801809,280.00,POLYPHARM LTD FNG23,SP0005011
WANDSWORTH COUNCIL,PH,,HEALTH,Revenue,PHARMACY LES,106341410,16/11/2015,801805,70.00,QUIZCHOICE LTD FCL10,SP0007577
WANDSWORTH COUNCIL,PH,,HEALTH,Revenue,PHARMACY LES,106341410,17/11/2015,802273,420.00,RIZPHARM LTD T/A R. WALJI CHEMIST FCK89,SP0007578
WANDSWORTH COUNCIL,PH,,HEALTH,Revenue,PHARMACY LES,106341410,17/11/2015,802270,70.00,SAAJ LTD,SP0005001
WANDSWORTH COUNCIL,PH,,HEALTH,Revenue,PHARMACY LES,106341410,16/11/2015,801791,420.00,SALASJI LTD FG443 T/A DUMLERS PHARMACY,SP0005003
WANDSWORTH COUNCIL,PH,,HEALTH,Revenue,GP LES CONTRACTS,106341520,12/11/2015,797207,630.00,BALHAM PARK SURGERY,SP0000925
WANDSWORTH COUNCIL,PH,,HEALTH,Revenue,GP LES CONTRACTS,106341520,11/11/2015,797144,350.00,BEDFORD HILL FAMILY PRACTICE H85009,SP0002543
WANDSWORTH COUNCIL,PH,,HEALTH,Revenue,GP LES CONTRACTS,106341520,12/11/2015,797198,910.00,BRIDGE LANE GROUP PRACTICE,SP0000516
WANDSWORTH COUNCIL,PH,,HEALTH,Revenue,GP LES CONTRACTS,106341520,11/11/2015,797199,70.00,BROCKLEBANK GROUP PRACTICE,SP0007967
WANDSWORTH COUNCIL,PH,,HEALTH,Revenue,GP LES CONTRACTS,106341520,11/11/2015,797200,280.00,CHARTFIELD SURGERY Y01132,SP0008380
WANDSWORTH COUNCIL,PH,,HEALTH,Revenue,GP LES CONTRACTS,106341520,12/11/2015,797201,910.00,CHATFIELD HEALTH CARE,SP0002903
WANDSWORTH COUNCIL,PH,,HEALTH,Revenue,GP LES CONTRACTS,106341520,11/11/2015,797145,420.00,DR K BEGG H85659,SP0007574
WANDSWORTH COUNCIL,PH,,HEALTH,Revenue,GP LES CONTRACTS,106341520,11/11/2015,797204,70.00,ELBOROUGH STREET SURGERY H85057,SP0007971
WANDSWORTH COUNCIL,PH,,HEALTH,Revenue,GP LES CONTRACTS,106341520,12/11/2015,796682,490.00,HEATHBRIDGE PRACTICE,SP0008179
WANDSWORTH COUNCIL,PH,,HEALTH,Revenue,GP LES CONTRACTS,106341520,12/11/2015,796758,980.00,PUTNEYMEAD GROUP MEDICAL PRACTICE H85012,SP0006951
WANDSWORTH COUNCIL,PH,,HEALTH,Revenue,GP LES CONTRACTS,106341520,11/11/2015,796759,700.00,QUEENSTOWN ROAD MEDICAL PRACTICE H85003,SP0003591
WANDSWORTH COUNCIL,PH,,HEALTH,Revenue,GP LES CONTRACTS,106341520,11/11/2015,796761,"1,400.00",SOUTHFIELDS GROUP PRACTICE H85007,SP0007583
WANDSWORTH COUNCIL,PH,,HEALTH,Revenue,GP LES CONTRACTS,106341520,11/11/2015,797040,70.00,ST PAULS COTTAGE PRACTICE,SP0007978
WANDSWORTH COUNCIL,PH,,HEALTH,Revenue,GP LES CONTRACTS,106341520,11/11/2015,797143,210.00,STREATHAM PARK SURGERY H85052,SP0008443
WANDSWORTH COUNCIL,PH,,HEALTH,Revenue,GP LES CONTRACTS,106341520,11/11/2015,796679,"3,640.00",THE FALCON ROAD MEDICAL CENTRE H85002,SP0007953
WANDSWORTH COUNCIL,PH,,HEALTH,Revenue,GP LES CONTRACTS,106341520,11/11/2015,796680,210.00,THE GREYSWOOD PRACTICE,SP0006936
WANDSWORTH COUNCIL,PH,,HEALTH,Revenue,GP LES CONTRACTS,106341520,11/11/2015,796681,630.00,THE HAIDER PRACTICE H85075,SP0008283
WANDSWORTH COUNCIL,PH,,HEALTH,Revenue,GP LES CONTRACTS,106341520,11/11/2015,796685,350.00,TOOTING SOUTH MEDICAL CENTRE,SP0007962
WANDSWORTH COUNCIL,PH,,HEALTH,Revenue,GP LES CONTRACTS,106341520,12/11/2015,796688,420.00,TUDOR LODGE HEALTH CENTRE H85682,SP0008309
WANDSWORTH COUNCIL,PH,,HEALTH,Revenue,GP LES CONTRACTS,106341520,11/11/2015,796689,350.00,WANDSWORTH MEDICAL CENTRE,SP0007088
WANDSWORTH COUNCIL,PH,,HEALTH,Revenue,HEALTH PROMOTION SERVICE,107141890,19/11/2015,803462,"2,000.00",MEN'S HEALTH FORUM,SP0009765
WANDSWORTH COUNCIL,PH,,VOL ASS,Revenue,THIRD PARTY PYMT - VOL ASS,107648090,10/11/2015,795759,"6,000.00",AGE UK WANDSWORTH,SP0005795
WANDSWORTH COUNCIL,PH,,COMMUNICATIONS & COMP,Revenue,I.T. EQUIPMENT & MAINTENANCE,107836210,19/11/2015,804891,91.71,DANWOOD GROUP LTD,SP0002739
WANDSWORTH COUNCIL,PH,,COMMUNICATIONS & COMP,Revenue,I.T. EQUIPMENT & MAINTENANCE,107836210,19/11/2015,804891,183.42,DANWOOD GROUP LTD,SP0002739
WANDSWORTH COUNCIL,PH,,COMMUNICATIONS & COMP,Revenue,I.T. EQUIPMENT & MAINTENANCE,107836210,19/11/2015,804891,109.05,DANWOOD GROUP LTD,SP0002739
WANDSWORTH COUNCIL,PH,,COMMUNICATIONS & COMP,Revenue,I.T. EQUIPMENT & MAINTENANCE,107836210,19/11/2015,804891,183.42,DANWOOD GROUP LTD,SP0002739
WANDSWORTH COUNCIL,PH,,HEALTH,Revenue,THIRD PARTY PYMT - HEALTH,107941130,12/11/2015,799464,"4,125.00",OUTREACH MANAGEMENT SERVICE,SP0010031
WANDSWORTH COUNCIL,PH,,SERVICES,Revenue,PROJECT WORK,108034800,27/11/2015,810323,688.57,REGENERATE-RISE,SP0002878
WANDSWORTH COUNCIL,PH,,SERVICES,Revenue,PROJECT WORK,108034800,18/11/2015,803618,996.00,THE RAIN TRUST,SP0009013
WANDSWORTH COUNCIL,PH,,SERVICES,Revenue,PROJECT WORK,108134800,19/11/2015,804857,450.00,AIR SPORTS NETWORK,SP0006715
WANDSWORTH COUNCIL,NGF HS,,SERVICES,Revenue,HIPS,110034460,19/11/2015,792720,720.00,GORDON BROWN,SP0002176
WANDSWORTH COUNCIL,NGF CS,,PRIVATE,Revenue,GENERAL CONTRACT WORK,111545370,09/11/2015,795960,"6,037.22",DDS ENVIRONMENTAL,SP0008409
WANDSWORTH COUNCIL,NGF CS,,PRIVATE,Revenue,GENERAL CONTRACT WORK,111545370,09/11/2015,795961,"1,165.00",DDS ENVIRONMENTAL,SP0008409
WANDSWORTH COUNCIL,NGF CS,,PRIVATE,Revenue,GENERAL CONTRACT WORK,111545370,09/11/2015,795962,980.00,DDS ENVIRONMENTAL,SP0008409
WANDSWORTH COUNCIL,NGF CS,,PRIVATE,Revenue,GENERAL CONTRACT WORK,111545370,12/11/2015,800251,706.22,DH CROFTS LTD,SP0000076
WANDSWORTH COUNCIL,NGF CS,,PRIVATE,Revenue,GENERAL CONTRACT WORK,111545370,10/11/2015,796774,672.50,ELECTROLOK COMPANY (SECURITY) LTD,SP0000966
WANDSWORTH COUNCIL,NGF CS,,MISC,Revenue,MISCELLANEOUS EXPENSES,111938500,18/11/2015,803473,"2,295.00",COOLERAID LTD,SP0003654
WANDSWORTH COUNCIL,NGF CS,,MISC,Revenue,MISCELLANEOUS EXPENSES,111938500,18/11/2015,803596,"1,575.00",COOLERAID LTD,SP0003654
WANDSWORTH COUNCIL,NGF CS,,CLEANING & DOMESTIC SUPPLIES,Revenue,CLEANING CONTRACT,113813020,12/11/2015,800064,"60,351.22",OCEAN INTEGRATED SERVICES LTD,SP0001062
WANDSWORTH COUNCIL,NGF CS,,CLEANING & DOMESTIC SUPPLIES,Revenue,WINDOW CLEANING,113813060,05/11/2015,791486,"6,198.00",PARKERS CLEANING CONTRACTORS LTD,SP0002677
WANDSWORTH COUNCIL,NGF CS,,CLEANING & DOMESTIC SUPPLIES,Revenue,WINDOW CLEANING,113813060,20/11/2015,803503,518.00,PARKERS CLEANING CONTRACTORS LTD,SP0002677
WANDSWORTH COUNCIL,NGF CS,,PRIVATE,Revenue,GENERAL CONTRACT WORK,114145370,25/11/2015,807410,"3,080.00",BARNET WADDINGHAM,SP0004530
WANDSWORTH COUNCIL,NGF CS,,PRIVATE,Revenue,GENERAL CONTRACT WORK,114145370,12/11/2015,800182,"11,324.13",DH CROFTS LTD,SP0000076
WANDSWORTH COUNCIL,NGF CDC,,"REPAIRS, ALTERATIONS & MTCE",Revenue,REMOVALS & REORGANISATIONS,114210140,10/11/2015,795318,630.00,JT & SONS RELOCATIONS,SP0005993
WANDSWORTH COUNCIL,NGF CDC,,"REPAIRS, ALTERATIONS & MTCE",Revenue,REMOVALS & REORGANISATIONS,114210140,18/11/2015,803643,600.00,UNIQUE OFFICE SOLUTIONS LTD,SP0001010
WANDSWORTH COUNCIL,NGF CDC,,PRIVATE,Revenue,GENERAL CONTRACT WORK,11424537K07101,09/11/2015,795880,"4,996.93",DH CROFTS LTD,SP0000076
WANDSWORTH COUNCIL,NGF CDC,,PRIVATE,Revenue,GENERAL CONTRACT WORK,11424537K07101,09/11/2015,795929,"8,609.77",DH CROFTS LTD,SP0000076
WANDSWORTH COUNCIL,NGF CDC,,PRIVATE,Revenue,GENERAL CONTRACT WORK,11424537K07191,09/11/2015,795886,"1,320.00",DH CROFTS LTD,SP0000076
WANDSWORTH COUNCIL,NGF CDC,,PRIVATE,Revenue,GENERAL CONTRACT WORK,11424537K07191,09/11/2015,795888,"12,012.00",DH CROFTS LTD,SP0000076
WANDSWORTH COUNCIL,NGF CDC,,PRIVATE,Revenue,GENERAL CONTRACT WORK,11424537K07191,09/11/2015,795931,"8,111.50",DH CROFTS LTD,SP0000076
WANDSWORTH COUNCIL,NGF CDC,,PRIVATE,Revenue,GENERAL CONTRACT WORK,11424537K07191,24/11/2015,810692,"3,987.50",DH CROFTS LTD,SP0000076
WANDSWORTH COUNCIL,NGF CDC,,PRIVATE,Revenue,GENERAL CONTRACT WORK,11424537K07251,25/11/2015,811552,400.00,DOWNS FLOORING LTD,SP0000833
WANDSWORTH COUNCIL,NGF CDC,,PRIVATE,Revenue,GENERAL CONTRACT WORK,11424537K07251,25/11/2015,811552,"1,098.00",DOWNS FLOORING LTD,SP0000833
WANDSWORTH COUNCIL,NGF CDC,,PRIVATE,Revenue,GENERAL CONTRACT WORK,11424537K07291,25/11/2015,811548,522.55,DH CROFTS LTD,SP0000076
WANDSWORTH COUNCIL,NGF CDC,,PRIVATE,Revenue,GENERAL CONTRACT WORK,11424537K07301,12/11/2015,800186,"4,227.30",DH CROFTS LTD,SP0000076
WANDSWORTH COUNCIL,NGF CDC,,PRIVATE,Revenue,GENERAL CONTRACT WORK,11424537K07301,25/11/2015,811550,660.00,DH CROFTS LTD,SP0000076
WANDSWORTH COUNCIL,NGF CDC,,PRIVATE,Revenue,GENERAL CONTRACT WORK,11424537K07321,09/11/2015,795927,"11,712.80",DH CROFTS LTD,SP0000076
WANDSWORTH COUNCIL,NGF CDC,,PRIVATE,Revenue,GENERAL CONTRACT WORK,11424537K07321,24/11/2015,810693,"1,980.00",DH CROFTS LTD,SP0000076
WANDSWORTH COUNCIL,NGF CDC,,PRIVATE,Revenue,GENERAL CONTRACT WORK,11424537K07341,09/11/2015,795934,"22,947.14",ACR LONDON LTD,SP0000193
WANDSWORTH COUNCIL,NGF CDC,,PRIVATE,Revenue,GENERAL CONTRACT WORK,11424537K07341,09/11/2015,795887,"5,568.00",DH CROFTS LTD,SP0000076
WANDSWORTH COUNCIL,NGF CDC,,PRIVATE,Revenue,GENERAL CONTRACT WORK,11424537K07341,09/11/2015,795889,"6,891.00",DH CROFTS LTD,SP0000076
WANDSWORTH COUNCIL,NGF CDC,,PRIVATE,Revenue,GENERAL CONTRACT WORK,11424537K07341,09/11/2015,796008,654.50,DH CROFTS LTD,SP0000076
WANDSWORTH COUNCIL,NGF CDC,,PRIVATE,Revenue,GENERAL CONTRACT WORK,11424537K07341,12/11/2015,800185,"2,758.88",DH CROFTS LTD,SP0000076
WANDSWORTH COUNCIL,NGF CDC,,PRIVATE,Revenue,GENERAL CONTRACT WORK,11424537K07351,12/11/2015,800295,"1,299.13",WESTMINSTER BUILDING SERVICES LTD,SP0000543
WANDSWORTH COUNCIL,NGF CDC,,PRIVATE,Revenue,GENERAL CONTRACT WORK,11424537K07351,12/11/2015,800296,"1,680.00",WESTMINSTER BUILDING SERVICES LTD,SP0000543
WANDSWORTH COUNCIL,NGF CDC,,PRIVATE,Revenue,GENERAL CONTRACT WORK,11424537K07351,12/11/2015,800297,720.00,WESTMINSTER BUILDING SERVICES LTD,SP0000543
WANDSWORTH COUNCIL,NGF CDC,,PRIVATE,Revenue,GENERAL CONTRACT WORK,11424537K07361,24/11/2015,810688,"2,557.75",DH CROFTS LTD,SP0000076
WANDSWORTH COUNCIL,NGF CS,,"REPAIRS, ALTERATIONS & MTCE",Revenue,"REPS, ALTS & MTCE-BUILDINGS",115610000,26/11/2015,811585,909.39,T BROWN GROUP LTD,SP0001050
WANDSWORTH COUNCIL,NGF CS,,INDIRECT,Revenue,TRAINING - EXTERNAL COURSES,120100770,04/11/2015,790360,450.00,CENTRAL LAW TRAINING LTD,SP0002448
WANDSWORTH COUNCIL,NGF CS,,MISC,Revenue,MISCELLANEOUS EXPENSES,120138500,09/11/2015,793826,761.20,LANGUAGE LINE,SP0000611
WANDSWORTH COUNCIL,NGF CS,,GRANTS & SUBSCRIPTIONS,Revenue,SUBSCRIPTIONS,120537640,13/11/2015,800070,"1,445.00",CIPFA BUSINESS LTD,SP0002601
WANDSWORTH COUNCIL,NGF CS,,OTHER AGENCIES,Revenue,DISBURSEMENTS,120643250,04/11/2015,789039,500.00,1 GARDEN COURT CHAMBERS,SP0009291
WANDSWORTH COUNCIL,NGF CS,,OTHER AGENCIES,Revenue,DISBURSEMENTS,120643250,05/11/2015,790273,"1,825.00",1 GARDEN COURT CHAMBERS,SP0009291
WANDSWORTH COUNCIL,NGF CS,,OTHER AGENCIES,Revenue,DISBURSEMENTS,120643250,05/11/2015,790275,850.00,1 GARDEN COURT CHAMBERS,SP0009291
WANDSWORTH COUNCIL,NGF CS,,OTHER AGENCIES,Revenue,DISBURSEMENTS,120643250,25/11/2015,807465,"7,062.50",1 GARDEN COURT CHAMBERS,SP0009291
WANDSWORTH COUNCIL,NGF CS,,OTHER AGENCIES,Revenue,DISBURSEMENTS,120643250,25/11/2015,807467,500.00,1 GARDEN COURT CHAMBERS,SP0009291
WANDSWORTH COUNCIL,NGF CS,,OTHER AGENCIES,Revenue,DISBURSEMENTS,120643250,25/11/2015,807468,800.00,1 GARDEN COURT CHAMBERS,SP0009291
WANDSWORTH COUNCIL,NGF CS,,OTHER AGENCIES,Revenue,DISBURSEMENTS,120643250,25/11/2015,808964,"1,599.99",1 GARDEN COURT CHAMBERS,SP0009291
WANDSWORTH COUNCIL,NGF CS,,OTHER AGENCIES,Revenue,DISBURSEMENTS,120643250,25/11/2015,808966,425.00,1 GARDEN COURT CHAMBERS,SP0009291
WANDSWORTH COUNCIL,NGF CS,,OTHER AGENCIES,Revenue,DISBURSEMENTS,120643250,23/11/2015,806226,500.00,36 BEDFORD ROW,SP0010055
WANDSWORTH COUNCIL,NGF CS,,OTHER AGENCIES,Revenue,DISBURSEMENTS,120643250,04/11/2015,789054,800.00,4 BRICK COURT MANAGEMENT LIMITED,SP0007380
WANDSWORTH COUNCIL,NGF CS,,OTHER AGENCIES,Revenue,DISBURSEMENTS,120643250,23/11/2015,806227,"1,275.00",4 BRICK COURT MANAGEMENT LIMITED,SP0007380
WANDSWORTH COUNCIL,NGF CS,,OTHER AGENCIES,Revenue,DISBURSEMENTS,120643250,23/11/2015,806228,625.00,4 BRICK COURT MANAGEMENT LIMITED,SP0007380
WANDSWORTH COUNCIL,NGF CS,,OTHER AGENCIES,Revenue,DISBURSEMENTS,120643250,19/11/2015,805843,650.00,42 BEDFORD ROW CHAMBERS,SP0009440
WANDSWORTH COUNCIL,NGF CS,,OTHER AGENCIES,Revenue,DISBURSEMENTS,120643250,04/11/2015,789064,540.00,ANGLIA DNA SERVICES LTD,SP0000216
WANDSWORTH COUNCIL,NGF CS,,OTHER AGENCIES,Revenue,DISBURSEMENTS,120643250,13/11/2015,798941,"1,140.00",CHILTERN COSTS CONSULTANTS,SP0008904
WANDSWORTH COUNCIL,NGF CS,,OTHER AGENCIES,Revenue,DISBURSEMENTS,120643250,04/11/2015,789034,"1,675.00",CORNERSTONE BACS,SP0004477
WANDSWORTH COUNCIL,NGF CS,,OTHER AGENCIES,Revenue,DISBURSEMENTS,120643250,18/11/2015,803636,"2,100.00",CORNERSTONE BACS,SP0004477
WANDSWORTH COUNCIL,NGF CS,,OTHER AGENCIES,Revenue,DISBURSEMENTS,120643250,24/11/2015,807466,750.00,CORNERSTONE BACS,SP0004477
WANDSWORTH COUNCIL,NGF CS,,OTHER AGENCIES,Revenue,DISBURSEMENTS,120643250,24/11/2015,807470,700.00,CORNERSTONE BACS,SP0004477
WANDSWORTH COUNCIL,NGF CS,,OTHER AGENCIES,Revenue,DISBURSEMENTS,120643250,27/11/2015,812109,750.00,CORNERSTONE BACS,SP0004477
WANDSWORTH COUNCIL,NGF CS,ADMINISTRATION,OTHER AGENCIES,Revenue,DISBURSEMENTS,120643250,10/11/2015,798328,795.00,PATEM,RG0000001
WANDSWORTH COUNCIL,NGF CS,,OTHER AGENCIES,Revenue,DISBURSEMENTS,120643250,27/11/2015,812037,"1,109.00",SHARPE PRITCHARD LLP,SP0003677
WANDSWORTH COUNCIL,NGF CS,,OTHER AGENCIES,Revenue,DISBURSEMENTS,120643250,27/11/2015,812037,"1,938.95",SHARPE PRITCHARD LLP,SP0003677
WANDSWORTH COUNCIL,NGF CS,,OTHER AGENCIES,Revenue,DISBURSEMENTS,120643250,04/11/2015,789037,"1,500.00",THE CHAMBERS OF ANDREW TROLLOPE QC,SP0009051
WANDSWORTH COUNCIL,NGF CS,,OTHER AGENCIES,Revenue,DISBURSEMENTS,120643250,25/11/2015,808965,500.00,THE CHAMBERS OF ANDREW TROLLOPE QC,SP0009051
WANDSWORTH COUNCIL,NGF CS,,PRIVATE,Revenue,"CONTRACT 6- HWYS, PLAN ETC",120646170,25/11/2015,809606,"30,120.78",SHARPE PRITCHARD LLP,SP0003677
WANDSWORTH COUNCIL,NGF CS,,PRIVATE,Revenue,"CONTRACT 6- HWYS, PLAN ETC",120646170,25/11/2015,809607,"9,146.57",SHARPE PRITCHARD LLP,SP0003677
WANDSWORTH COUNCIL,NGF CS,,PRIVATE,Revenue,LOT 1 - LLORD SERVS PROP MGMT,120746180,19/11/2015,802325,"11,922.61",LAMBERT SMITH HAMPTON,SP0002515
WANDSWORTH COUNCIL,NGF CS,,PRIVATE,Revenue,LOT 1 - LLORD SERVS PROP MGMT,120746180,19/11/2015,802328,"3,663.96",LAMBERT SMITH HAMPTON,SP0002515
WANDSWORTH COUNCIL,NGF CS,,PRIVATE,Revenue,LOT 1 - LLORD SERVS PROP MGMT,120746180,23/11/2015,806862,"1,046.50",LAMBERT SMITH HAMPTON,SP0002515
WANDSWORTH COUNCIL,NGF CS,,PRIVATE,Revenue,LOT 2 - GEN VALUATIONS,120746250,09/11/2015,795740,"1,750.00",BNP PARIBAS REAL ESTATE ADVISORY & PROPE,SP0003715
WANDSWORTH COUNCIL,NGF CS,,PRIVATE,Revenue,LOT 2 - GEN VALUATIONS,120746250,23/11/2015,806861,"2,047.37",LAMBERT SMITH HAMPTON,SP0002515
WANDSWORTH COUNCIL,NGF CS,,PRIVATE,Revenue,LOT 4 - STAT VALS & PROP ADVIC,120746260,11/11/2015,795743,"1,450.00",LAMBERT SMITH HAMPTON,SP0002515
WANDSWORTH COUNCIL,NGF CS,,DIRECT2,Revenue,AGENCY STAFF,120800510,13/11/2015,800077,"1,486.80",COBALT CONSULTING (UK) LTD,SP0008002
WANDSWORTH COUNCIL,NGF CS,,DIRECT2,Revenue,AGENCY STAFF,120800510,13/11/2015,800079,"1,444.32",COBALT CONSULTING (UK) LTD,SP0008002
WANDSWORTH COUNCIL,NGF CS,,"EQUIPMENT, FURNITURE & MATS",Revenue,"EQUIPMENT, FURNITURE & MATS",121130000,19/11/2015,803965,303.04,SUPPLIES TEAM,SP0002310
WANDSWORTH COUNCIL,NGF CS,,"EQUIPMENT, FURNITURE & MATS",Revenue,"EQUIPMENT, FURNITURE & MATS",121130000,19/11/2015,803965,303.47,SUPPLIES TEAM,SP0002310
WANDSWORTH COUNCIL,NGF CS,,"EQUIPMENT, FURNITURE & MATS",Revenue,"EQUIPMENT, FURNITURE & MATS",121130000,19/11/2015,803965,16.78,SUPPLIES TEAM,SP0002310
WANDSWORTH COUNCIL,NGF CS,,"EQUIPMENT, FURNITURE & MATS",Revenue,"EQUIPMENT, FURNITURE & MATS",121130000,19/11/2015,803965,15.39,SUPPLIES TEAM,SP0002310
WANDSWORTH COUNCIL,NGF CS,,PRINTING STAT & GEN OFFICE EXP,Revenue,OUTWORK - WEB OFFSET,121333580,23/11/2015,808680,"10,650.00",ST IVES MANAGEMENT SERVICES LTD,SP0010254
WANDSWORTH COUNCIL,NGF CS,,PRINTING STAT & GEN OFFICE EXP,Revenue,OUTWORK - WEB OFFSET,121333580,23/11/2015,808681,"3,602.50",ST IVES MANAGEMENT SERVICES LTD,SP0010254
WANDSWORTH COUNCIL,NGF CS,,PRINTING STAT & GEN OFFICE EXP,Revenue,OUTWORK - WEB OFFSET,121333580,23/11/2015,808682,"1,245.00",ST IVES MANAGEMENT SERVICES LTD,SP0010254
WANDSWORTH COUNCIL,NGF CS,,PRINTING STAT & GEN OFFICE EXP,Revenue,OUTWORK - WEB OFFSET,121333580,23/11/2015,808684,"2,660.00",WARNERS MIDLANDS PLC,SP0007709
WANDSWORTH COUNCIL,NGF CS,,PRINTING STAT & GEN OFFICE EXP,Revenue,OUTWORK - WEB OFFSET,121333580,23/11/2015,808685,"3,593.00",WARNERS MIDLANDS PLC,SP0007709
WANDSWORTH COUNCIL,NGF CS,,PRINTING STAT & GEN OFFICE EXP,Revenue,OUTWORK - WEB OFFSET,121333580,19/11/2015,789367,"18,735.00",WYNDEHAM PETERBOROUGH LTD,SP0010249
WANDSWORTH COUNCIL,NGF CS,,PRINTING STAT & GEN OFFICE EXP,Revenue,OUTWORK - LITHO,121333590,23/11/2015,808672,423.00,DELTOR COMMUNICATIONS LTD,SP0007714
WANDSWORTH COUNCIL,NGF CS,,PRINTING STAT & GEN OFFICE EXP,Revenue,OUTWORK - LITHO,121333590,10/11/2015,797111,555.30,FINANCIAL DATA MANAGEMENT LTD,SP0007048
WANDSWORTH COUNCIL,NGF CS,,PRINTING STAT & GEN OFFICE EXP,Revenue,OUTWORK - LITHO,121333590,10/11/2015,797112,"1,076.00",FINANCIAL DATA MANAGEMENT LTD,SP0007048
WANDSWORTH COUNCIL,NGF CS,,PRINTING STAT & GEN OFFICE EXP,Revenue,OUTWORK - LITHO,121333590,23/11/2015,808674,555.11,FINANCIAL DATA MANAGEMENT LTD,SP0007048
WANDSWORTH COUNCIL,NGF CS,,PRINTING STAT & GEN OFFICE EXP,Revenue,OUTWORK - LITHO,121333590,30/11/2015,814697,520.06,FINANCIAL DATA MANAGEMENT LTD,SP0007048
WANDSWORTH COUNCIL,NGF CS,,PRINTING STAT & GEN OFFICE EXP,Revenue,OUTWORK - LITHO,121333590,02/11/2015,789324,"1,483.00",IMPRESS PRINT SERVICES LTD,SP0003209
WANDSWORTH COUNCIL,NGF CS,,PRINTING STAT & GEN OFFICE EXP,Revenue,OUTWORK - LITHO,121333590,10/11/2015,797115,787.00,IMPRESS PRINT SERVICES LTD,SP0003209
WANDSWORTH COUNCIL,NGF CS,,PRINTING STAT & GEN OFFICE EXP,Revenue,OUTWORK - LITHO,121333590,10/11/2015,797117,655.00,IMPRESS PRINT SERVICES LTD,SP0003209
WANDSWORTH COUNCIL,NGF CS,,PRINTING STAT & GEN OFFICE EXP,Revenue,OUTWORK - LITHO,121333590,10/11/2015,797119,505.00,IMPRESS PRINT SERVICES LTD,SP0003209
WANDSWORTH COUNCIL,NGF CS,,PRINTING STAT & GEN OFFICE EXP,Revenue,OUTWORK - LITHO,121333590,02/11/2015,789337,422.06,KALL KWIK,SP0003093
WANDSWORTH COUNCIL,NGF CS,,PRINTING STAT & GEN OFFICE EXP,Revenue,OUTWORK - LITHO,121333590,02/11/2015,789338,530.00,KALL KWIK,SP0003093
WANDSWORTH COUNCIL,NGF CS,,PRINTING STAT & GEN OFFICE EXP,Revenue,OUTWORK - LITHO,121333590,02/11/2015,789349,710.00,KALL KWIK,SP0003093
WANDSWORTH COUNCIL,NGF CS,,PRINTING STAT & GEN OFFICE EXP,Revenue,OUTWORK - LITHO,121333590,10/11/2015,797124,450.00,KALL KWIK,SP0003093
WANDSWORTH COUNCIL,NGF CS,,PRINTING STAT & GEN OFFICE EXP,Revenue,OUTWORK - LITHO,121333590,10/11/2015,797129,450.00,KALL KWIK,SP0003093
WANDSWORTH COUNCIL,NGF CS,,PRINTING STAT & GEN OFFICE EXP,Revenue,OUTWORK - LITHO,121333590,30/11/2015,814701,450.00,KALL KWIK,SP0003093
WANDSWORTH COUNCIL,NGF CS,,PRINTING STAT & GEN OFFICE EXP,Revenue,OUTWORK - LITHO,121333590,30/11/2015,814702,530.00,KALL KWIK,SP0003093
WANDSWORTH COUNCIL,NGF CS,,PRINTING STAT & GEN OFFICE EXP,Revenue,OUTWORK - LITHO,121333590,02/11/2015,789361,"1,178.00",PURBROOKS LTD,SP0001851
WANDSWORTH COUNCIL,NGF CS,,PRINTING STAT & GEN OFFICE EXP,Revenue,OUTWORK - LITHO,121333590,30/11/2015,814718,"1,162.00",PURBROOKS LTD,SP0001851
WANDSWORTH COUNCIL,NGF CS,,PRINTING STAT & GEN OFFICE EXP,Revenue,OUTWORK - EXTERN NON FRAMEWORK,121333600,23/11/2015,808673,700.00,EURO LABEL PRINTERS LTD,SP0002145
WANDSWORTH COUNCIL,NGF CS,,PRINTING STAT & GEN OFFICE EXP,Revenue,OUTWORK - EXTERN NON FRAMEWORK,121333600,02/11/2015,789326,479.00,JKN DIGITAL LTD,SP0007189
WANDSWORTH COUNCIL,NGF CS,,PRINTING STAT & GEN OFFICE EXP,Revenue,OUTWORK - EXTERN NON FRAMEWORK,121333600,02/11/2015,789327,529.00,JKN DIGITAL LTD,SP0007189
WANDSWORTH COUNCIL,NGF CS,,PRINTING STAT & GEN OFFICE EXP,Revenue,OUTWORK - EXTERN NON FRAMEWORK,121333600,23/11/2015,808679,819.20,LIBERTY SERVICES  LIMITED,SP0002024
WANDSWORTH COUNCIL,NGF CS,,PRINTING STAT & GEN OFFICE EXP,Revenue,OUTWORK - EXTERN NON FRAMEWORK,121333600,10/11/2015,797141,960.00,SERVICE GRAPHICS LTD,SP0002101
WANDSWORTH COUNCIL,NGF CS,,MISC,Revenue,MISCELLANEOUS EXPENSES,121338500,10/11/2015,797135,641.00,ONNEKAS LTD (MARTINS),SP0003051
WANDSWORTH COUNCIL,NGF CDC,,PRINTING STAT & GEN OFFICE EXP,Revenue,PUBLIC RELATIONS,12203346K9018A,25/11/2015,809643,"6,106.00",LONDON LETTERBOX MARKETING,SP0000546
WANDSWORTH COUNCIL,NGF CS,,INDIRECT,Revenue,IN-SERVICE TRAINING-SLA,123000740,04/11/2015,789065,975.00,FIRST RESPONSE TRAINING,SP0005439
WANDSWORTH COUNCIL,NGF CS,,INDIRECT,Revenue,IN-SERVICE TRAINING-SLA,123000740,27/11/2015,812126,"1,950.00",MARY FOSTER CONSULTING,SP0008493
WANDSWORTH COUNCIL,NGF CS,,INDIRECT,Revenue,IN-SERVICE TRAINING-SLA,123000740,18/11/2015,803622,"1,350.00",VERITY BARTON,SP0003778
WANDSWORTH COUNCIL,NGF CS,,INDIRECT,Revenue,TRAINING - APPROVED QUALS,123000760,11/11/2015,796675,"2,950.00",CROYDON COLLEGE,SP0008641
WANDSWORTH COUNCIL,NGF CS,,COMMUNICATIONS & COMP,Revenue,I.T. SOFTWARE,123036240,23/11/2015,806224,"1,820.00",OMNIPLEX GROUP LTD,SP0010220
WANDSWORTH COUNCIL,NGF CS,,INDIRECT,Revenue,CHILDCARE VOUCHERS,123200650,04/11/2015,789027,114.09,COMPUTERSHARE VOUCHER SERVICES,SP0003037
WANDSWORTH COUNCIL,NGF CS,,INDIRECT,Revenue,CHILDCARE VOUCHERS,123200650,10/11/2015,795741,653.00,COMPUTERSHARE VOUCHER SERVICES,SP0003037
WANDSWORTH COUNCIL,NGF CS,,INDIRECT,Revenue,CHILDCARE VOUCHERS,123200650,30/11/2015,813040,149.90,COMPUTERSHARE VOUCHER SERVICES,SP0003037
WANDSWORTH COUNCIL,NGF CS,,INDIRECT,Revenue,CHILDCARE VOUCHERS,123200650,30/11/2015,813041,120.35,COMPUTERSHARE VOUCHER SERVICES,SP0003037
WANDSWORTH COUNCIL,NGF CS,,INDIRECT,Revenue,TRAINING - APPROVED QUALS,123200760,11/11/2015,796675,"2,950.00",CROYDON COLLEGE,SP0008641
WANDSWORTH COUNCIL,NGF CS,,CATERING,Revenue,FOOD & CONSUMABLES,123231040,23/11/2015,806896,981.00,SHARE COMMUNITY,SP0000329
WANDSWORTH COUNCIL,NGF CS,,PRINTING STAT & GEN OFFICE EXP,Revenue,PRINTING AND STATIONERY,123233420,27/11/2015,812051,487.94,SUPPLIES TEAM,SP0002310
WANDSWORTH COUNCIL,NGF CS,,PRINTING STAT & GEN OFFICE EXP,Revenue,PRINTING AND STATIONERY,123233420,27/11/2015,812051,67.06,SUPPLIES TEAM,SP0002310
WANDSWORTH COUNCIL,NGF CS,,PRINTING STAT & GEN OFFICE EXP,Revenue,PRINTING AND STATIONERY,123233420,27/11/2015,812051,350.00,SUPPLIES TEAM,SP0002310
WANDSWORTH COUNCIL,NGF CS,,PRINTING STAT & GEN OFFICE EXP,Revenue,PRINTING AND STATIONERY,123233420,27/11/2015,812051,487.94,SUPPLIES TEAM,SP0002310
WANDSWORTH COUNCIL,NGF CS,,PRINTING STAT & GEN OFFICE EXP,Revenue,PRINTING AND STATIONERY,123233420,27/11/2015,812051,74.00,SUPPLIES TEAM,SP0002310
WANDSWORTH COUNCIL,NGF CS,,PRINTING STAT & GEN OFFICE EXP,Revenue,PRINTING AND STATIONERY,123233420,27/11/2015,812051,161.42,SUPPLIES TEAM,SP0002310
WANDSWORTH COUNCIL,NGF CS,,PRINTING STAT & GEN OFFICE EXP,Revenue,PRINTING AND STATIONERY,123233420,27/11/2015,812051,161.42,SUPPLIES TEAM,SP0002310
WANDSWORTH COUNCIL,NGF CS,,PRINTING STAT & GEN OFFICE EXP,Revenue,PRINTING AND STATIONERY,123233420,27/11/2015,812051,66.04,SUPPLIES TEAM,SP0002310
WANDSWORTH COUNCIL,NGF CS,,SERVICES,Revenue,OHS SESSIONAL DOCTOR,123234690,04/11/2015,789274,"4,930.20",HJM ASSOCIATES,SP0003667
WANDSWORTH COUNCIL,NGF CS,,MISC,Revenue,MISCELLANEOUS EXPENSES,123238500,17/11/2015,802231,"2,102.25",EDENRED UK GROUP LTD,SP0000238
WANDSWORTH COUNCIL,NGF CS,,MISC,Revenue,MISCELLANEOUS EXPENSES,123238500,17/11/2015,802276,"1,284.12",VOUCHER EXPRESS (HEMINGWAYS MARKETING SE,SP0000430
WANDSWORTH COUNCIL,NGF CS,,MISC,Revenue,MISCELLANEOUS EXPENSES,123238500,17/11/2015,802276,191.88,VOUCHER EXPRESS (HEMINGWAYS MARKETING SE,SP0000430
WANDSWORTH COUNCIL,NGF CDC,,MISC,Revenue,MISCELLANEOUS EXPENSES,124038500,04/11/2015,789044,594.00,OSBOND AND TUTT LTD,SP0010203
WANDSWORTH COUNCIL,NGF CDC,,DIRECT,Revenue,CIVIC AWARDS,124050330,12/11/2015,800089,570.39,UPPERMOST BUSINESS GIFTS LTD,SP0010307
WANDSWORTH COUNCIL,NGF CDC,,DIRECT,Revenue,CIVIC AWARDS,124050330,12/11/2015,800089,9.96,UPPERMOST BUSINESS GIFTS LTD,SP0010307
WANDSWORTH COUNCIL,NGF CDC,,COMMUNICATIONS & COMP,Revenue,I.T. EQUIPMENT & MAINTENANCE,124236210,16/11/2015,789047,763.00,DELL CORPORATION LTD,SP0003352
WANDSWORTH COUNCIL,PH,,SERVICES,Revenue,PROJECT WORK,125134800,19/11/2015,803627,950.00,PATRICIA CHRISTMAS,SP0009451
WANDSWORTH COUNCIL,PH,,SERVICES,Revenue,PROJECT WORK,125134800,04/11/2015,789055,"2,324.07",PLACES FOR PEOPLE - LATCHMERE LEISURE CT,SP0006367
WANDSWORTH COUNCIL,NGF CS,,FIXTURES & FITTINGS,Revenue,FIXTURES & FITTINGS,126012800,12/11/2015,800246,763.50,DH CROFTS LTD,SP0000076
WANDSWORTH COUNCIL,NGF CS,,COMMUNICATIONS & COMP,Revenue,I.T. EQUIPMENT & MAINTENANCE,126036210,05/11/2015,790340,"2,100.00",DELL CORPORATION LTD,SP0003352
WANDSWORTH COUNCIL,NGF CS,,"EQUIPMENT, FURNITURE & MATS",Revenue,ADAPTATIONS - COUNCIL,126130020,30/11/2015,813274,"8,190.99",SUNA COMMUNICATION LTD,SP0000491
WANDSWORTH COUNCIL,NGF CS,,"EQUIPMENT, FURNITURE & MATS",Revenue,CCTV CONTROL ROOM DEVELOPMENT,126130030,19/11/2015,805819,"9,006.08",VIRGIN MEDIA BUSINESS,SP0003737
WANDSWORTH COUNCIL,NGF CS,,"EQUIPMENT, FURNITURE & MATS",Revenue,CCTV FIBRE RENTALS,126130040,13/11/2015,799542,"2,267.50",VODAFONE CORPORATE,SP0001107
WANDSWORTH COUNCIL,NGF CS,,"EQUIPMENT, FURNITURE & MATS",Revenue,CONSUMABLES,126130080,19/11/2015,805851,"2,276.00",BT PAYMENT SERVICES LTD,SP0001093
WANDSWORTH COUNCIL,NGF CS,,"EQUIPMENT, FURNITURE & MATS",Revenue,CONSUMABLES,126130080,19/11/2015,805856,885.04,BT PAYMENT SERVICES LTD,SP0001093
WANDSWORTH COUNCIL,NGF CS,,"EQUIPMENT, FURNITURE & MATS",Revenue,"EQUIPMENT, FURNITURE & MATS",126330000,20/11/2015,806858,"1,750.00",M H COMS,SP0000933
WANDSWORTH COUNCIL,NGF CS,,"EQUIPMENT, FURNITURE & MATS",Revenue,EQUIP.FURN & MATS-REPS & MTCE,126330010,09/11/2015,795942,689.31,ACR LONDON LTD,SP0000193
WANDSWORTH COUNCIL,NGF CS,,"EQUIPMENT, FURNITURE & MATS",Revenue,"EQUIPMENT, FURNITURE & MATS",126530000,03/11/2015,790279,"4,081.44",BLUESOURCE INFORMATION LTD,SP0007862
WANDSWORTH COUNCIL,NGF CS,,"EQUIPMENT, FURNITURE & MATS",Revenue,"EQUIPMENT, FURNITURE & MATS",126530000,03/11/2015,790279,"7,086.30",BLUESOURCE INFORMATION LTD,SP0007862
WANDSWORTH COUNCIL,NGF CS,,"EQUIPMENT, FURNITURE & MATS",Revenue,"EQUIPMENT, FURNITURE & MATS",126530000,03/11/2015,790279,"1,629.85",BLUESOURCE INFORMATION LTD,SP0007862
WANDSWORTH COUNCIL,NGF CS,,"EQUIPMENT, FURNITURE & MATS",Revenue,"EQUIPMENT, FURNITURE & MATS",126530000,03/11/2015,790279,"1,629.85",BLUESOURCE INFORMATION LTD,SP0007862
WANDSWORTH COUNCIL,NGF CS,,"EQUIPMENT, FURNITURE & MATS",Revenue,"EQUIPMENT, FURNITURE & MATS",126530000,03/11/2015,790279,"4,081.44",BLUESOURCE INFORMATION LTD,SP0007862
WANDSWORTH COUNCIL,NGF CS,,"EQUIPMENT, FURNITURE & MATS",Revenue,"EQUIPMENT, FURNITURE & MATS",126530000,03/11/2015,790279,"17,745.36",BLUESOURCE INFORMATION LTD,SP0007862
WANDSWORTH COUNCIL,NGF CS,,"EQUIPMENT, FURNITURE & MATS",Revenue,"EQUIPMENT, FURNITURE & MATS",126530000,19/11/2015,805792,"11,798.28",DELL CORPORATION LTD,SP0003352
WANDSWORTH COUNCIL,NGF CS,,"EQUIPMENT, FURNITURE & MATS",Revenue,"EQUIPMENT, FURNITURE & MATS",126530000,25/11/2015,808728,"3,161.76",DELL CORPORATION LTD,SP0003352
WANDSWORTH COUNCIL,NGF CS,,"EQUIPMENT, FURNITURE & MATS",Revenue,"EQUIPMENT, FURNITURE & MATS",126530000,13/11/2015,800090,"23,684.19",MTI TECHNOLOGY LIMITED,SP0005271
WANDSWORTH COUNCIL,NGF CS,,COMMUNICATIONS & COMP,Revenue,I.T. SOFTWARE,126536240,18/11/2015,803435,"15,405.40",SOFTCAT LIMITED,SP0004717
WANDSWORTH COUNCIL,NGF CS,,"EQUIPMENT, FURNITURE & MATS",Revenue,"EQUIPMENT, FURNITURE & MATS",126630000,30/11/2015,811117,"1,701.00",METALOGIX INTERNATIONAL GMBH,SP0009025
WANDSWORTH COUNCIL,NGF CS,,COMMUNICATIONS & COMP,Revenue,ICT SUPPORT,126736250,11/11/2015,793827,"89,610.00",CIVICA UK LTD,SP0000394
WANDSWORTH COUNCIL,NGF CS,,COMMUNICATIONS & COMP,Revenue,I.T. SLA RECHARGE,126836230,30/11/2015,812046,"2,440.09",EXPERIAN,SP0002935
WANDSWORTH COUNCIL,NGF CS,,SERVICES,Revenue,PROJECT WORK,127034800,09/11/2015,792239,"1,776.00",STORM FAMILY CENTRE LTD,SP0002613
WANDSWORTH COUNCIL,NGF CS,,SERVICES,Revenue,PROJECT WORK,127034800,09/11/2015,795717,"5,328.00",STORM FAMILY CENTRE LTD,SP0002613
WANDSWORTH COUNCIL,NGF CS,,SERVICES,Revenue,PROJECT WORK,127034800,12/11/2015,799451,"1,479.00",STORM FAMILY CENTRE LTD,SP0002613
WANDSWORTH COUNCIL,NGF CS,,SERVICES,Revenue,SERVICES - GENERAL,127234870,11/11/2015,796391,"3,031.27",SAP (UK) LTD,SP0003455
WANDSWORTH COUNCIL,CS,,DIRECT2,Revenue,AGENCY STAFF,128000510,09/11/2015,792782,"11,351.22",MATRIX SCM LIMITED,SP0004572
WANDSWORTH COUNCIL,CS,,DIRECT2,Revenue,AGENCY STAFF,128000510,13/11/2015,800069,"10,752.75",MATRIX SCM LIMITED,SP0004572
WANDSWORTH COUNCIL,CS,,DIRECT2,Revenue,AGENCY STAFF,128000510,23/11/2015,805887,"12,052.19",MATRIX SCM LIMITED,SP0004572
WANDSWORTH COUNCIL,CS,,INDIRECT,Revenue,STAFF ADVERTISING - VACANCIES,128000960,04/11/2015,790262,"3,141.06",PENNA PLC,SP0006290
WANDSWORTH COUNCIL,CS,,INDIRECT,Revenue,STAFF ADVERTISING - VACANCIES,128000960,13/11/2015,800059,"1,713.75",PENNA PLC,SP0006290
WANDSWORTH COUNCIL,CS,,INDIRECT,Revenue,STAFF ADVERTISING - VACANCIES,128000960,19/11/2015,804751,"2,100.00",PENNA PLC,SP0006290
WANDSWORTH COUNCIL,CS,,INDIRECT,Revenue,STAFF ADVERTISING - VACANCIES,128000960,19/11/2015,804759,696.50,PENNA PLC,SP0006290
WANDSWORTH COUNCIL,CS,,INDIRECT,Revenue,STAFF ADVERTISING - VACANCIES,128000960,19/11/2015,804760,"1,534.45",PENNA PLC,SP0006290
WANDSWORTH COUNCIL,CS,,INDIRECT,Revenue,STAFF ADVERTISING - VACANCIES,128000960,25/11/2015,809641,"4,020.10",PENNA PLC,SP0006290
WANDSWORTH COUNCIL,CS,,INDIRECT,Revenue,STAFF ADVERTISING - VACANCIES,128000960,25/11/2015,809642,"4,020.10",PENNA PLC,SP0006290
WANDSWORTH COUNCIL,CS,,PRINTING STAT & GEN OFFICE EXP,Revenue,PUBLICITY,12803347K01877,12/11/2015,798831,563.20,NEWSQUEST MEDIA GROUP,SP0002120
WANDSWORTH COUNCIL,CS,,HEALTH,Revenue,THIRD PARTY PYMT - HEALTH,128041130,19/11/2015,805828,"4,063.00",GLENHAZEL LTD T/A BARKERS CHEMIST FMW60,SP0008163
WANDSWORTH COUNCIL,CS,,HEALTH,Revenue,THIRD PARTY PYMT - HEALTH,128041130,19/11/2015,805829,"4,327.50",GLENHAZEL LTD T/A BARKERS CHEMIST FMW60,SP0008163
WANDSWORTH COUNCIL,CS,,HEALTH,Revenue,THIRD PARTY PYMT - HEALTH,128041130,19/11/2015,805830,"3,985.00",GLENHAZEL LTD T/A BARKERS CHEMIST FMW60,SP0008163
WANDSWORTH COUNCIL,CS,,HEALTH,Revenue,THIRD PARTY PYMT - HEALTH,128041130,23/11/2015,806032,"3,005.00",GLENHAZEL LTD T/A BARKERS CHEMIST FMW60,SP0008163
WANDSWORTH COUNCIL,ASC,SOCIAL SERVICES,HIRE,Revenue,HIRE - TRANSPORT,130020410,20/11/2015,807059,"1,270.00",A STAR TRANSPORT LTD,SP0000866
WANDSWORTH COUNCIL,ASC,SOCIAL SERVICES,HIRE,Revenue,HIRE - TRANSPORT,130020410,12/11/2015,800449,"1,957.50",BECKETT CORPORATION LTD T/A TINAS CARS,SP0000729
WANDSWORTH COUNCIL,ASC,SOCIAL SERVICES,PRIVATE,Revenue,ONE TO ONE CARE,130046220,24/11/2015,809971,215.43,METROPOLITAN HOUSING TRUST,SP0000626
WANDSWORTH COUNCIL,ASC,SOCIAL SERVICES,HIRE,Revenue,HIRE - TRANSPORT,130220410,06/11/2015,793966,812.00,A STAR TRANSPORT LTD,SP0000866
WANDSWORTH COUNCIL,ASC,SOCIAL SERVICES,HIRE,Revenue,HIRE - TRANSPORT,130220410,12/11/2015,800482,798.00,A STAR TRANSPORT LTD,SP0000866
WANDSWORTH COUNCIL,ASC,SOCIAL SERVICES,HIRE,Revenue,HIRE - TRANSPORT,130220410,12/11/2015,800483,596.00,A STAR TRANSPORT LTD,SP0000866
WANDSWORTH COUNCIL,ASC,SOCIAL SERVICES,HIRE,Revenue,HIRE - TRANSPORT,130220410,12/11/2015,800485,"2,520.00",A STAR TRANSPORT LTD,SP0000866
WANDSWORTH COUNCIL,ASC,SOCIAL SERVICES,HIRE,Revenue,HIRE - TRANSPORT,130220410,17/11/2015,803904,"1,620.00",A STAR TRANSPORT LTD,SP0000866
WANDSWORTH COUNCIL,ASC,SOCIAL SERVICES,HIRE,Revenue,HIRE - TRANSPORT,130220410,20/11/2015,807009,"1,008.00",A STAR TRANSPORT LTD,SP0000866
WANDSWORTH COUNCIL,ASC,SOCIAL SERVICES,HIRE,Revenue,HIRE - TRANSPORT,130220410,20/11/2015,807011,852.50,A STAR TRANSPORT LTD,SP0000866
WANDSWORTH COUNCIL,ASC,SOCIAL SERVICES,HIRE,Revenue,HIRE - TRANSPORT,130220410,20/11/2015,807012,598.50,A STAR TRANSPORT LTD,SP0000866
WANDSWORTH COUNCIL,ASC,SOCIAL SERVICES,HIRE,Revenue,HIRE - TRANSPORT,130220410,20/11/2015,807013,336.00,A STAR TRANSPORT LTD,SP0000866
WANDSWORTH COUNCIL,ASC,SOCIAL SERVICES,HIRE,Revenue,HIRE - TRANSPORT,130220410,20/11/2015,807015,520.00,A STAR TRANSPORT LTD,SP0000866
WANDSWORTH COUNCIL,ASC,SOCIAL SERVICES,HIRE,Revenue,HIRE - TRANSPORT,130220410,20/11/2015,807017,564.00,A STAR TRANSPORT LTD,SP0000866
WANDSWORTH COUNCIL,ASC,SOCIAL SERVICES,HIRE,Revenue,HIRE - TRANSPORT,130220410,20/11/2015,807018,568.00,A STAR TRANSPORT LTD,SP0000866
WANDSWORTH COUNCIL,ASC,SOCIAL SERVICES,HIRE,Revenue,HIRE - TRANSPORT,130220410,20/11/2015,807019,880.00,A STAR TRANSPORT LTD,SP0000866
WANDSWORTH COUNCIL,ASC,SOCIAL SERVICES,HIRE,Revenue,HIRE - TRANSPORT,130220410,20/11/2015,807021,"1,280.00",A STAR TRANSPORT LTD,SP0000866
WANDSWORTH COUNCIL,ASC,SOCIAL SERVICES,HIRE,Revenue,HIRE - TRANSPORT,130220410,20/11/2015,807025,"1,000.00",A STAR TRANSPORT LTD,SP0000866
WANDSWORTH COUNCIL,ASC,SOCIAL SERVICES,HIRE,Revenue,HIRE - TRANSPORT,130220410,20/11/2015,807026,600.00,A STAR TRANSPORT LTD,SP0000866
WANDSWORTH COUNCIL,ASC,SOCIAL SERVICES,HIRE,Revenue,HIRE - TRANSPORT,130220410,20/11/2015,807032,906.00,A STAR TRANSPORT LTD,SP0000866
WANDSWORTH COUNCIL,ASC,SOCIAL SERVICES,HIRE,Revenue,HIRE - TRANSPORT,130220410,20/11/2015,807035,882.00,A STAR TRANSPORT LTD,SP0000866
WANDSWORTH COUNCIL,ASC,SOCIAL SERVICES,HIRE,Revenue,HIRE - TRANSPORT,130220410,20/11/2015,807036,"1,033.60",A STAR TRANSPORT LTD,SP0000866
WANDSWORTH COUNCIL,ASC,SOCIAL SERVICES,HIRE,Revenue,HIRE - TRANSPORT,130220410,20/11/2015,807037,"1,033.20",A STAR TRANSPORT LTD,SP0000866
WANDSWORTH COUNCIL,ASC,SOCIAL SERVICES,HIRE,Revenue,HIRE - TRANSPORT,130220410,20/11/2015,807039,"2,094.00",A STAR TRANSPORT LTD,SP0000866
WANDSWORTH COUNCIL,ASC,SOCIAL SERVICES,HIRE,Revenue,HIRE - TRANSPORT,130220410,20/11/2015,807040,"1,158.00",A STAR TRANSPORT LTD,SP0000866
WANDSWORTH COUNCIL,ASC,SOCIAL SERVICES,HIRE,Revenue,HIRE - TRANSPORT,130220410,20/11/2015,807041,"1,140.00",A STAR TRANSPORT LTD,SP0000866
WANDSWORTH COUNCIL,ASC,SOCIAL SERVICES,HIRE,Revenue,HIRE - TRANSPORT,130220410,20/11/2015,807042,717.56,A STAR TRANSPORT LTD,SP0000866
WANDSWORTH COUNCIL,ASC,SOCIAL SERVICES,HIRE,Revenue,HIRE - TRANSPORT,130220410,20/11/2015,807043,624.00,A STAR TRANSPORT LTD,SP0000866
WANDSWORTH COUNCIL,ASC,SOCIAL SERVICES,HIRE,Revenue,HIRE - TRANSPORT,130220410,20/11/2015,807044,"1,209.00",A STAR TRANSPORT LTD,SP0000866
WANDSWORTH COUNCIL,ASC,SOCIAL SERVICES,HIRE,Revenue,HIRE - TRANSPORT,130220410,20/11/2015,807046,426.00,A STAR TRANSPORT LTD,SP0000866
WANDSWORTH COUNCIL,ASC,SOCIAL SERVICES,HIRE,Revenue,HIRE - TRANSPORT,130220410,20/11/2015,807050,"1,350.00",A STAR TRANSPORT LTD,SP0000866
WANDSWORTH COUNCIL,ASC,SOCIAL SERVICES,HIRE,Revenue,HIRE - TRANSPORT,130220410,20/11/2015,807051,594.27,A STAR TRANSPORT LTD,SP0000866
WANDSWORTH COUNCIL,ASC,SOCIAL SERVICES,HIRE,Revenue,HIRE - TRANSPORT,130220410,20/11/2015,807054,528.00,A STAR TRANSPORT LTD,SP0000866
WANDSWORTH COUNCIL,ASC,SOCIAL SERVICES,HIRE,Revenue,HIRE - TRANSPORT,130220410,20/11/2015,807060,630.00,A STAR TRANSPORT LTD,SP0000866
WANDSWORTH COUNCIL,ASC,SOCIAL SERVICES,HIRE,Revenue,HIRE - TRANSPORT,130220410,20/11/2015,807061,630.00,A STAR TRANSPORT LTD,SP0000866
WANDSWORTH COUNCIL,ASC,SOCIAL SERVICES,HIRE,Revenue,HIRE - TRANSPORT,130220410,20/11/2015,807064,573.80,A STAR TRANSPORT LTD,SP0000866
WANDSWORTH COUNCIL,ASC,SOCIAL SERVICES,HIRE,Revenue,HIRE - TRANSPORT,130220410,20/11/2015,807068,546.36,A STAR TRANSPORT LTD,SP0000866
WANDSWORTH COUNCIL,ASC,SOCIAL SERVICES,HIRE,Revenue,HIRE - TRANSPORT,130220410,20/11/2015,807071,566.28,A STAR TRANSPORT LTD,SP0000866
WANDSWORTH COUNCIL,ASC,SOCIAL SERVICES,HIRE,Revenue,HIRE - TRANSPORT,130220410,30/11/2015,814685,676.00,A STAR TRANSPORT LTD,SP0000866
WANDSWORTH COUNCIL,ASC,SOCIAL SERVICES,HIRE,Revenue,HIRE - TRANSPORT,130220410,11/11/2015,798950,512.79,ADDISON LEE LTD,SP0003268
WANDSWORTH COUNCIL,ASC,SOCIAL SERVICES,HIRE,Revenue,HIRE - TRANSPORT,130220410,11/11/2015,798953,741.65,ADDISON LEE LTD,SP0003268
WANDSWORTH COUNCIL,ASC,SOCIAL SERVICES,HIRE,Revenue,HIRE - TRANSPORT,130220410,12/11/2015,800445,512.40,BECKETT CORPORATION LTD T/A TINAS CARS,SP0000729
WANDSWORTH COUNCIL,ASC,SOCIAL SERVICES,HIRE,Revenue,HIRE - TRANSPORT,130220410,12/11/2015,800448,788.50,BECKETT CORPORATION LTD T/A TINAS CARS,SP0000729
WANDSWORTH COUNCIL,ASC,SOCIAL SERVICES,HIRE,Revenue,HIRE - TRANSPORT,130220410,12/11/2015,800451,472.80,BECKETT CORPORATION LTD T/A TINAS CARS,SP0000729
WANDSWORTH COUNCIL,ASC,SOCIAL SERVICES,HIRE,Revenue,HIRE - TRANSPORT,130220410,12/11/2015,800452,527.27,BECKETT CORPORATION LTD T/A TINAS CARS,SP0000729
WANDSWORTH COUNCIL,ASC,SOCIAL SERVICES,HIRE,Revenue,HIRE - TRANSPORT,130220410,12/11/2015,800453,171.40,BECKETT CORPORATION LTD T/A TINAS CARS,SP0000729
WANDSWORTH COUNCIL,ASC,SOCIAL SERVICES,HIRE,Revenue,HIRE - TRANSPORT,130220410,12/11/2015,800454,472.80,BECKETT CORPORATION LTD T/A TINAS CARS,SP0000729
WANDSWORTH COUNCIL,ASC,SOCIAL SERVICES,HIRE,Revenue,HIRE - TRANSPORT,130220410,12/11/2015,800455,613.40,BECKETT CORPORATION LTD T/A TINAS CARS,SP0000729
WANDSWORTH COUNCIL,ASC,SOCIAL SERVICES,HIRE,Revenue,HIRE - TRANSPORT,130220410,12/11/2015,800456,540.00,BECKETT CORPORATION LTD T/A TINAS CARS,SP0000729
WANDSWORTH COUNCIL,ASC,SOCIAL SERVICES,HIRE,Revenue,HIRE - TRANSPORT,130220410,12/11/2015,800457,"2,085.75",BECKETT CORPORATION LTD T/A TINAS CARS,SP0000729
WANDSWORTH COUNCIL,ASC,SOCIAL SERVICES,HIRE,Revenue,HIRE - TRANSPORT,130220410,12/11/2015,800458,975.00,BECKETT CORPORATION LTD T/A TINAS CARS,SP0000729
WANDSWORTH COUNCIL,ASC,SOCIAL SERVICES,HIRE,Revenue,HIRE - TRANSPORT,130220410,12/11/2015,800459,"1,360.00",BECKETT CORPORATION LTD T/A TINAS CARS,SP0000729
WANDSWORTH COUNCIL,ASC,SOCIAL SERVICES,HIRE,Revenue,HIRE - TRANSPORT,130220410,12/11/2015,800460,"1,432.50",BECKETT CORPORATION LTD T/A TINAS CARS,SP0000729
WANDSWORTH COUNCIL,ASC,SOCIAL SERVICES,HIRE,Revenue,HIRE - TRANSPORT,130220410,12/11/2015,800461,"1,200.00",BECKETT CORPORATION LTD T/A TINAS CARS,SP0000729
WANDSWORTH COUNCIL,ASC,SOCIAL SERVICES,HIRE,Revenue,HIRE - TRANSPORT,130220410,24/11/2015,810291,"1,320.00",BECKETT CORPORATION LTD T/A TINAS CARS,SP0000729
WANDSWORTH COUNCIL,ASC,SOCIAL SERVICES,HIRE,Revenue,HIRE - TRANSPORT,130220410,30/11/2015,814681,"1,760.00",BECKETT CORPORATION LTD T/A TINAS CARS,SP0000729
WANDSWORTH COUNCIL,ASC,SOCIAL SERVICES,HIRE,Revenue,NEW TRANSPORT CONTRACT,130220430,20/11/2015,807013,240.00,A STAR TRANSPORT LTD,SP0000866
WANDSWORTH COUNCIL,ASC,SOCIAL SERVICES,HIRE,Revenue,NEW TRANSPORT CONTRACT,130220430,12/11/2015,800450,"1,957.50",BECKETT CORPORATION LTD T/A TINAS CARS,SP0000729
WANDSWORTH COUNCIL,ASC,SOCIAL SERVICES,HIRE,Revenue,NEW TRANSPORT CONTRACT,130220430,12/11/2015,800453,459.40,BECKETT CORPORATION LTD T/A TINAS CARS,SP0000729
WANDSWORTH COUNCIL,ASC,SOCIAL SERVICES,SERVICES,Revenue,TRAVEL BUDDY SCHEME,130234970,10/11/2015,796535,795.46,HARINGEY ASSOCIATION FOR INDEPENDENT LIV,SP0000222
WANDSWORTH COUNCIL,ASC,SOCIAL SERVICES,SERVICES,Revenue,TRAVEL BUDDY SCHEME,130234970,10/11/2015,796536,728.18,HARINGEY ASSOCIATION FOR INDEPENDENT LIV,SP0000222
WANDSWORTH COUNCIL,ASC,SOCIAL SERVICES,SERVICES,Revenue,TRAVEL BUDDY SCHEME,130234970,10/11/2015,796539,573.84,HARINGEY ASSOCIATION FOR INDEPENDENT LIV,SP0000222
WANDSWORTH COUNCIL,ASC,SOCIAL SERVICES,SERVICES,Revenue,TRAVEL BUDDY SCHEME,130234970,10/11/2015,796541,633.20,HARINGEY ASSOCIATION FOR INDEPENDENT LIV,SP0000222
WANDSWORTH COUNCIL,ASC,SOCIAL SERVICES,SERVICES,Revenue,TRAVEL BUDDY SCHEME,130234970,10/11/2015,796549,730.82,HARINGEY ASSOCIATION FOR INDEPENDENT LIV,SP0000222
WANDSWORTH COUNCIL,ASC,SOCIAL SERVICES,SERVICES,Revenue,TRAVEL BUDDY SCHEME,130234970,10/11/2015,796551,522.39,HARINGEY ASSOCIATION FOR INDEPENDENT LIV,SP0000222
WANDSWORTH COUNCIL,ASC,SOCIAL SERVICES,SERVICES,Revenue,TRAVEL BUDDY SCHEME,130234970,10/11/2015,796554,532.94,HARINGEY ASSOCIATION FOR INDEPENDENT LIV,SP0000222
WANDSWORTH COUNCIL,ASC,SOCIAL SERVICES,SERVICES,Revenue,TRAVEL BUDDY SCHEME,130234970,10/11/2015,796557,593.63,HARINGEY ASSOCIATION FOR INDEPENDENT LIV,SP0000222
WANDSWORTH COUNCIL,ASC,SOCIAL SERVICES,SERVICES,Revenue,TRAVEL BUDDY SCHEME,130234970,10/11/2015,796559,641.12,HARINGEY ASSOCIATION FOR INDEPENDENT LIV,SP0000222
WANDSWORTH COUNCIL,ASC,SOCIAL SERVICES,SERVICES,Revenue,TRAVEL BUDDY SCHEME,130234970,10/11/2015,796560,577.80,HARINGEY ASSOCIATION FOR INDEPENDENT LIV,SP0000222
WANDSWORTH COUNCIL,ASC,SOCIAL SERVICES,SERVICES,Revenue,TRAVEL BUDDY SCHEME,130234970,10/11/2015,796562,594.94,HARINGEY ASSOCIATION FOR INDEPENDENT LIV,SP0000222
WANDSWORTH COUNCIL,ASC,SOCIAL SERVICES,SERVICES,Revenue,TRAVEL BUDDY SCHEME,130234970,10/11/2015,796566,569.88,HARINGEY ASSOCIATION FOR INDEPENDENT LIV,SP0000222
WANDSWORTH COUNCIL,ASC,SOCIAL SERVICES,SERVICES,Revenue,TRAVEL BUDDY SCHEME,130234970,10/11/2015,796568,506.56,HARINGEY ASSOCIATION FOR INDEPENDENT LIV,SP0000222
WANDSWORTH COUNCIL,ASC,SOCIAL SERVICES,SERVICES,Revenue,TRAVEL BUDDY SCHEME,130234970,10/11/2015,796570,502.60,HARINGEY ASSOCIATION FOR INDEPENDENT LIV,SP0000222
WANDSWORTH COUNCIL,ASC,SOCIAL SERVICES,SERVICES,Revenue,TRAVEL BUDDY SCHEME,130234970,10/11/2015,796574,759.84,HARINGEY ASSOCIATION FOR INDEPENDENT LIV,SP0000222
WANDSWORTH COUNCIL,ASC,SOCIAL SERVICES,SERVICES,Revenue,TRAVEL BUDDY SCHEME,130234970,10/11/2015,796582,510.52,HARINGEY ASSOCIATION FOR INDEPENDENT LIV,SP0000222
WANDSWORTH COUNCIL,ASC,SOCIAL SERVICES,SERVICES,Revenue,TRAVEL BUDDY SCHEME,130234970,10/11/2015,796585,569.88,HARINGEY ASSOCIATION FOR INDEPENDENT LIV,SP0000222
WANDSWORTH COUNCIL,ASC,SOCIAL SERVICES,SERVICES,Revenue,TRAVEL BUDDY SCHEME,130234970,12/11/2015,800415,601.54,HARINGEY ASSOCIATION FOR INDEPENDENT LIV,SP0000222
WANDSWORTH COUNCIL,ASC,SOCIAL SERVICES,SERVICES,Revenue,TRAVEL BUDDY SCHEME,130234970,12/11/2015,800416,585.71,HARINGEY ASSOCIATION FOR INDEPENDENT LIV,SP0000222
WANDSWORTH COUNCIL,ASC,SOCIAL SERVICES,SERVICES,Revenue,TRAVEL BUDDY SCHEME,130234970,12/11/2015,800428,593.63,HARINGEY ASSOCIATION FOR INDEPENDENT LIV,SP0000222
WANDSWORTH COUNCIL,ASC,SOCIAL SERVICES,SERVICES,Revenue,TRAVEL BUDDY SCHEME,130234970,12/11/2015,800431,601.54,HARINGEY ASSOCIATION FOR INDEPENDENT LIV,SP0000222
WANDSWORTH COUNCIL,ASC,SOCIAL SERVICES,SERVICES,Revenue,TRAVEL BUDDY SCHEME,130234970,12/11/2015,800434,649.03,HARINGEY ASSOCIATION FOR INDEPENDENT LIV,SP0000222
WANDSWORTH COUNCIL,ASC,SOCIAL SERVICES,SERVICES,Revenue,TRAVEL BUDDY SCHEME,130234970,12/11/2015,800440,511.84,HARINGEY ASSOCIATION FOR INDEPENDENT LIV,SP0000222
WANDSWORTH COUNCIL,ASC,SOCIAL SERVICES,SERVICES,Revenue,TRAVEL BUDDY SCHEME,130234970,19/11/2015,806080,806.54,SOUTHSIDE PARTNERSHIP,SP0000692
WANDSWORTH COUNCIL,ASC,SOCIAL SERVICES,SERVICES,Revenue,TRAVEL BUDDY SCHEME,130234970,19/11/2015,806081,521.60,SOUTHSIDE PARTNERSHIP,SP0000692
WANDSWORTH COUNCIL,ASC,SOCIAL SERVICES,SERVICES,Revenue,TRAVEL BUDDY SCHEME,130234970,19/11/2015,806083,717.20,SOUTHSIDE PARTNERSHIP,SP0000692
WANDSWORTH COUNCIL,ASC,SOCIAL SERVICES,SERVICES,Revenue,TRAVEL BUDDY SCHEME,130234970,19/11/2015,806084,717.20,SOUTHSIDE PARTNERSHIP,SP0000692
WANDSWORTH COUNCIL,ASC,SOCIAL SERVICES,HEALTH,Revenue,EXTERNAL RESIDENTIAL CARE S28A,130241080,11/11/2015,799494,"6,983.10",PROGRESS HOUSING LULWORTH,SP0000921
WANDSWORTH COUNCIL,ASC,SOCIAL SERVICES,HEALTH,Revenue,EXT RES S28A OLD LONG STAY,130241110,20/11/2015,806968,"4,351.72",ANTHONY TOBY HOMES TRUST,SP0000755
WANDSWORTH COUNCIL,ASC,SOCIAL SERVICES,HEALTH,Revenue,EXT RES S28A OLD LONG STAY,130241110,05/11/2015,792950,"2,690.16",ASHTON CARE,SP0000695
WANDSWORTH COUNCIL,ASC,SOCIAL SERVICES,HEALTH,Revenue,EXT RES S28A OLD LONG STAY,130241110,26/11/2015,813078,"2,690.16",ASHTON CARE,SP0000695
WANDSWORTH COUNCIL,ASC,SOCIAL SERVICES,HEALTH,Revenue,EXT RES S28A OLD LONG STAY,130241110,13/11/2015,801565,"2,975.96",ELEANOR NURSING & SOCIAL CARE,SP0000110
WANDSWORTH COUNCIL,ASC,SOCIAL SERVICES,HEALTH,Revenue,EXT RES S28A OLD LONG STAY,130241110,10/11/2015,798107,"4,709.79",METROPOLITAN HOUSING TRUST,SP0000626
WANDSWORTH COUNCIL,ASC,SOCIAL SERVICES,HEALTH,Revenue,EXT RES S28A OLD LONG STAY,130241110,05/11/2015,792952,"4,807.45",THE COMMUNITY CARE COMPANY UK LTD,SP0000576
WANDSWORTH COUNCIL,ASC,SOCIAL SERVICES,HEALTH,Revenue,EXT RES S28A OLD LONG STAY,130241110,11/11/2015,799490,"4,738.08",THE COMMUNITY CARE COMPANY UK LTD,SP0000576
WANDSWORTH COUNCIL,ASC,SOCIAL SERVICES,HEALTH,Revenue,EXT RES S28A OLD LONG STAY,130241110,11/11/2015,799491,"4,896.34",THE COMMUNITY CARE COMPANY UK LTD,SP0000576
WANDSWORTH COUNCIL,ASC,SOCIAL SERVICES,OTHER AGENCIES,Revenue,ENABLERS/EDUCATION FEES,130243280,24/11/2015,810080,"15,230.21",ST  JOHN'S SCHOOL & COLLEGE,SP0001374
WANDSWORTH COUNCIL,ASC,SOCIAL SERVICES,OTHER AGENCIES,Revenue,EXTERNAL LODGINGS,130243320,12/11/2015,800412,"1,085.00",M RAZA T/A CLOCK HOUSE HOTEL,SP0001280
WANDSWORTH COUNCIL,ASC,SOCIAL SERVICES,OTHER AGENCIES,Revenue,EXTERNAL OUTREACH,130243330,06/11/2015,793945,"2,185.32",C M CARE LTD,SP0000455
WANDSWORTH COUNCIL,ASC,SOCIAL SERVICES,OTHER AGENCIES,Revenue,EXTERNAL OUTREACH,130243330,06/11/2015,793948,"1,287.20",C M CARE LTD,SP0000455
WANDSWORTH COUNCIL,ASC,SOCIAL SERVICES,OTHER AGENCIES,Revenue,EXTERNAL OUTREACH,130243330,06/11/2015,793950,576.00,C M CARE LTD,SP0000455
WANDSWORTH COUNCIL,ASC,SOCIAL SERVICES,OTHER AGENCIES,Revenue,EXTERNAL OUTREACH,130243330,06/11/2015,793951,"1,540.00",C M CARE LTD,SP0000455
WANDSWORTH COUNCIL,ASC,SOCIAL SERVICES,OTHER AGENCIES,Revenue,EXTERNAL OUTREACH,130243330,26/11/2015,813196,"2,033.88",GENERATE OPPORTUNITIES LTD,SP0000503
WANDSWORTH COUNCIL,ASC,SOCIAL SERVICES,OTHER AGENCIES,Revenue,EXTERNAL OUTREACH,130243330,30/11/2015,814653,299.10,GENERATE OPPORTUNITIES LTD,SP0000503
WANDSWORTH COUNCIL,ASC,SOCIAL SERVICES,OTHER AGENCIES,Revenue,EXTERNAL OUTREACH,130243330,30/11/2015,814654,697.00,GENERATE OPPORTUNITIES LTD,SP0000503
WANDSWORTH COUNCIL,ASC,SOCIAL SERVICES,OTHER AGENCIES,Revenue,EXTERNAL OUTREACH,130243330,30/11/2015,814660,797.60,GENERATE OPPORTUNITIES LTD,SP0000503
WANDSWORTH COUNCIL,ASC,SOCIAL SERVICES,OTHER AGENCIES,Revenue,EXTERNAL OUTREACH,130243330,10/11/2015,796517,506.56,HARINGEY ASSOCIATION FOR INDEPENDENT LIV,SP0000222
WANDSWORTH COUNCIL,ASC,SOCIAL SERVICES,OTHER AGENCIES,Revenue,EXTERNAL OUTREACH,130243330,10/11/2015,796518,753.60,HARINGEY ASSOCIATION FOR INDEPENDENT LIV,SP0000222
WANDSWORTH COUNCIL,ASC,SOCIAL SERVICES,OTHER AGENCIES,Revenue,EXTERNAL OUTREACH,130243330,10/11/2015,796521,628.00,HARINGEY ASSOCIATION FOR INDEPENDENT LIV,SP0000222
WANDSWORTH COUNCIL,ASC,SOCIAL SERVICES,OTHER AGENCIES,Revenue,EXTERNAL OUTREACH,130243330,27/11/2015,813868,633.20,HARINGEY ASSOCIATION FOR INDEPENDENT LIV,SP0000222
WANDSWORTH COUNCIL,ASC,SOCIAL SERVICES,OTHER AGENCIES,Revenue,EXTERNAL OUTREACH,130243330,27/11/2015,813870,942.00,HARINGEY ASSOCIATION FOR INDEPENDENT LIV,SP0000222
WANDSWORTH COUNCIL,ASC,SOCIAL SERVICES,OTHER AGENCIES,Revenue,EXTERNAL OUTREACH,130243330,27/11/2015,813873,785.00,HARINGEY ASSOCIATION FOR INDEPENDENT LIV,SP0000222
WANDSWORTH COUNCIL,ASC,SOCIAL SERVICES,OTHER AGENCIES,Revenue,EXTERNAL OUTREACH,130243330,06/11/2015,793920,720.00,LIVE TOO LIMITED,SP0010112
WANDSWORTH COUNCIL,ASC,SOCIAL SERVICES,OTHER AGENCIES,Revenue,EXTERNAL OUTREACH,130243330,26/11/2015,813204,720.00,LIVE TOO LIMITED,SP0010112
WANDSWORTH COUNCIL,ASC,SOCIAL SERVICES,OTHER AGENCIES,Revenue,EXTERNAL OUTREACH,130243330,23/11/2015,807679,515.42,NAS SERVICES LIMITED,SP0000217
WANDSWORTH COUNCIL,ASC,SOCIAL SERVICES,OTHER AGENCIES,Revenue,EXTERNAL OUTREACH,130243330,05/11/2015,792838,950.00,PROTOCOL EDUCATION  LTD,SP0000171
WANDSWORTH COUNCIL,ASC,SOCIAL SERVICES,OTHER AGENCIES,Revenue,EXTERNAL OUTREACH,130243330,10/11/2015,796591,874.00,PROTOCOL EDUCATION  LTD,SP0000171
WANDSWORTH COUNCIL,ASC,SOCIAL SERVICES,OTHER AGENCIES,Revenue,EXTERNAL OUTREACH,130243330,16/11/2015,802456,950.00,PROTOCOL EDUCATION  LTD,SP0000171
WANDSWORTH COUNCIL,ASC,SOCIAL SERVICES,OTHER AGENCIES,Revenue,EXTERNAL OUTREACH,130243330,24/11/2015,809972,950.00,PROTOCOL EDUCATION  LTD,SP0000171
WANDSWORTH COUNCIL,ASC,SOCIAL SERVICES,OTHER AGENCIES,Revenue,EXTERNAL OUTREACH,130243330,27/11/2015,813861,950.00,PROTOCOL EDUCATION  LTD,SP0000171
WANDSWORTH COUNCIL,ASC,SOCIAL SERVICES,OTHER AGENCIES,Revenue,EXTERNAL OUTREACH,130243330,10/11/2015,798251,863.88,RAINBOW MEDICAL SERVICES,SP0000037
WANDSWORTH COUNCIL,ASC,SOCIAL SERVICES,OTHER AGENCIES,Revenue,EXTERNAL OUTREACH,130243330,16/11/2015,802458,456.32,RAINBOW MEDICAL SERVICES,SP0000037
WANDSWORTH COUNCIL,ASC,SOCIAL SERVICES,OTHER AGENCIES,Revenue,EXTERNAL OUTREACH,130243330,04/11/2015,791391,"3,282.86",RELIABLE PERSONNEL LTD,SP0005657
WANDSWORTH COUNCIL,ASC,SOCIAL SERVICES,OTHER AGENCIES,Revenue,EXTERNAL OUTREACH,130243330,10/11/2015,796593,"3,300.00",RELIABLE PERSONNEL LTD,SP0005657
WANDSWORTH COUNCIL,ASC,SOCIAL SERVICES,OTHER AGENCIES,Revenue,EXTERNAL OUTREACH,130243330,23/11/2015,807684,"1,050.00",ROYAL ASSOCIATION FOR DEAF PEOPLE,SP0001251
WANDSWORTH COUNCIL,ASC,SOCIAL SERVICES,OTHER AGENCIES,Revenue,EXTERNAL OUTREACH,130243330,04/11/2015,791377,"2,567.76",SOUTHSIDE PARTNERSHIP,SP0000692
WANDSWORTH COUNCIL,ASC,SOCIAL SERVICES,OTHER AGENCIES,Revenue,EXTERNAL OUTREACH,130243330,04/11/2015,791379,592.56,SOUTHSIDE PARTNERSHIP,SP0000692
WANDSWORTH COUNCIL,ASC,SOCIAL SERVICES,OTHER AGENCIES,Revenue,EXTERNAL OUTREACH,130243330,04/11/2015,791380,526.72,SOUTHSIDE PARTNERSHIP,SP0000692
WANDSWORTH COUNCIL,ASC,SOCIAL SERVICES,OTHER AGENCIES,Revenue,EXTERNAL OUTREACH,130243330,04/11/2015,791381,526.72,SOUTHSIDE PARTNERSHIP,SP0000692
WANDSWORTH COUNCIL,ASC,SOCIAL SERVICES,OTHER AGENCIES,Revenue,EXTERNAL OUTREACH,130243330,04/11/2015,791382,526.72,SOUTHSIDE PARTNERSHIP,SP0000692
WANDSWORTH COUNCIL,ASC,SOCIAL SERVICES,OTHER AGENCIES,Revenue,EXTERNAL OUTREACH,130243330,04/11/2015,791383,526.72,SOUTHSIDE PARTNERSHIP,SP0000692
WANDSWORTH COUNCIL,ASC,SOCIAL SERVICES,OTHER AGENCIES,Revenue,EXTERNAL OUTREACH,130243330,04/11/2015,791384,592.56,SOUTHSIDE PARTNERSHIP,SP0000692
WANDSWORTH COUNCIL,ASC,SOCIAL SERVICES,OTHER AGENCIES,Revenue,EXTERNAL OUTREACH,130243330,04/11/2015,791385,592.56,SOUTHSIDE PARTNERSHIP,SP0000692
WANDSWORTH COUNCIL,ASC,SOCIAL SERVICES,OTHER AGENCIES,Revenue,EXTERNAL OUTREACH,130243330,04/11/2015,791387,592.56,SOUTHSIDE PARTNERSHIP,SP0000692
WANDSWORTH COUNCIL,ASC,SOCIAL SERVICES,OTHER AGENCIES,Revenue,EXTERNAL OUTREACH,130243330,04/11/2015,791388,592.56,SOUTHSIDE PARTNERSHIP,SP0000692
WANDSWORTH COUNCIL,ASC,SOCIAL SERVICES,OTHER AGENCIES,Revenue,EXTERNAL OUTREACH,130243330,04/11/2015,791389,526.72,SOUTHSIDE PARTNERSHIP,SP0000692
WANDSWORTH COUNCIL,ASC,SOCIAL SERVICES,OTHER AGENCIES,Revenue,EXTERNAL OUTREACH,130243330,13/11/2015,801723,592.56,SOUTHSIDE PARTNERSHIP,SP0000692
WANDSWORTH COUNCIL,ASC,SOCIAL SERVICES,OTHER AGENCIES,Revenue,EXTERNAL OUTREACH,130243330,13/11/2015,801724,641.94,SOUTHSIDE PARTNERSHIP,SP0000692
WANDSWORTH COUNCIL,ASC,SOCIAL SERVICES,OTHER AGENCIES,Revenue,EXTERNAL OUTREACH,130243330,13/11/2015,801725,526.72,SOUTHSIDE PARTNERSHIP,SP0000692
WANDSWORTH COUNCIL,ASC,SOCIAL SERVICES,OTHER AGENCIES,Revenue,EXTERNAL OUTREACH,130243330,13/11/2015,801730,641.94,SOUTHSIDE PARTNERSHIP,SP0000692
WANDSWORTH COUNCIL,ASC,SOCIAL SERVICES,OTHER AGENCIES,Revenue,EXTERNAL OUTREACH,130243330,13/11/2015,801735,592.56,SOUTHSIDE PARTNERSHIP,SP0000692
WANDSWORTH COUNCIL,ASC,SOCIAL SERVICES,OTHER AGENCIES,Revenue,EXTERNAL OUTREACH,130243330,04/11/2015,791269,331.20,THE BRANDON TRUST,SP0005337
WANDSWORTH COUNCIL,ASC,SOCIAL SERVICES,OTHER AGENCIES,Revenue,EXTERNAL OUTREACH,130243330,04/11/2015,791283,757.92,THE BRANDON TRUST,SP0005337
WANDSWORTH COUNCIL,ASC,SOCIAL SERVICES,OTHER AGENCIES,Revenue,EXTERNAL OUTREACH,130243330,04/11/2015,791316,631.60,THE BRANDON TRUST,SP0005337
WANDSWORTH COUNCIL,ASC,SOCIAL SERVICES,OTHER AGENCIES,Revenue,EXTERNAL OUTREACH,130243330,04/11/2015,791327,568.44,THE BRANDON TRUST,SP0005337
WANDSWORTH COUNCIL,ASC,SOCIAL SERVICES,OTHER AGENCIES,Revenue,EXTERNAL OUTREACH,130243330,04/11/2015,791328,505.28,THE BRANDON TRUST,SP0005337
WANDSWORTH COUNCIL,ASC,SOCIAL SERVICES,OTHER AGENCIES,Revenue,EXTERNAL OUTREACH,130243330,04/11/2015,791329,189.48,THE BRANDON TRUST,SP0005337
WANDSWORTH COUNCIL,ASC,SOCIAL SERVICES,OTHER AGENCIES,Revenue,EXTERNAL OUTREACH,130243330,04/11/2015,791334,"1,170.80",THE BRANDON TRUST,SP0005337
WANDSWORTH COUNCIL,ASC,SOCIAL SERVICES,OTHER AGENCIES,Revenue,EXTERNAL OUTREACH,130243330,04/11/2015,791353,189.48,THE BRANDON TRUST,SP0005337
WANDSWORTH COUNCIL,ASC,SOCIAL SERVICES,OTHER AGENCIES,Revenue,EXTERNAL OUTREACH,130243330,04/11/2015,791365,694.76,THE BRANDON TRUST,SP0005337
WANDSWORTH COUNCIL,ASC,SOCIAL SERVICES,PRIVATE,Revenue,EXTERNAL DAYCARE,130245290,04/11/2015,791224,554.04,ACT TOO LTD,SP0000855
WANDSWORTH COUNCIL,ASC,SOCIAL SERVICES,PRIVATE,Revenue,EXTERNAL DAYCARE,130245290,04/11/2015,791225,554.04,ACT TOO LTD,SP0000855
WANDSWORTH COUNCIL,ASC,SOCIAL SERVICES,PRIVATE,Revenue,EXTERNAL DAYCARE,130245290,04/11/2015,791227,554.04,ACT TOO LTD,SP0000855
WANDSWORTH COUNCIL,ASC,SOCIAL SERVICES,PRIVATE,Revenue,EXTERNAL DAYCARE,130245290,04/11/2015,791230,923.40,ACT TOO LTD,SP0000855
WANDSWORTH COUNCIL,ASC,SOCIAL SERVICES,PRIVATE,Revenue,EXTERNAL DAYCARE,130245290,04/11/2015,791231,554.04,ACT TOO LTD,SP0000855
WANDSWORTH COUNCIL,ASC,SOCIAL SERVICES,PRIVATE,Revenue,EXTERNAL DAYCARE,130245290,04/11/2015,791238,923.40,ACT TOO LTD,SP0000855
WANDSWORTH COUNCIL,ASC,SOCIAL SERVICES,PRIVATE,Revenue,EXTERNAL DAYCARE,130245290,04/11/2015,791240,554.04,ACT TOO LTD,SP0000855
WANDSWORTH COUNCIL,ASC,SOCIAL SERVICES,PRIVATE,Revenue,EXTERNAL DAYCARE,130245290,04/11/2015,791243,923.40,ACT TOO LTD,SP0000855
WANDSWORTH COUNCIL,ASC,SOCIAL SERVICES,PRIVATE,Revenue,EXTERNAL DAYCARE,130245290,04/11/2015,791244,554.04,ACT TOO LTD,SP0000855
WANDSWORTH COUNCIL,ASC,SOCIAL SERVICES,PRIVATE,Revenue,EXTERNAL DAYCARE,130245290,04/11/2015,791245,"1,108.08",ACT TOO LTD,SP0000855
WANDSWORTH COUNCIL,ASC,SOCIAL SERVICES,PRIVATE,Revenue,EXTERNAL DAYCARE,130245290,04/11/2015,791246,738.72,ACT TOO LTD,SP0000855
WANDSWORTH COUNCIL,ASC,SOCIAL SERVICES,PRIVATE,Revenue,EXTERNAL DAYCARE,130245290,04/11/2015,791249,554.04,ACT TOO LTD,SP0000855
WANDSWORTH COUNCIL,ASC,SOCIAL SERVICES,PRIVATE,Revenue,EXTERNAL DAYCARE,130245290,04/11/2015,791250,554.04,ACT TOO LTD,SP0000855
WANDSWORTH COUNCIL,ASC,SOCIAL SERVICES,PRIVATE,Revenue,EXTERNAL DAYCARE,130245290,04/11/2015,791253,554.04,ACT TOO LTD,SP0000855
WANDSWORTH COUNCIL,ASC,SOCIAL SERVICES,PRIVATE,Revenue,EXTERNAL DAYCARE,130245290,04/11/2015,791259,738.72,ACT TOO LTD,SP0000855
WANDSWORTH COUNCIL,ASC,SOCIAL SERVICES,PRIVATE,Revenue,EXTERNAL DAYCARE,130245290,10/11/2015,798157,738.72,ACT TOO LTD,SP0000855
WANDSWORTH COUNCIL,ASC,SOCIAL SERVICES,PRIVATE,Revenue,EXTERNAL DAYCARE,130245290,10/11/2015,798160,738.72,ACT TOO LTD,SP0000855
WANDSWORTH COUNCIL,ASC,SOCIAL SERVICES,PRIVATE,Revenue,EXTERNAL DAYCARE,130245290,10/11/2015,798161,738.72,ACT TOO LTD,SP0000855
WANDSWORTH COUNCIL,ASC,SOCIAL SERVICES,PRIVATE,Revenue,EXTERNAL DAYCARE,130245290,10/11/2015,798166,923.40,ACT TOO LTD,SP0000855
WANDSWORTH COUNCIL,ASC,SOCIAL SERVICES,PRIVATE,Revenue,EXTERNAL DAYCARE,130245290,10/11/2015,798169,738.72,ACT TOO LTD,SP0000855
WANDSWORTH COUNCIL,ASC,SOCIAL SERVICES,PRIVATE,Revenue,EXTERNAL DAYCARE,130245290,10/11/2015,798170,738.72,ACT TOO LTD,SP0000855
WANDSWORTH COUNCIL,ASC,SOCIAL SERVICES,PRIVATE,Revenue,EXTERNAL DAYCARE,130245290,10/11/2015,798171,554.04,ACT TOO LTD,SP0000855
WANDSWORTH COUNCIL,ASC,SOCIAL SERVICES,PRIVATE,Revenue,EXTERNAL DAYCARE,130245290,10/11/2015,798175,554.04,ACT TOO LTD,SP0000855
WANDSWORTH COUNCIL,ASC,SOCIAL SERVICES,PRIVATE,Revenue,EXTERNAL DAYCARE,130245290,10/11/2015,798176,554.04,ACT TOO LTD,SP0000855
WANDSWORTH COUNCIL,ASC,SOCIAL SERVICES,PRIVATE,Revenue,EXTERNAL DAYCARE,130245290,10/11/2015,798177,554.04,ACT TOO LTD,SP0000855
WANDSWORTH COUNCIL,ASC,SOCIAL SERVICES,PRIVATE,Revenue,EXTERNAL DAYCARE,130245290,10/11/2015,798178,554.04,ACT TOO LTD,SP0000855
WANDSWORTH COUNCIL,ASC,SOCIAL SERVICES,PRIVATE,Revenue,EXTERNAL DAYCARE,130245290,10/11/2015,798180,"1,108.08",ACT TOO LTD,SP0000855
WANDSWORTH COUNCIL,ASC,SOCIAL SERVICES,PRIVATE,Revenue,EXTERNAL DAYCARE,130245290,10/11/2015,798182,738.72,ACT TOO LTD,SP0000855
WANDSWORTH COUNCIL,ASC,SOCIAL SERVICES,PRIVATE,Revenue,EXTERNAL DAYCARE,130245290,10/11/2015,798183,738.72,ACT TOO LTD,SP0000855
WANDSWORTH COUNCIL,ASC,SOCIAL SERVICES,PRIVATE,Revenue,EXTERNAL DAYCARE,130245290,10/11/2015,798184,554.04,ACT TOO LTD,SP0000855
WANDSWORTH COUNCIL,ASC,SOCIAL SERVICES,PRIVATE,Revenue,EXTERNAL DAYCARE,130245290,10/11/2015,798188,554.04,ACT TOO LTD,SP0000855
WANDSWORTH COUNCIL,ASC,SOCIAL SERVICES,PRIVATE,Revenue,EXTERNAL DAYCARE,130245290,10/11/2015,798192,554.04,ACT TOO LTD,SP0000855
WANDSWORTH COUNCIL,ASC,SOCIAL SERVICES,PRIVATE,Revenue,EXTERNAL DAYCARE,130245290,30/11/2015,814570,738.72,ACT TOO LTD,SP0000855
WANDSWORTH COUNCIL,ASC,SOCIAL SERVICES,PRIVATE,Revenue,EXTERNAL DAYCARE,130245290,30/11/2015,814573,738.72,ACT TOO LTD,SP0000855
WANDSWORTH COUNCIL,ASC,SOCIAL SERVICES,PRIVATE,Revenue,EXTERNAL DAYCARE,130245290,30/11/2015,814574,738.72,ACT TOO LTD,SP0000855
WANDSWORTH COUNCIL,ASC,SOCIAL SERVICES,PRIVATE,Revenue,EXTERNAL DAYCARE,130245290,30/11/2015,814579,923.40,ACT TOO LTD,SP0000855
WANDSWORTH COUNCIL,ASC,SOCIAL SERVICES,PRIVATE,Revenue,EXTERNAL DAYCARE,130245290,30/11/2015,814582,738.72,ACT TOO LTD,SP0000855
WANDSWORTH COUNCIL,ASC,SOCIAL SERVICES,PRIVATE,Revenue,EXTERNAL DAYCARE,130245290,30/11/2015,814583,738.72,ACT TOO LTD,SP0000855
WANDSWORTH COUNCIL,ASC,SOCIAL SERVICES,PRIVATE,Revenue,EXTERNAL DAYCARE,130245290,30/11/2015,814584,738.72,ACT TOO LTD,SP0000855
WANDSWORTH COUNCIL,ASC,SOCIAL SERVICES,PRIVATE,Revenue,EXTERNAL DAYCARE,130245290,30/11/2015,814588,554.04,ACT TOO LTD,SP0000855
WANDSWORTH COUNCIL,ASC,SOCIAL SERVICES,PRIVATE,Revenue,EXTERNAL DAYCARE,130245290,30/11/2015,814589,554.04,ACT TOO LTD,SP0000855
WANDSWORTH COUNCIL,ASC,SOCIAL SERVICES,PRIVATE,Revenue,EXTERNAL DAYCARE,130245290,30/11/2015,814590,554.04,ACT TOO LTD,SP0000855
WANDSWORTH COUNCIL,ASC,SOCIAL SERVICES,PRIVATE,Revenue,EXTERNAL DAYCARE,130245290,30/11/2015,814591,554.04,ACT TOO LTD,SP0000855
WANDSWORTH COUNCIL,ASC,SOCIAL SERVICES,PRIVATE,Revenue,EXTERNAL DAYCARE,130245290,30/11/2015,814593,"1,108.08",ACT TOO LTD,SP0000855
WANDSWORTH COUNCIL,ASC,SOCIAL SERVICES,PRIVATE,Revenue,EXTERNAL DAYCARE,130245290,30/11/2015,814595,738.72,ACT TOO LTD,SP0000855
WANDSWORTH COUNCIL,ASC,SOCIAL SERVICES,PRIVATE,Revenue,EXTERNAL DAYCARE,130245290,30/11/2015,814596,738.72,ACT TOO LTD,SP0000855
WANDSWORTH COUNCIL,ASC,SOCIAL SERVICES,PRIVATE,Revenue,EXTERNAL DAYCARE,130245290,30/11/2015,814597,554.04,ACT TOO LTD,SP0000855
WANDSWORTH COUNCIL,ASC,SOCIAL SERVICES,PRIVATE,Revenue,EXTERNAL DAYCARE,130245290,30/11/2015,814605,554.04,ACT TOO LTD,SP0000855
WANDSWORTH COUNCIL,ASC,SOCIAL SERVICES,PRIVATE,Revenue,EXTERNAL DAYCARE,130245290,30/11/2015,814606,554.04,ACT TOO LTD,SP0000855
WANDSWORTH COUNCIL,ASC,SOCIAL SERVICES,PRIVATE,Revenue,EXTERNAL DAYCARE,130245290,30/11/2015,814608,554.04,ACT TOO LTD,SP0000855
WANDSWORTH COUNCIL,ASC,SOCIAL SERVICES,PRIVATE,Revenue,EXTERNAL DAYCARE,130245290,30/11/2015,814610,554.04,ACT TOO LTD,SP0000855
WANDSWORTH COUNCIL,ASC,SOCIAL SERVICES,PRIVATE,Revenue,EXTERNAL DAYCARE,130245290,30/11/2015,814611,923.40,ACT TOO LTD,SP0000855
WANDSWORTH COUNCIL,ASC,SOCIAL SERVICES,PRIVATE,Revenue,EXTERNAL DAYCARE,130245290,30/11/2015,814612,554.04,ACT TOO LTD,SP0000855
WANDSWORTH COUNCIL,ASC,SOCIAL SERVICES,PRIVATE,Revenue,EXTERNAL DAYCARE,130245290,30/11/2015,814619,923.40,ACT TOO LTD,SP0000855
WANDSWORTH COUNCIL,ASC,SOCIAL SERVICES,PRIVATE,Revenue,EXTERNAL DAYCARE,130245290,30/11/2015,814621,554.04,ACT TOO LTD,SP0000855
WANDSWORTH COUNCIL,ASC,SOCIAL SERVICES,PRIVATE,Revenue,EXTERNAL DAYCARE,130245290,30/11/2015,814624,923.40,ACT TOO LTD,SP0000855
WANDSWORTH COUNCIL,ASC,SOCIAL SERVICES,PRIVATE,Revenue,EXTERNAL DAYCARE,130245290,30/11/2015,814625,554.04,ACT TOO LTD,SP0000855
WANDSWORTH COUNCIL,ASC,SOCIAL SERVICES,PRIVATE,Revenue,EXTERNAL DAYCARE,130245290,30/11/2015,814626,"1,108.08",ACT TOO LTD,SP0000855
WANDSWORTH COUNCIL,ASC,SOCIAL SERVICES,PRIVATE,Revenue,EXTERNAL DAYCARE,130245290,30/11/2015,814627,738.72,ACT TOO LTD,SP0000855
WANDSWORTH COUNCIL,ASC,SOCIAL SERVICES,PRIVATE,Revenue,EXTERNAL DAYCARE,130245290,30/11/2015,814630,554.04,ACT TOO LTD,SP0000855
WANDSWORTH COUNCIL,ASC,SOCIAL SERVICES,PRIVATE,Revenue,EXTERNAL DAYCARE,130245290,30/11/2015,814634,554.04,ACT TOO LTD,SP0000855
WANDSWORTH COUNCIL,ASC,SOCIAL SERVICES,PRIVATE,Revenue,EXTERNAL DAYCARE,130245290,30/11/2015,814640,738.72,ACT TOO LTD,SP0000855
WANDSWORTH COUNCIL,ASC,SOCIAL SERVICES,PRIVATE,Revenue,EXTERNAL DAYCARE,130245290,30/11/2015,814643,554.04,ACT TOO LTD,SP0000855
WANDSWORTH COUNCIL,ASC,SOCIAL SERVICES,PRIVATE,Revenue,EXTERNAL DAYCARE,130245290,20/11/2015,806987,"1,149.33",ANTHONY TOBY HOMES TRUST,SP0000755
WANDSWORTH COUNCIL,ASC,SOCIAL SERVICES,PRIVATE,Revenue,EXTERNAL DAYCARE,130245290,04/11/2015,791220,914.13,ASHFIELD CARE HOMES LTD,SP0000590
WANDSWORTH COUNCIL,ASC,SOCIAL SERVICES,PRIVATE,Revenue,EXTERNAL DAYCARE,130245290,20/11/2015,806986,806.04,CRAEGMOOR FACILITIES CO LTD,SP0000306
WANDSWORTH COUNCIL,ASC,SOCIAL SERVICES,PRIVATE,Revenue,EXTERNAL DAYCARE,130245290,06/11/2015,795277,973.60,DOLPHIN HOMES LTD,SP0000331
WANDSWORTH COUNCIL,ASC,SOCIAL SERVICES,PRIVATE,Revenue,EXTERNAL DAYCARE,130245290,26/11/2015,813195,973.60,DOLPHIN HOMES LTD,SP0000331
WANDSWORTH COUNCIL,ASC,SOCIAL SERVICES,PRIVATE,Revenue,EXTERNAL DAYCARE,130245290,06/11/2015,795275,892.50,DORSET SCOPE,SP0000591
WANDSWORTH COUNCIL,ASC,SOCIAL SERVICES,PRIVATE,Revenue,EXTERNAL DAYCARE,130245290,06/11/2015,795278,720.00,GENERATE OPPORTUNITIES LTD,SP0000503
WANDSWORTH COUNCIL,ASC,SOCIAL SERVICES,PRIVATE,Revenue,EXTERNAL DAYCARE,130245290,06/11/2015,795279,576.00,GENERATE OPPORTUNITIES LTD,SP0000503
WANDSWORTH COUNCIL,ASC,SOCIAL SERVICES,PRIVATE,Revenue,EXTERNAL DAYCARE,130245290,06/11/2015,795280,576.00,GENERATE OPPORTUNITIES LTD,SP0000503
WANDSWORTH COUNCIL,ASC,SOCIAL SERVICES,PRIVATE,Revenue,EXTERNAL DAYCARE,130245290,10/11/2015,796511,576.00,GENERATE OPPORTUNITIES LTD,SP0000503
WANDSWORTH COUNCIL,ASC,SOCIAL SERVICES,PRIVATE,Revenue,EXTERNAL DAYCARE,130245290,30/11/2015,814651,600.00,GENERATE OPPORTUNITIES LTD,SP0000503
WANDSWORTH COUNCIL,ASC,SOCIAL SERVICES,PRIVATE,Revenue,EXTERNAL DAYCARE,130245290,30/11/2015,814653,700.00,GENERATE OPPORTUNITIES LTD,SP0000503
WANDSWORTH COUNCIL,ASC,SOCIAL SERVICES,PRIVATE,Revenue,EXTERNAL DAYCARE,130245290,30/11/2015,814654,700.00,GENERATE OPPORTUNITIES LTD,SP0000503
WANDSWORTH COUNCIL,ASC,SOCIAL SERVICES,PRIVATE,Revenue,EXTERNAL DAYCARE,130245290,30/11/2015,814655,600.00,GENERATE OPPORTUNITIES LTD,SP0000503
WANDSWORTH COUNCIL,ASC,SOCIAL SERVICES,PRIVATE,Revenue,EXTERNAL DAYCARE,130245290,30/11/2015,814656,720.00,GENERATE OPPORTUNITIES LTD,SP0000503
WANDSWORTH COUNCIL,ASC,SOCIAL SERVICES,PRIVATE,Revenue,EXTERNAL DAYCARE,130245290,30/11/2015,814658,"1,000.00",GENERATE OPPORTUNITIES LTD,SP0000503
WANDSWORTH COUNCIL,ASC,SOCIAL SERVICES,PRIVATE,Revenue,EXTERNAL DAYCARE,130245290,30/11/2015,814659,600.00,GENERATE OPPORTUNITIES LTD,SP0000503
WANDSWORTH COUNCIL,ASC,SOCIAL SERVICES,PRIVATE,Revenue,EXTERNAL DAYCARE,130245290,19/11/2015,806096,602.56,HIGH HURLANDS HOMES,SP0000668
WANDSWORTH COUNCIL,ASC,SOCIAL SERVICES,PRIVATE,Revenue,EXTERNAL DAYCARE,130245290,10/11/2015,796499,650.00,KENT COUNTY COUNCIL (KCC),SP0002270
WANDSWORTH COUNCIL,ASC,SOCIAL SERVICES,PRIVATE,Revenue,EXTERNAL DAYCARE,130245290,10/11/2015,796514,655.59,LUCKETTS FARM LIMNITED T/A THE JOHN GRAH,SP0009847
WANDSWORTH COUNCIL,ASC,SOCIAL SERVICES,PRIVATE,Revenue,EXTERNAL DAYCARE,130245290,13/11/2015,801687,515.52,MENCAP OPEN DOOR,SP0000832
WANDSWORTH COUNCIL,ASC,SOCIAL SERVICES,PRIVATE,Revenue,EXTERNAL DAYCARE,130245290,13/11/2015,801742,504.80,MENCAP OPEN DOOR,SP0000832
WANDSWORTH COUNCIL,ASC,SOCIAL SERVICES,PRIVATE,Revenue,EXTERNAL DAYCARE,130245290,04/11/2015,791261,"2,032.04",NAS SERVICES LIMITED,SP0000217
WANDSWORTH COUNCIL,ASC,SOCIAL SERVICES,PRIVATE,Revenue,EXTERNAL DAYCARE,130245290,05/11/2015,792808,"3,781.40",NAS SERVICES LIMITED,SP0000217
WANDSWORTH COUNCIL,ASC,SOCIAL SERVICES,PRIVATE,Revenue,EXTERNAL DAYCARE,130245290,05/11/2015,792809,"2,314.80",NAS SERVICES LIMITED,SP0000217
WANDSWORTH COUNCIL,ASC,SOCIAL SERVICES,PRIVATE,Revenue,EXTERNAL DAYCARE,130245290,10/11/2015,796512,"2,000.16",NORWOOD SCHOOLS LTD,SP0000332
WANDSWORTH COUNCIL,ASC,SOCIAL SERVICES,PRIVATE,Revenue,EXTERNAL DAYCARE,130245290,10/11/2015,796513,"2,055.64",NORWOOD SCHOOLS LTD,SP0000332
WANDSWORTH COUNCIL,ASC,SOCIAL SERVICES,PRIVATE,Revenue,EXTERNAL DAYCARE,130245290,11/11/2015,799536,"2,000.16",NORWOOD SCHOOLS LTD,SP0000332
WANDSWORTH COUNCIL,ASC,SOCIAL SERVICES,PRIVATE,Revenue,EXTERNAL DAYCARE,130245290,11/11/2015,799537,"2,055.64",NORWOOD SCHOOLS LTD,SP0000332
WANDSWORTH COUNCIL,ASC,SOCIAL SERVICES,PRIVATE,Revenue,EXTERNAL DAYCARE,130245290,03/11/2015,790206,525.70,O A ROWE,SP0000431
WANDSWORTH COUNCIL,ASC,SOCIAL SERVICES,PRIVATE,Revenue,EXTERNAL DAYCARE,130245290,03/11/2015,790207,525.70,O A ROWE,SP0000431
WANDSWORTH COUNCIL,ASC,SOCIAL SERVICES,PRIVATE,Revenue,EXTERNAL DAYCARE,130245290,03/11/2015,790208,525.70,O A ROWE,SP0000431
WANDSWORTH COUNCIL,ASC,SOCIAL SERVICES,PRIVATE,Revenue,EXTERNAL DAYCARE,130245290,19/11/2015,806155,"11,946.45",ORCHARD HILL COLLEGE,SP0007179
WANDSWORTH COUNCIL,ASC,SOCIAL SERVICES,PRIVATE,Revenue,EXTERNAL DAYCARE,130245290,19/11/2015,806095,878.48,ORCHARD VALE TRUST,SP0000214
WANDSWORTH COUNCIL,ASC,SOCIAL SERVICES,PRIVATE,Revenue,EXTERNAL DAYCARE,130245290,20/11/2015,806988,844.38,ORIONE CARE,SP0000961
WANDSWORTH COUNCIL,ASC,SOCIAL SERVICES,PRIVATE,Revenue,EXTERNAL DAYCARE,130245290,20/11/2015,806990,609.83,ORIONE CARE,SP0000961
WANDSWORTH COUNCIL,ASC,SOCIAL SERVICES,PRIVATE,Revenue,EXTERNAL DAYCARE,130245290,24/11/2015,810299,546.00,PARCHMENT TRUST LTD,SP0000255
WANDSWORTH COUNCIL,ASC,SOCIAL SERVICES,PRIVATE,Revenue,EXTERNAL DAYCARE,130245290,12/11/2015,800401,540.00,PROSPECTS,SP0000800
WANDSWORTH COUNCIL,ASC,SOCIAL SERVICES,PRIVATE,Revenue,EXTERNAL DAYCARE,130245290,24/11/2015,809920,"1,213.76",RESIDENTIAL CARE SERVICES T/A FRANKLYN L,SP0000147
WANDSWORTH COUNCIL,ASC,SOCIAL SERVICES,PRIVATE,Revenue,EXTERNAL DAYCARE,130245290,05/11/2015,792807,"1,138.40",RIDGEWOOD CARE SERVICES LTD,SP0000969
WANDSWORTH COUNCIL,ASC,SOCIAL SERVICES,PRIVATE,Revenue,EXTERNAL DAYCARE,130245290,05/11/2015,793018,"1,176.00",RIDGEWOOD CARE SERVICES LTD,SP0000969
WANDSWORTH COUNCIL,ASC,SOCIAL SERVICES,PRIVATE,Revenue,EXTERNAL DAYCARE,130245290,04/11/2015,791394,833.52,SCOPE,SP0000852
WANDSWORTH COUNCIL,ASC,SOCIAL SERVICES,PRIVATE,Revenue,EXTERNAL DAYCARE,130245290,11/11/2015,798959,833.52,SCOPE,SP0000852
WANDSWORTH COUNCIL,ASC,SOCIAL SERVICES,PRIVATE,Revenue,EXTERNAL DAYCARE,130245290,11/11/2015,799534,814.03,SCOPE,SP0000852
WANDSWORTH COUNCIL,ASC,SOCIAL SERVICES,PRIVATE,Revenue,EXTERNAL DAYCARE,130245290,13/11/2015,801683,895.20,SCOPE,SP0000991
WANDSWORTH COUNCIL,ASC,SOCIAL SERVICES,PRIVATE,Revenue,EXTERNAL DAYCARE,130245290,13/11/2015,801684,596.80,SCOPE,SP0000991
WANDSWORTH COUNCIL,ASC,SOCIAL SERVICES,PRIVATE,Revenue,EXTERNAL DAYCARE,130245290,13/11/2015,801688,671.40,SCOPE,SP0000991
WANDSWORTH COUNCIL,ASC,SOCIAL SERVICES,PRIVATE,Revenue,EXTERNAL DAYCARE,130245290,24/11/2015,809964,833.52,SCOPE,SP0000852
WANDSWORTH COUNCIL,ASC,SOCIAL SERVICES,PRIVATE,Revenue,EXTERNAL DAYCARE,130245290,19/11/2015,806113,742.85,SHARE COMMUNITY,SP0000329
WANDSWORTH COUNCIL,ASC,SOCIAL SERVICES,PRIVATE,Revenue,EXTERNAL DAYCARE,130245290,19/11/2015,806114,891.45,SHARE COMMUNITY,SP0000329
WANDSWORTH COUNCIL,ASC,SOCIAL SERVICES,PRIVATE,Revenue,EXTERNAL DAYCARE,130245290,19/11/2015,806115,"1,188.25",SHARE COMMUNITY,SP0000329
WANDSWORTH COUNCIL,ASC,SOCIAL SERVICES,PRIVATE,Revenue,EXTERNAL DAYCARE,130245290,19/11/2015,806118,891.45,SHARE COMMUNITY,SP0000329
WANDSWORTH COUNCIL,ASC,SOCIAL SERVICES,PRIVATE,Revenue,EXTERNAL DAYCARE,130245290,19/11/2015,806120,742.85,SHARE COMMUNITY,SP0000329
WANDSWORTH COUNCIL,ASC,SOCIAL SERVICES,PRIVATE,Revenue,EXTERNAL DAYCARE,130245290,19/11/2015,806121,891.45,SHARE COMMUNITY,SP0000329
WANDSWORTH COUNCIL,ASC,SOCIAL SERVICES,PRIVATE,Revenue,EXTERNAL DAYCARE,130245290,19/11/2015,806122,891.45,SHARE COMMUNITY,SP0000329
WANDSWORTH COUNCIL,ASC,SOCIAL SERVICES,PRIVATE,Revenue,EXTERNAL DAYCARE,130245290,19/11/2015,806123,594.30,SHARE COMMUNITY,SP0000329
WANDSWORTH COUNCIL,ASC,SOCIAL SERVICES,PRIVATE,Revenue,EXTERNAL DAYCARE,130245290,19/11/2015,806125,891.45,SHARE COMMUNITY,SP0000329
WANDSWORTH COUNCIL,ASC,SOCIAL SERVICES,PRIVATE,Revenue,EXTERNAL DAYCARE,130245290,19/11/2015,806126,594.30,SHARE COMMUNITY,SP0000329
WANDSWORTH COUNCIL,ASC,SOCIAL SERVICES,PRIVATE,Revenue,EXTERNAL DAYCARE,130245290,19/11/2015,806127,594.30,SHARE COMMUNITY,SP0000329
WANDSWORTH COUNCIL,ASC,SOCIAL SERVICES,PRIVATE,Revenue,EXTERNAL DAYCARE,130245290,19/11/2015,806130,891.45,SHARE COMMUNITY,SP0000329
WANDSWORTH COUNCIL,ASC,SOCIAL SERVICES,PRIVATE,Revenue,EXTERNAL DAYCARE,130245290,19/11/2015,806131,891.45,SHARE COMMUNITY,SP0000329
WANDSWORTH COUNCIL,ASC,SOCIAL SERVICES,PRIVATE,Revenue,EXTERNAL DAYCARE,130245290,19/11/2015,806132,891.45,SHARE COMMUNITY,SP0000329
WANDSWORTH COUNCIL,ASC,SOCIAL SERVICES,PRIVATE,Revenue,EXTERNAL DAYCARE,130245290,19/11/2015,806134,"1,188.55",SHARE COMMUNITY,SP0000329
WANDSWORTH COUNCIL,ASC,SOCIAL SERVICES,PRIVATE,Revenue,EXTERNAL DAYCARE,130245290,19/11/2015,806135,594.30,SHARE COMMUNITY,SP0000329
WANDSWORTH COUNCIL,ASC,SOCIAL SERVICES,PRIVATE,Revenue,EXTERNAL DAYCARE,130245290,19/11/2015,806136,594.40,SHARE COMMUNITY,SP0000329
WANDSWORTH COUNCIL,ASC,SOCIAL SERVICES,PRIVATE,Revenue,EXTERNAL DAYCARE,130245290,19/11/2015,806137,594.30,SHARE COMMUNITY,SP0000329
WANDSWORTH COUNCIL,ASC,SOCIAL SERVICES,PRIVATE,Revenue,EXTERNAL DAYCARE,130245290,19/11/2015,806139,594.30,SHARE COMMUNITY,SP0000329
WANDSWORTH COUNCIL,ASC,SOCIAL SERVICES,PRIVATE,Revenue,EXTERNAL DAYCARE,130245290,19/11/2015,806140,891.45,SHARE COMMUNITY,SP0000329
WANDSWORTH COUNCIL,ASC,SOCIAL SERVICES,PRIVATE,Revenue,EXTERNAL DAYCARE,130245290,19/11/2015,806141,891.45,SHARE COMMUNITY,SP0000329
WANDSWORTH COUNCIL,ASC,SOCIAL SERVICES,PRIVATE,Revenue,EXTERNAL DAYCARE,130245290,19/11/2015,806142,594.30,SHARE COMMUNITY,SP0000329
WANDSWORTH COUNCIL,ASC,SOCIAL SERVICES,PRIVATE,Revenue,EXTERNAL DAYCARE,130245290,19/11/2015,806146,594.30,SHARE COMMUNITY,SP0000329
WANDSWORTH COUNCIL,ASC,SOCIAL SERVICES,PRIVATE,Revenue,EXTERNAL DAYCARE,130245290,19/11/2015,806147,594.30,SHARE COMMUNITY,SP0000329
WANDSWORTH COUNCIL,ASC,SOCIAL SERVICES,PRIVATE,Revenue,EXTERNAL DAYCARE,130245290,19/11/2015,806148,"1,069.74",SHARE COMMUNITY,SP0000329
WANDSWORTH COUNCIL,ASC,SOCIAL SERVICES,PRIVATE,Revenue,EXTERNAL DAYCARE,130245290,19/11/2015,806149,594.30,SHARE COMMUNITY,SP0000329
WANDSWORTH COUNCIL,ASC,SOCIAL SERVICES,PRIVATE,Revenue,EXTERNAL DAYCARE,130245290,19/11/2015,806150,594.30,SHARE COMMUNITY,SP0000329
WANDSWORTH COUNCIL,ASC,SOCIAL SERVICES,PRIVATE,Revenue,EXTERNAL DAYCARE,130245290,19/11/2015,806152,891.45,SHARE COMMUNITY,SP0000329
WANDSWORTH COUNCIL,ASC,SOCIAL SERVICES,PRIVATE,Revenue,EXTERNAL DAYCARE,130245290,19/11/2015,806153,891.45,SHARE COMMUNITY,SP0000329
WANDSWORTH COUNCIL,ASC,SOCIAL SERVICES,PRIVATE,Revenue,EXTERNAL DAYCARE,130245290,19/11/2015,806154,"1,188.55",SHARE COMMUNITY,SP0000329
WANDSWORTH COUNCIL,ASC,SOCIAL SERVICES,PRIVATE,Revenue,EXTERNAL DAYCARE,130245290,26/11/2015,813129,"1,057.00",ST DAVIDS CARE IN THE COMMUNITY,SP0000379
WANDSWORTH COUNCIL,ASC,SOCIAL SERVICES,PRIVATE,Revenue,EXTERNAL DAYCARE,130245290,26/11/2015,813130,"1,057.00",ST DAVIDS CARE IN THE COMMUNITY,SP0000379
WANDSWORTH COUNCIL,ASC,SOCIAL SERVICES,PRIVATE,Revenue,EXTERNAL DAYCARE,130245290,26/11/2015,813131,"1,057.00",ST DAVIDS CARE IN THE COMMUNITY,SP0000379
WANDSWORTH COUNCIL,ASC,SOCIAL SERVICES,PRIVATE,Revenue,EXTERNAL DAYCARE,130245290,04/11/2015,791212,"1,736.84",ST MARYS RESIDENTIAL HOME,SP0000215
WANDSWORTH COUNCIL,ASC,SOCIAL SERVICES,PRIVATE,Revenue,EXTERNAL DAYCARE,130245290,04/11/2015,791213,708.52,ST MARYS RESIDENTIAL HOME,SP0000215
WANDSWORTH COUNCIL,ASC,SOCIAL SERVICES,PRIVATE,Revenue,EXTERNAL DAYCARE,130245290,04/11/2015,791217,956.80,ST MARYS RESIDENTIAL HOME,SP0000215
WANDSWORTH COUNCIL,ASC,SOCIAL SERVICES,PRIVATE,Revenue,EXTERNAL DAYCARE,130245290,04/11/2015,791219,534.28,ST MARYS RESIDENTIAL HOME,SP0000215
WANDSWORTH COUNCIL,ASC,SOCIAL SERVICES,PRIVATE,Revenue,EXTERNAL DAYCARE,130245290,10/11/2015,798200,"1,736.84",ST MARYS RESIDENTIAL HOME,SP0000215
WANDSWORTH COUNCIL,ASC,SOCIAL SERVICES,PRIVATE,Revenue,EXTERNAL DAYCARE,130245290,10/11/2015,798201,708.52,ST MARYS RESIDENTIAL HOME,SP0000215
WANDSWORTH COUNCIL,ASC,SOCIAL SERVICES,PRIVATE,Revenue,EXTERNAL DAYCARE,130245290,10/11/2015,798206,534.28,ST MARYS RESIDENTIAL HOME,SP0000215
WANDSWORTH COUNCIL,ASC,SOCIAL SERVICES,PRIVATE,Revenue,EXTERNAL DAYCARE,130245290,19/11/2015,806097,956.80,ST MARYS RESIDENTIAL HOME,SP0000215
WANDSWORTH COUNCIL,ASC,SOCIAL SERVICES,PRIVATE,Revenue,EXTERNAL DAYCARE,130245290,26/11/2015,813184,"1,000.00",ST MARYS RESIDENTIAL HOME,SP0000215
WANDSWORTH COUNCIL,ASC,SOCIAL SERVICES,PRIVATE,Revenue,EXTERNAL DAYCARE,130245290,26/11/2015,813185,"1,250.00",ST MARYS RESIDENTIAL HOME,SP0000215
WANDSWORTH COUNCIL,ASC,SOCIAL SERVICES,PRIVATE,Revenue,EXTERNAL DAYCARE,130245290,26/11/2015,813186,"1,000.00",ST MARYS RESIDENTIAL HOME,SP0000215
WANDSWORTH COUNCIL,ASC,SOCIAL SERVICES,PRIVATE,Revenue,EXTERNAL DAYCARE,130245290,10/11/2015,796510,"1,586.84",STALLCOMBE HOUSE,SP0000843
WANDSWORTH COUNCIL,ASC,SOCIAL SERVICES,PRIVATE,Revenue,EXTERNAL DAYCARE,130245290,19/11/2015,806099,"1,586.84",STALLCOMBE HOUSE,SP0000843
WANDSWORTH COUNCIL,ASC,SOCIAL SERVICES,PRIVATE,Revenue,EXTERNAL DAYCARE,130245290,19/11/2015,806100,"1,586.84",STALLCOMBE HOUSE,SP0000843
WANDSWORTH COUNCIL,ASC,SOCIAL SERVICES,PRIVATE,Revenue,EXTERNAL DAYCARE,130245290,24/11/2015,810281,"1,132.38",SURREY & BORDERS PARTNERSHIP NHS TRUST,SP0000501
WANDSWORTH COUNCIL,ASC,SOCIAL SERVICES,PRIVATE,Revenue,EXTERNAL DAYCARE,130245290,11/11/2015,799492,"1,206.00",SUSSEX HEALTH CARE,SP0001115
WANDSWORTH COUNCIL,ASC,SOCIAL SERVICES,PRIVATE,Revenue,EXTERNAL DAYCARE,130245290,30/11/2015,814519,"1,273.00",SUSSEX HEALTH CARE,SP0001115
WANDSWORTH COUNCIL,ASC,SOCIAL SERVICES,PRIVATE,Revenue,EXTERNAL DAYCARE,130245290,12/11/2015,800394,650.00,THE CAMDEN SOCIETY,SP0001674
WANDSWORTH COUNCIL,ASC,SOCIAL SERVICES,PRIVATE,Revenue,EXTERNAL DAYCARE,130245290,12/11/2015,800395,650.00,THE CAMDEN SOCIETY,SP0001674
WANDSWORTH COUNCIL,ASC,SOCIAL SERVICES,PRIVATE,Revenue,EXTERNAL DAYCARE,130245290,12/11/2015,800396,650.00,THE CAMDEN SOCIETY,SP0001674
WANDSWORTH COUNCIL,ASC,SOCIAL SERVICES,PRIVATE,Revenue,EXTERNAL DAYCARE,130245290,12/11/2015,800397,650.00,THE CAMDEN SOCIETY,SP0001674
WANDSWORTH COUNCIL,ASC,SOCIAL SERVICES,PRIVATE,Revenue,EXTERNAL DAYCARE,130245290,12/11/2015,800398,650.00,THE CAMDEN SOCIETY,SP0001674
WANDSWORTH COUNCIL,ASC,SOCIAL SERVICES,PRIVATE,Revenue,EXTERNAL DAYCARE,130245290,24/11/2015,809918,825.00,THE HOME FARM TRUST LTD,SP0001048
WANDSWORTH COUNCIL,ASC,SOCIAL SERVICES,PRIVATE,Revenue,EXTERNAL DAYCARE,130245290,10/11/2015,798238,980.00,THE MANOR,SP0000340
WANDSWORTH COUNCIL,ASC,SOCIAL SERVICES,PRIVATE,Revenue,EXTERNAL DAYCARE,130245290,19/11/2015,806094,"1,327.20",THE REGARD PARTNERSHIP,SP0000588
WANDSWORTH COUNCIL,ASC,SOCIAL SERVICES,PRIVATE,Revenue,EXTERNAL DAYCARE,130245290,27/11/2015,813828,"1,371.44",THE REGARD PARTNERSHIP,SP0000588
WANDSWORTH COUNCIL,ASC,SOCIAL SERVICES,PRIVATE,Revenue,EXTERNAL DAYCARE,130245290,05/11/2015,792816,528.00,THRIVE,SP0000601
WANDSWORTH COUNCIL,ASC,SOCIAL SERVICES,PRIVATE,Revenue,EXTERNAL DAYCARE,130245290,04/11/2015,791491,527.36,UNITED RESPONSE,SP0000797
WANDSWORTH COUNCIL,ASC,SOCIAL SERVICES,PRIVATE,Revenue,EXTERNAL DAYCARE,130245290,26/11/2015,813066,527.36,UNITED RESPONSE,SP0000797
WANDSWORTH COUNCIL,ASC,SOCIAL SERVICES,PRIVATE,Revenue,EXTERNAL DAYCARE,130245290,05/11/2015,792795,760.00,WANDSWORTH BENGALI WELFARE ASSOCIATION,SP0000479
WANDSWORTH COUNCIL,ASC,SOCIAL SERVICES,PRIVATE,Revenue,EXTERNAL DAYCARE,130245290,19/11/2015,806098,"1,416.24",WINSLOW COURT,SP0000886
WANDSWORTH COUNCIL,ASC,SOCIAL SERVICES,PRIVATE,Revenue,EXTERNAL DAYCARE,130245290,24/11/2015,809877,563.04,WORKSHOP 305,SP0001403
WANDSWORTH COUNCIL,ASC,SOCIAL SERVICES,PRIVATE,Revenue,EXTERNAL DAYCARE,130245290,24/11/2015,809878,"1,126.08",WORKSHOP 305,SP0001403
WANDSWORTH COUNCIL,ASC,SOCIAL SERVICES,PRIVATE,Revenue,EXTERNAL DAYCARE,130245290,24/11/2015,809885,962.88,WORKSHOP 305,SP0001403
WANDSWORTH COUNCIL,ASC,SOCIAL SERVICES,PRIVATE,Revenue,EXTERNAL DAYCARE,130245290,24/11/2015,809889,722.16,WORKSHOP 305,SP0001403
WANDSWORTH COUNCIL,ASC,SOCIAL SERVICES,PRIVATE,Revenue,EXTERNAL DAYCARE,130245290,24/11/2015,809896,844.56,WORKSHOP 305,SP0001403
WANDSWORTH COUNCIL,ASC,SOCIAL SERVICES,PRIVATE,Revenue,EXTERNAL DAYCARE,130245290,24/11/2015,809897,722.16,WORKSHOP 305,SP0001403
WANDSWORTH COUNCIL,ASC,SOCIAL SERVICES,PRIVATE,Revenue,EXTERNAL DAYCARE,130245290,24/11/2015,809898,722.16,WORKSHOP 305,SP0001403
WANDSWORTH COUNCIL,ASC,SOCIAL SERVICES,PRIVATE,Revenue,EXTERNAL DAYCARE,130245290,24/11/2015,809902,563.04,WORKSHOP 305,SP0001403
WANDSWORTH COUNCIL,ASC,SOCIAL SERVICES,PRIVATE,Revenue,EXTERNAL DAYCARE,130245290,24/11/2015,809903,722.16,WORKSHOP 305,SP0001403
WANDSWORTH COUNCIL,ASC,SOCIAL SERVICES,PRIVATE,Revenue,EXTERNAL DAYCARE,130245290,24/11/2015,809916,962.88,WORKSHOP 305,SP0001403
WANDSWORTH COUNCIL,ASC,SOCIAL SERVICES,PRIVATE,Revenue,EXTERNAL HOMECARE,130245300,24/11/2015,809709,"1,539.54",LONDON HOMECARE LTD,SP0009029
WANDSWORTH COUNCIL,ASC,SOCIAL SERVICES,PRIVATE,Revenue,EXTERNAL HOMECARE,130245300,24/11/2015,809717,"1,765.98",LONDON HOMECARE LTD,SP0009029
WANDSWORTH COUNCIL,ASC,SOCIAL SERVICES,PRIVATE,Revenue,EXTERNAL HOMECARE,130245300,24/11/2015,809741,662.87,LONDON HOMECARE LTD,SP0009029
WANDSWORTH COUNCIL,ASC,SOCIAL SERVICES,PRIVATE,Revenue,EXTERNAL HOMECARE,130245300,24/11/2015,809749,597.77,LONDON HOMECARE LTD,SP0009029
WANDSWORTH COUNCIL,ASC,SOCIAL SERVICES,PRIVATE,Revenue,EXTERNAL HOMECARE,130245300,24/11/2015,809788,621.96,LONDON HOMECARE LTD,SP0009029
WANDSWORTH COUNCIL,ASC,SOCIAL SERVICES,PRIVATE,Revenue,EXTERNAL HOMECARE,130245300,24/11/2015,809823,554.70,LONDON HOMECARE LTD,SP0009029
WANDSWORTH COUNCIL,ASC,SOCIAL SERVICES,PRIVATE,Revenue,EXTERNAL HOMECARE,130245300,03/11/2015,790196,807.26,MUSHKIL AASAAN LTD,SP0000978
WANDSWORTH COUNCIL,ASC,SOCIAL SERVICES,PRIVATE,Revenue,EXTERNAL HOMECARE,130245300,16/11/2015,802382,913.52,RAINBOW MEDICAL SERVICES,SP0000037
WANDSWORTH COUNCIL,ASC,SOCIAL SERVICES,PRIVATE,Revenue,EXTERNAL NURSING CARE,130245310,06/11/2015,794592,"3,058.12",BUPA CARE SERVICES BACS RECEIPTS,SP0000644
WANDSWORTH COUNCIL,ASC,SOCIAL SERVICES,PRIVATE,Revenue,EXTERNAL NURSING CARE,130245310,19/11/2015,806061,"5,382.08",HIGH HURLANDS HOMES,SP0000668
WANDSWORTH COUNCIL,ASC,SOCIAL SERVICES,PRIVATE,Revenue,EXTERNAL NURSING CARE,130245310,11/11/2015,799515,"3,342.85",ROSEDENE NURSING HOME,SP0000316
WANDSWORTH COUNCIL,ASC,SOCIAL SERVICES,PRIVATE,Revenue,EXTERNAL NURSING CARE,130245310,12/11/2015,800302,"8,182.38",SUSSEX HEALTH CARE,SP0001115
WANDSWORTH COUNCIL,ASC,SOCIAL SERVICES,PRIVATE,Revenue,EXTERNAL NURSING CARE,130245310,30/11/2015,814520,"8,454.89",SUSSEX HEALTH CARE,SP0001115
WANDSWORTH COUNCIL,ASC,SOCIAL SERVICES,PRIVATE,Revenue,EXTERNAL NURSING CARE,130245310,05/11/2015,792953,"8,685.30",THE COMMUNITY CARE COMPANY UK LTD,SP0000576
WANDSWORTH COUNCIL,ASC,SOCIAL SERVICES,PRIVATE,Revenue,EXTERNAL NURSING CARE,130245310,06/11/2015,794462,"2,815.48",TRINITY COURT NURSING HOME,SP0001001
WANDSWORTH COUNCIL,ASC,SOCIAL SERVICES,PRIVATE,Revenue,EXTERNAL NURSING CARE,130245310,06/11/2015,795230,"6,111.24",WINGHAM COURT,SP0000025
WANDSWORTH COUNCIL,ASC,SOCIAL SERVICES,PRIVATE,Revenue,EXTERNAL NURSING CARE,130245310,06/11/2015,795231,"6,111.24",WINGHAM COURT,SP0000025
WANDSWORTH COUNCIL,ASC,SOCIAL SERVICES,PRIVATE,Revenue,EXTERNAL NURSING CARE,130245310,04/11/2015,790518,"3,065.88",YEW TREE NURSING HOME,SP0000454
WANDSWORTH COUNCIL,ASC,SOCIAL SERVICES,PRIVATE,Revenue,EXTERNAL NURSING CARE,130245310,12/11/2015,800360,"3,065.88",YEW TREE NURSING HOME,SP0000454
WANDSWORTH COUNCIL,ASC,SOCIAL SERVICES,PRIVATE,Revenue,EXTERNAL NURSING CARE,130245310,06/11/2015,794489,"2,675.12",YORK COURT CARE HOME,SP0006091
WANDSWORTH COUNCIL,ASC,SOCIAL SERVICES,PRIVATE,Revenue,EXTERNAL RESIDENTIAL CARE,130245330,26/11/2015,813095,"4,328.40",229 MITCHAM LANE LTD,SP0000884
WANDSWORTH COUNCIL,ASC,SOCIAL SERVICES,PRIVATE,Revenue,EXTERNAL RESIDENTIAL CARE,130245330,26/11/2015,813096,"5,067.38",229 MITCHAM LANE LTD,SP0000884
WANDSWORTH COUNCIL,ASC,SOCIAL SERVICES,PRIVATE,Revenue,EXTERNAL RESIDENTIAL CARE,130245330,26/11/2015,813098,"5,379.68",229 MITCHAM LANE LTD,SP0000884
WANDSWORTH COUNCIL,ASC,SOCIAL SERVICES,PRIVATE,Revenue,EXTERNAL RESIDENTIAL CARE,130245330,26/11/2015,813099,"5,067.38",229 MITCHAM LANE LTD,SP0000884
WANDSWORTH COUNCIL,ASC,SOCIAL SERVICES,PRIVATE,Revenue,EXTERNAL RESIDENTIAL CARE,130245330,16/11/2015,802362,"4,931.53",ACH OF LONDON LLP,SP0001688
WANDSWORTH COUNCIL,ASC,SOCIAL SERVICES,PRIVATE,Revenue,EXTERNAL RESIDENTIAL CARE,130245330,19/11/2015,806035,"8,100.81",AIMS CARE PARTNERSHIP,SP0000561
WANDSWORTH COUNCIL,ASC,SOCIAL SERVICES,PRIVATE,Revenue,EXTERNAL RESIDENTIAL CARE,130245330,27/11/2015,813783,"8,370.84",AIMS CARE PARTNERSHIP,SP0000561
WANDSWORTH COUNCIL,ASC,SOCIAL SERVICES,PRIVATE,Revenue,EXTERNAL RESIDENTIAL CARE,130245330,04/11/2015,791500,"4,596.00",ALLIED CARE (MHS) LTD,SP0001069
WANDSWORTH COUNCIL,ASC,SOCIAL SERVICES,PRIVATE,Revenue,EXTERNAL RESIDENTIAL CARE,130245330,04/11/2015,791501,"4,193.02",ALLIED CARE (MHS) LTD,SP0001069
WANDSWORTH COUNCIL,ASC,SOCIAL SERVICES,PRIVATE,Revenue,EXTERNAL RESIDENTIAL CARE,130245330,04/11/2015,791502,"6,827.40",ALLIED CARE (MHS) LTD,SP0001069
WANDSWORTH COUNCIL,ASC,SOCIAL SERVICES,PRIVATE,Revenue,EXTERNAL RESIDENTIAL CARE,130245330,04/11/2015,791503,"4,839.00",ALLIED CARE (MHS) LTD,SP0001069
WANDSWORTH COUNCIL,ASC,SOCIAL SERVICES,PRIVATE,Revenue,EXTERNAL RESIDENTIAL CARE,130245330,11/11/2015,799489,"4,566.84",ALLIED CARE LTD T/A ASHSTEAD HOUSE LTD,SP0009950
WANDSWORTH COUNCIL,ASC,SOCIAL SERVICES,PRIVATE,Revenue,EXTERNAL RESIDENTIAL CARE,130245330,12/11/2015,800328,"4,566.84",ALLIED CARE LTD T/A ASHSTEAD HOUSE LTD,SP0009950
WANDSWORTH COUNCIL,ASC,SOCIAL SERVICES,PRIVATE,Revenue,EXTERNAL RESIDENTIAL CARE,130245330,12/11/2015,800329,"10,946.35",ASHCROFT CARE SERVICES,SP0000872
WANDSWORTH COUNCIL,ASC,SOCIAL SERVICES,PRIVATE,Revenue,EXTERNAL RESIDENTIAL CARE,130245330,13/11/2015,801566,"3,970.57",BEECH LODGE,SP0000807
WANDSWORTH COUNCIL,ASC,SOCIAL SERVICES,PRIVATE,Revenue,EXTERNAL RESIDENTIAL CARE,130245330,13/11/2015,801567,"3,970.57",BEECH LODGE,SP0000807
WANDSWORTH COUNCIL,ASC,SOCIAL SERVICES,PRIVATE,Revenue,EXTERNAL RESIDENTIAL CARE,130245330,13/11/2015,801568,"3,970.57",BEECH LODGE,SP0000807
WANDSWORTH COUNCIL,ASC,SOCIAL SERVICES,PRIVATE,Revenue,EXTERNAL RESIDENTIAL CARE,130245330,03/11/2015,790061,"6,641.44",BIRCC,SP0000584
WANDSWORTH COUNCIL,ASC,SOCIAL SERVICES,PRIVATE,Revenue,EXTERNAL RESIDENTIAL CARE,130245330,03/11/2015,790064,"6,641.44",BIRCC,SP0000584
WANDSWORTH COUNCIL,ASC,SOCIAL SERVICES,PRIVATE,Revenue,EXTERNAL RESIDENTIAL CARE,130245330,24/11/2015,810095,"6,427.19",BIRCC,SP0000584
WANDSWORTH COUNCIL,ASC,SOCIAL SERVICES,PRIVATE,Revenue,EXTERNAL RESIDENTIAL CARE,130245330,19/11/2015,806071,"4,689.36",CAMERON LODGE LIMITED,SP0000271
WANDSWORTH COUNCIL,ASC,SOCIAL SERVICES,PRIVATE,Revenue,EXTERNAL RESIDENTIAL CARE,130245330,23/11/2015,808733,"3,514.79",CARE UNLIMITED GROUP LTD,SP0001575
WANDSWORTH COUNCIL,ASC,SOCIAL SERVICES,PRIVATE,Revenue,EXTERNAL RESIDENTIAL CARE,130245330,27/11/2015,813749,"3,846.86",CENTRUST CARE HOMES LTD,SP0000141
WANDSWORTH COUNCIL,ASC,SOCIAL SERVICES,PRIVATE,Revenue,EXTERNAL RESIDENTIAL CARE,130245330,04/11/2015,791495,"9,200.00",CHATSWORTH CARE,SP0000831
WANDSWORTH COUNCIL,ASC,SOCIAL SERVICES,PRIVATE,Revenue,EXTERNAL RESIDENTIAL CARE,130245330,13/11/2015,801569,"3,990.72",CHERRY LODGE,SP0000965
WANDSWORTH COUNCIL,ASC,SOCIAL SERVICES,PRIVATE,Revenue,EXTERNAL RESIDENTIAL CARE,130245330,04/11/2015,791492,"7,194.44",CHOICE CARE GROUP,SP0001367
WANDSWORTH COUNCIL,ASC,SOCIAL SERVICES,PRIVATE,Revenue,EXTERNAL RESIDENTIAL CARE,130245330,24/11/2015,810094,"30,740.00",CHOICE CARE GROUP,SP0001367
WANDSWORTH COUNCIL,ASC,SOCIAL SERVICES,PRIVATE,Revenue,EXTERNAL RESIDENTIAL CARE,130245330,26/11/2015,813069,"7,194.44",CHOICE CARE GROUP,SP0001367
WANDSWORTH COUNCIL,ASC,SOCIAL SERVICES,PRIVATE,Revenue,EXTERNAL RESIDENTIAL CARE,130245330,13/11/2015,801554,"3,911.48",CMG HOMES LTD,SP0000075
WANDSWORTH COUNCIL,ASC,SOCIAL SERVICES,PRIVATE,Revenue,EXTERNAL RESIDENTIAL CARE,130245330,13/11/2015,801555,"3,911.48",CMG HOMES LTD,SP0000075
WANDSWORTH COUNCIL,ASC,SOCIAL SERVICES,PRIVATE,Revenue,EXTERNAL RESIDENTIAL CARE,130245330,26/11/2015,813083,"5,674.36",CMG HOMES LTD,SP0000075
WANDSWORTH COUNCIL,ASC,SOCIAL SERVICES,PRIVATE,Revenue,EXTERNAL RESIDENTIAL CARE,130245330,26/11/2015,813085,"3,940.80",CMG HOMES LTD,SP0000075
WANDSWORTH COUNCIL,ASC,SOCIAL SERVICES,PRIVATE,Revenue,EXTERNAL RESIDENTIAL CARE,130245330,26/11/2015,813086,"5,594.64",CMG HOMES LTD,SP0000075
WANDSWORTH COUNCIL,ASC,SOCIAL SERVICES,PRIVATE,Revenue,EXTERNAL RESIDENTIAL CARE,130245330,26/11/2015,813087,"4,404.80",CMG HOMES LTD,SP0000075
WANDSWORTH COUNCIL,ASC,SOCIAL SERVICES,PRIVATE,Revenue,EXTERNAL RESIDENTIAL CARE,130245330,26/11/2015,813088,"3,909.12",CMG HOMES LTD,SP0000075
WANDSWORTH COUNCIL,ASC,SOCIAL SERVICES,PRIVATE,Revenue,EXTERNAL RESIDENTIAL CARE,130245330,26/11/2015,813089,"4,902.84",CMG HOMES LTD,SP0000075
WANDSWORTH COUNCIL,ASC,SOCIAL SERVICES,PRIVATE,Revenue,EXTERNAL RESIDENTIAL CARE,130245330,26/11/2015,813090,"4,680.84",CMG HOMES LTD,SP0000075
WANDSWORTH COUNCIL,ASC,SOCIAL SERVICES,PRIVATE,Revenue,EXTERNAL RESIDENTIAL CARE,130245330,26/11/2015,813091,"4,448.72",CMG HOMES LTD,SP0000075
WANDSWORTH COUNCIL,ASC,SOCIAL SERVICES,PRIVATE,Revenue,EXTERNAL RESIDENTIAL CARE,130245330,10/11/2015,798072,"7,928.57",CONDOVER COLLEGE LTD,SP0001641
WANDSWORTH COUNCIL,ASC,SOCIAL SERVICES,PRIVATE,Revenue,EXTERNAL RESIDENTIAL CARE,130245330,16/11/2015,802360,"7,271.56",CORICH COMMUNITY CARE LTD,SP0000915
WANDSWORTH COUNCIL,ASC,SOCIAL SERVICES,PRIVATE,Revenue,EXTERNAL RESIDENTIAL CARE,130245330,06/11/2015,795235,617.75,COUNTRY CARE,SP0000090
WANDSWORTH COUNCIL,ASC,SOCIAL SERVICES,PRIVATE,Revenue,EXTERNAL RESIDENTIAL CARE,130245330,30/11/2015,814505,"1,446.55",COUNTRY CARE,SP0000090
WANDSWORTH COUNCIL,ASC,SOCIAL SERVICES,PRIVATE,Revenue,EXTERNAL RESIDENTIAL CARE,130245330,20/11/2015,806967,"2,950.92",CRAEGMOOR FACILITIES CO LTD,SP0000306
WANDSWORTH COUNCIL,ASC,SOCIAL SERVICES,PRIVATE,Revenue,EXTERNAL RESIDENTIAL CARE,130245330,12/11/2015,800334,"3,774.94",CRAEGMOOR OLD RECTORY BREDE PRIORY,SP0001621
WANDSWORTH COUNCIL,ASC,SOCIAL SERVICES,PRIVATE,Revenue,EXTERNAL RESIDENTIAL CARE,130245330,23/11/2015,808731,"3,965.32",CSS LTD T/A  THF CARE ESTATES LTD,SP0005682
WANDSWORTH COUNCIL,ASC,SOCIAL SERVICES,PRIVATE,Revenue,EXTERNAL RESIDENTIAL CARE,130245330,06/11/2015,795246,"4,946.29",DOLPHIN HOMES LTD,SP0000331
WANDSWORTH COUNCIL,ASC,SOCIAL SERVICES,PRIVATE,Revenue,EXTERNAL RESIDENTIAL CARE,130245330,06/11/2015,795247,"3,893.95",DOLPHIN HOMES LTD,SP0000331
WANDSWORTH COUNCIL,ASC,SOCIAL SERVICES,PRIVATE,Revenue,EXTERNAL RESIDENTIAL CARE,130245330,26/11/2015,813076,"4,946.29",DOLPHIN HOMES LTD,SP0000331
WANDSWORTH COUNCIL,ASC,SOCIAL SERVICES,PRIVATE,Revenue,EXTERNAL RESIDENTIAL CARE,130245330,26/11/2015,813077,"3,893.95",DOLPHIN HOMES LTD,SP0000331
WANDSWORTH COUNCIL,ASC,SOCIAL SERVICES,PRIVATE,Revenue,EXTERNAL RESIDENTIAL CARE,130245330,12/11/2015,800333,"3,897.22",DOWNING (CHERTSEY ROAD) LTD,SP0000959
WANDSWORTH COUNCIL,ASC,SOCIAL SERVICES,PRIVATE,Revenue,EXTERNAL RESIDENTIAL CARE,130245330,17/11/2015,803847,"5,463.98",ESSEX CARE CONSORTIUM,SP0000387
WANDSWORTH COUNCIL,ASC,SOCIAL SERVICES,PRIVATE,Revenue,EXTERNAL RESIDENTIAL CARE,130245330,10/11/2015,798080,"10,118.48",EVERGREEN PARTNERSHIP,SP0000597
WANDSWORTH COUNCIL,ASC,SOCIAL SERVICES,PRIVATE,Revenue,EXTERNAL RESIDENTIAL CARE,130245330,30/11/2015,814506,"10,118.48",EVERGREEN PARTNERSHIP,SP0000597
WANDSWORTH COUNCIL,ASC,SOCIAL SERVICES,PRIVATE,Revenue,EXTERNAL RESIDENTIAL CARE,130245330,04/11/2015,791499,"7,791.43",FIRCROFT,SP0000840
WANDSWORTH COUNCIL,ASC,SOCIAL SERVICES,PRIVATE,Revenue,EXTERNAL RESIDENTIAL CARE,130245330,05/11/2015,793007,"4,191.15",FRANCES TAYLOR FOUNDATION,SP0000142
WANDSWORTH COUNCIL,ASC,SOCIAL SERVICES,PRIVATE,Revenue,EXTERNAL RESIDENTIAL CARE,130245330,05/11/2015,793008,"4,244.82",FRANCES TAYLOR FOUNDATION,SP0000142
WANDSWORTH COUNCIL,ASC,SOCIAL SERVICES,PRIVATE,Revenue,EXTERNAL RESIDENTIAL CARE,130245330,12/11/2015,800303,"4,679.92",FRANCES TAYLOR FOUNDATION,SP0000142
WANDSWORTH COUNCIL,ASC,SOCIAL SERVICES,PRIVATE,Revenue,EXTERNAL RESIDENTIAL CARE,130245330,12/11/2015,800304,"4,203.34",FRANCES TAYLOR FOUNDATION,SP0000142
WANDSWORTH COUNCIL,ASC,SOCIAL SERVICES,PRIVATE,Revenue,EXTERNAL RESIDENTIAL CARE,130245330,12/11/2015,800305,"4,055.96",FRANCES TAYLOR FOUNDATION,SP0000142
WANDSWORTH COUNCIL,ASC,SOCIAL SERVICES,PRIVATE,Revenue,EXTERNAL RESIDENTIAL CARE,130245330,12/11/2015,800306,"4,121.75",FRANCES TAYLOR FOUNDATION,SP0000142
WANDSWORTH COUNCIL,ASC,SOCIAL SERVICES,PRIVATE,Revenue,EXTERNAL RESIDENTIAL CARE,130245330,12/11/2015,800340,"4,835.91",FRANCES TAYLOR FOUNDATION,SP0000142
WANDSWORTH COUNCIL,ASC,SOCIAL SERVICES,PRIVATE,Revenue,EXTERNAL RESIDENTIAL CARE,130245330,12/11/2015,800341,"4,343.46",FRANCES TAYLOR FOUNDATION,SP0000142
WANDSWORTH COUNCIL,ASC,SOCIAL SERVICES,PRIVATE,Revenue,EXTERNAL RESIDENTIAL CARE,130245330,12/11/2015,800342,"4,191.15",FRANCES TAYLOR FOUNDATION,SP0000142
WANDSWORTH COUNCIL,ASC,SOCIAL SERVICES,PRIVATE,Revenue,EXTERNAL RESIDENTIAL CARE,130245330,12/11/2015,800343,"4,259.13",FRANCES TAYLOR FOUNDATION,SP0000142
WANDSWORTH COUNCIL,ASC,SOCIAL SERVICES,PRIVATE,Revenue,EXTERNAL RESIDENTIAL CARE,130245330,13/11/2015,801557,"4,823.85",FRANCES TAYLOR FOUNDATION,SP0000142
WANDSWORTH COUNCIL,ASC,SOCIAL SERVICES,PRIVATE,Revenue,EXTERNAL RESIDENTIAL CARE,130245330,06/11/2015,795202,"6,103.44",GLENCARE GROUP,SP0000791
WANDSWORTH COUNCIL,ASC,SOCIAL SERVICES,PRIVATE,Revenue,EXTERNAL RESIDENTIAL CARE,130245330,12/11/2015,800347,"3,795.15",GLENCARE GROUP,SP0000791
WANDSWORTH COUNCIL,ASC,SOCIAL SERVICES,PRIVATE,Revenue,EXTERNAL RESIDENTIAL CARE,130245330,12/11/2015,800368,"3,806.64",GLENCARE GROUP,SP0000791
WANDSWORTH COUNCIL,ASC,SOCIAL SERVICES,PRIVATE,Revenue,EXTERNAL RESIDENTIAL CARE,130245330,24/11/2015,809656,"3,712.66",HAYDON PARK LODGE LTD,SP0000231
WANDSWORTH COUNCIL,ASC,SOCIAL SERVICES,PRIVATE,Revenue,EXTERNAL RESIDENTIAL CARE,130245330,24/11/2015,809657,"3,724.72",HAYDON PARK LODGE LTD,SP0000231
WANDSWORTH COUNCIL,ASC,SOCIAL SERVICES,PRIVATE,Revenue,EXTERNAL RESIDENTIAL CARE,130245330,10/11/2015,798094,"6,463.79",HOME FROM HOME CARE LIMITED,SP0001373
WANDSWORTH COUNCIL,ASC,SOCIAL SERVICES,PRIVATE,Revenue,EXTERNAL RESIDENTIAL CARE,130245330,11/11/2015,799499,"4,895.66",IN CHORUS LTD,SP0000129
WANDSWORTH COUNCIL,ASC,SOCIAL SERVICES,PRIVATE,Revenue,EXTERNAL RESIDENTIAL CARE,130245330,11/11/2015,799497,"3,976.44",KENILWORTH RESIDENTIAL HOME,SP0000432
WANDSWORTH COUNCIL,ASC,SOCIAL SERVICES,PRIVATE,Revenue,EXTERNAL RESIDENTIAL CARE,130245330,11/11/2015,799498,"4,150.04",KENILWORTH RESIDENTIAL HOME,SP0000432
WANDSWORTH COUNCIL,ASC,SOCIAL SERVICES,PRIVATE,Revenue,EXTERNAL RESIDENTIAL CARE,130245330,23/11/2015,807662,"3,976.44",KENILWORTH RESIDENTIAL HOME,SP0000432
WANDSWORTH COUNCIL,ASC,SOCIAL SERVICES,PRIVATE,Revenue,EXTERNAL RESIDENTIAL CARE,130245330,23/11/2015,807663,"4,150.04",KENILWORTH RESIDENTIAL HOME,SP0000432
WANDSWORTH COUNCIL,ASC,SOCIAL SERVICES,PRIVATE,Revenue,EXTERNAL RESIDENTIAL CARE,130245330,04/11/2015,791509,"11,057.48",KISIMUL GROUP LTD,SP0002487
WANDSWORTH COUNCIL,ASC,SOCIAL SERVICES,PRIVATE,Revenue,EXTERNAL RESIDENTIAL CARE,130245330,19/11/2015,806079,"11,057.48",KISIMUL GROUP LTD,SP0002487
WANDSWORTH COUNCIL,ASC,SOCIAL SERVICES,PRIVATE,Revenue,EXTERNAL RESIDENTIAL CARE,130245330,24/11/2015,810084,"4,780.71",LAETUS LODGE,SP0000600
WANDSWORTH COUNCIL,ASC,SOCIAL SERVICES,PRIVATE,Revenue,EXTERNAL RESIDENTIAL CARE,130245330,24/11/2015,810085,"6,096.48",LAETUS LODGE,SP0000600
WANDSWORTH COUNCIL,ASC,SOCIAL SERVICES,PRIVATE,Revenue,EXTERNAL RESIDENTIAL CARE,130245330,24/11/2015,810086,"3,759.76",LAETUS LODGE,SP0000600
WANDSWORTH COUNCIL,ASC,SOCIAL SERVICES,PRIVATE,Revenue,EXTERNAL RESIDENTIAL CARE,130245330,24/11/2015,810087,"6,193.48",LAETUS LODGE,SP0000600
WANDSWORTH COUNCIL,ASC,SOCIAL SERVICES,PRIVATE,Revenue,EXTERNAL RESIDENTIAL CARE,130245330,24/11/2015,810088,"3,669.12",LAETUS LODGE,SP0000600
WANDSWORTH COUNCIL,ASC,SOCIAL SERVICES,PRIVATE,Revenue,EXTERNAL RESIDENTIAL CARE,130245330,24/11/2015,810089,"3,759.76",LAETUS LODGE,SP0000600
WANDSWORTH COUNCIL,ASC,SOCIAL SERVICES,PRIVATE,Revenue,EXTERNAL RESIDENTIAL CARE,130245330,24/11/2015,810090,"5,238.16",LAETUS LODGE,SP0000600
WANDSWORTH COUNCIL,ASC,SOCIAL SERVICES,PRIVATE,Revenue,EXTERNAL RESIDENTIAL CARE,130245330,24/11/2015,810091,"4,558.48",LAETUS LODGE,SP0000600
WANDSWORTH COUNCIL,ASC,SOCIAL SERVICES,PRIVATE,Revenue,EXTERNAL RESIDENTIAL CARE,130245330,10/11/2015,798122,"4,967.48",LARKFIELD HALL LTD T/A PEPENBURY,SP0001378
WANDSWORTH COUNCIL,ASC,SOCIAL SERVICES,PRIVATE,Revenue,EXTERNAL RESIDENTIAL CARE,130245330,10/11/2015,798100,"4,348.99",LEONARD CHESHIRE,SP0000976
WANDSWORTH COUNCIL,ASC,SOCIAL SERVICES,PRIVATE,Revenue,EXTERNAL RESIDENTIAL CARE,130245330,11/11/2015,799523,"4,359.84",LEONARD CHESHIRE,SP0000976
WANDSWORTH COUNCIL,ASC,SOCIAL SERVICES,PRIVATE,Revenue,EXTERNAL RESIDENTIAL CARE,130245330,11/11/2015,799524,"6,402.96",LEONARD CHESHIRE,SP0000976
WANDSWORTH COUNCIL,ASC,SOCIAL SERVICES,PRIVATE,Revenue,EXTERNAL RESIDENTIAL CARE,130245330,06/11/2015,795245,"2,395.60",LIVABILITY,SP0000669
WANDSWORTH COUNCIL,ASC,SOCIAL SERVICES,PRIVATE,Revenue,EXTERNAL RESIDENTIAL CARE,130245330,26/11/2015,813061,"2,395.60",LIVABILITY,SP0000669
WANDSWORTH COUNCIL,ASC,SOCIAL SERVICES,PRIVATE,Revenue,EXTERNAL RESIDENTIAL CARE,130245330,06/11/2015,795248,"6,060.62",LIVING AMBITIONS LIMITED,SP0001039
WANDSWORTH COUNCIL,ASC,SOCIAL SERVICES,PRIVATE,Revenue,EXTERNAL RESIDENTIAL CARE,130245330,30/11/2015,814512,"5,865.12",LIVING AMBITIONS LIMITED,SP0001039
WANDSWORTH COUNCIL,ASC,SOCIAL SERVICES,PRIVATE,Revenue,EXTERNAL RESIDENTIAL CARE,130245330,11/11/2015,799525,"7,717.76",LORING HALL LIMITED,SP0000511
WANDSWORTH COUNCIL,ASC,SOCIAL SERVICES,PRIVATE,Revenue,EXTERNAL RESIDENTIAL CARE,130245330,13/11/2015,801556,"7,717.76",LORING HALL LIMITED,SP0000511
WANDSWORTH COUNCIL,ASC,SOCIAL SERVICES,PRIVATE,Revenue,EXTERNAL RESIDENTIAL CARE,130245330,10/11/2015,796410,"4,613.60",LOTUS CARE HOME LTD,SP0001006
WANDSWORTH COUNCIL,ASC,SOCIAL SERVICES,PRIVATE,Revenue,EXTERNAL RESIDENTIAL CARE,130245330,05/11/2015,793010,"11,282.12",LOVING CARE LTD,SP0000670
WANDSWORTH COUNCIL,ASC,SOCIAL SERVICES,PRIVATE,Revenue,EXTERNAL RESIDENTIAL CARE,130245330,05/11/2015,793011,"11,475.84",LOVING CARE LTD,SP0000670
WANDSWORTH COUNCIL,ASC,SOCIAL SERVICES,PRIVATE,Revenue,EXTERNAL RESIDENTIAL CARE,130245330,05/11/2015,793012,"11,017.24",LOVING CARE LTD,SP0000670
WANDSWORTH COUNCIL,ASC,SOCIAL SERVICES,PRIVATE,Revenue,EXTERNAL RESIDENTIAL CARE,130245330,05/11/2015,793013,"11,464.39",LOVING CARE LTD,SP0000670
WANDSWORTH COUNCIL,ASC,SOCIAL SERVICES,PRIVATE,Revenue,EXTERNAL RESIDENTIAL CARE,130245330,05/11/2015,793014,"11,475.88",LOVING CARE LTD,SP0000670
WANDSWORTH COUNCIL,ASC,SOCIAL SERVICES,PRIVATE,Revenue,EXTERNAL RESIDENTIAL CARE,130245330,05/11/2015,793015,"11,170.12",LOVING CARE LTD,SP0000670
WANDSWORTH COUNCIL,ASC,SOCIAL SERVICES,PRIVATE,Revenue,EXTERNAL RESIDENTIAL CARE,130245330,12/11/2015,800361,"11,322.96",LOVING CARE LTD,SP0000670
WANDSWORTH COUNCIL,ASC,SOCIAL SERVICES,PRIVATE,Revenue,EXTERNAL RESIDENTIAL CARE,130245330,12/11/2015,800362,"11,282.12",LOVING CARE LTD,SP0000670
WANDSWORTH COUNCIL,ASC,SOCIAL SERVICES,PRIVATE,Revenue,EXTERNAL RESIDENTIAL CARE,130245330,12/11/2015,800363,"11,475.84",LOVING CARE LTD,SP0000670
WANDSWORTH COUNCIL,ASC,SOCIAL SERVICES,PRIVATE,Revenue,EXTERNAL RESIDENTIAL CARE,130245330,12/11/2015,800364,"11,017.24",LOVING CARE LTD,SP0000670
WANDSWORTH COUNCIL,ASC,SOCIAL SERVICES,PRIVATE,Revenue,EXTERNAL RESIDENTIAL CARE,130245330,12/11/2015,800365,"11,475.88",LOVING CARE LTD,SP0000670
WANDSWORTH COUNCIL,ASC,SOCIAL SERVICES,PRIVATE,Revenue,EXTERNAL RESIDENTIAL CARE,130245330,12/11/2015,800369,"11,170.12",LOVING CARE LTD,SP0000670
WANDSWORTH COUNCIL,ASC,SOCIAL SERVICES,PRIVATE,Revenue,EXTERNAL RESIDENTIAL CARE,130245330,24/11/2015,809649,"11,322.96",LOVING CARE LTD,SP0000670
WANDSWORTH COUNCIL,ASC,SOCIAL SERVICES,PRIVATE,Revenue,EXTERNAL RESIDENTIAL CARE,130245330,13/11/2015,801558,"5,544.13",M JINGREE T/A SUNLIGHT HOUSE,SP0001024
WANDSWORTH COUNCIL,ASC,SOCIAL SERVICES,PRIVATE,Revenue,EXTERNAL RESIDENTIAL CARE,130245330,05/11/2015,793020,"5,210.48",MACINTYRE CARE,SP0000473
WANDSWORTH COUNCIL,ASC,SOCIAL SERVICES,PRIVATE,Revenue,EXTERNAL RESIDENTIAL CARE,130245330,05/11/2015,793021,"3,759.64",MACINTYRE CARE,SP0000473
WANDSWORTH COUNCIL,ASC,SOCIAL SERVICES,PRIVATE,Revenue,EXTERNAL RESIDENTIAL CARE,130245330,05/11/2015,793022,"5,429.64",MACINTYRE CARE,SP0000473
WANDSWORTH COUNCIL,ASC,SOCIAL SERVICES,PRIVATE,Revenue,EXTERNAL RESIDENTIAL CARE,130245330,05/11/2015,793024,"3,759.64",MACINTYRE CARE,SP0000473
WANDSWORTH COUNCIL,ASC,SOCIAL SERVICES,PRIVATE,Revenue,EXTERNAL RESIDENTIAL CARE,130245330,05/11/2015,793025,"5,192.48",MACINTYRE CARE,SP0000473
WANDSWORTH COUNCIL,ASC,SOCIAL SERVICES,PRIVATE,Revenue,EXTERNAL RESIDENTIAL CARE,130245330,05/11/2015,793026,"3,750.72",MACINTYRE CARE,SP0000473
WANDSWORTH COUNCIL,ASC,SOCIAL SERVICES,PRIVATE,Revenue,EXTERNAL RESIDENTIAL CARE,130245330,05/11/2015,793027,"3,813.84",MACINTYRE CARE,SP0000473
WANDSWORTH COUNCIL,ASC,SOCIAL SERVICES,PRIVATE,Revenue,EXTERNAL RESIDENTIAL CARE,130245330,05/11/2015,793028,"4,998.84",MACINTYRE CARE,SP0000473
WANDSWORTH COUNCIL,ASC,SOCIAL SERVICES,PRIVATE,Revenue,EXTERNAL RESIDENTIAL CARE,130245330,05/11/2015,793029,"5,097.20",MACINTYRE CARE,SP0000473
WANDSWORTH COUNCIL,ASC,SOCIAL SERVICES,PRIVATE,Revenue,EXTERNAL RESIDENTIAL CARE,130245330,05/11/2015,793030,"2,301.48",MACINTYRE CARE,SP0000473
WANDSWORTH COUNCIL,ASC,SOCIAL SERVICES,PRIVATE,Revenue,EXTERNAL RESIDENTIAL CARE,130245330,05/11/2015,793031,"8,054.44",MACINTYRE CARE,SP0000473
WANDSWORTH COUNCIL,ASC,SOCIAL SERVICES,PRIVATE,Revenue,EXTERNAL RESIDENTIAL CARE,130245330,05/11/2015,793032,"5,030.56",MACINTYRE CARE,SP0000473
WANDSWORTH COUNCIL,ASC,SOCIAL SERVICES,PRIVATE,Revenue,EXTERNAL RESIDENTIAL CARE,130245330,05/11/2015,793033,"5,429.76",MACINTYRE CARE,SP0000473
WANDSWORTH COUNCIL,ASC,SOCIAL SERVICES,PRIVATE,Revenue,EXTERNAL RESIDENTIAL CARE,130245330,05/11/2015,793034,"4,907.76",MACINTYRE CARE,SP0000473
WANDSWORTH COUNCIL,ASC,SOCIAL SERVICES,PRIVATE,Revenue,EXTERNAL RESIDENTIAL CARE,130245330,05/11/2015,793035,"4,296.00",MACINTYRE CARE,SP0000473
WANDSWORTH COUNCIL,ASC,SOCIAL SERVICES,PRIVATE,Revenue,EXTERNAL RESIDENTIAL CARE,130245330,05/11/2015,793036,"4,909.16",MACINTYRE CARE,SP0000473
WANDSWORTH COUNCIL,ASC,SOCIAL SERVICES,PRIVATE,Revenue,EXTERNAL RESIDENTIAL CARE,130245330,05/11/2015,793037,"4,909.16",MACINTYRE CARE,SP0000473
WANDSWORTH COUNCIL,ASC,SOCIAL SERVICES,PRIVATE,Revenue,EXTERNAL RESIDENTIAL CARE,130245330,05/11/2015,793039,"4,907.76",MACINTYRE CARE,SP0000473
WANDSWORTH COUNCIL,ASC,SOCIAL SERVICES,PRIVATE,Revenue,EXTERNAL RESIDENTIAL CARE,130245330,05/11/2015,793040,"4,907.76",MACINTYRE CARE,SP0000473
WANDSWORTH COUNCIL,ASC,SOCIAL SERVICES,PRIVATE,Revenue,EXTERNAL RESIDENTIAL CARE,130245330,05/11/2015,793041,"5,030.56",MACINTYRE CARE,SP0000473
WANDSWORTH COUNCIL,ASC,SOCIAL SERVICES,PRIVATE,Revenue,EXTERNAL RESIDENTIAL CARE,130245330,05/11/2015,793042,"4,907.76",MACINTYRE CARE,SP0000473
WANDSWORTH COUNCIL,ASC,SOCIAL SERVICES,PRIVATE,Revenue,EXTERNAL RESIDENTIAL CARE,130245330,24/11/2015,810104,"3,759.64",MACINTYRE CARE,SP0000473
WANDSWORTH COUNCIL,ASC,SOCIAL SERVICES,PRIVATE,Revenue,EXTERNAL RESIDENTIAL CARE,130245330,24/11/2015,810105,"5,429.64",MACINTYRE CARE,SP0000473
WANDSWORTH COUNCIL,ASC,SOCIAL SERVICES,PRIVATE,Revenue,EXTERNAL RESIDENTIAL CARE,130245330,24/11/2015,810107,"3,759.64",MACINTYRE CARE,SP0000473
WANDSWORTH COUNCIL,ASC,SOCIAL SERVICES,PRIVATE,Revenue,EXTERNAL RESIDENTIAL CARE,130245330,24/11/2015,810108,"5,192.48",MACINTYRE CARE,SP0000473
WANDSWORTH COUNCIL,ASC,SOCIAL SERVICES,PRIVATE,Revenue,EXTERNAL RESIDENTIAL CARE,130245330,24/11/2015,810109,"3,750.72",MACINTYRE CARE,SP0000473
WANDSWORTH COUNCIL,ASC,SOCIAL SERVICES,PRIVATE,Revenue,EXTERNAL RESIDENTIAL CARE,130245330,24/11/2015,810110,"3,813.84",MACINTYRE CARE,SP0000473
WANDSWORTH COUNCIL,ASC,SOCIAL SERVICES,PRIVATE,Revenue,EXTERNAL RESIDENTIAL CARE,130245330,24/11/2015,810111,"4,998.84",MACINTYRE CARE,SP0000473
WANDSWORTH COUNCIL,ASC,SOCIAL SERVICES,PRIVATE,Revenue,EXTERNAL RESIDENTIAL CARE,130245330,24/11/2015,810112,"5,097.20",MACINTYRE CARE,SP0000473
WANDSWORTH COUNCIL,ASC,SOCIAL SERVICES,PRIVATE,Revenue,EXTERNAL RESIDENTIAL CARE,130245330,24/11/2015,810113,"8,045.24",MACINTYRE CARE,SP0000473
WANDSWORTH COUNCIL,ASC,SOCIAL SERVICES,PRIVATE,Revenue,EXTERNAL RESIDENTIAL CARE,130245330,24/11/2015,810114,"5,030.56",MACINTYRE CARE,SP0000473
WANDSWORTH COUNCIL,ASC,SOCIAL SERVICES,PRIVATE,Revenue,EXTERNAL RESIDENTIAL CARE,130245330,24/11/2015,810115,"5,429.76",MACINTYRE CARE,SP0000473
WANDSWORTH COUNCIL,ASC,SOCIAL SERVICES,PRIVATE,Revenue,EXTERNAL RESIDENTIAL CARE,130245330,24/11/2015,810116,"4,907.76",MACINTYRE CARE,SP0000473
WANDSWORTH COUNCIL,ASC,SOCIAL SERVICES,PRIVATE,Revenue,EXTERNAL RESIDENTIAL CARE,130245330,24/11/2015,810117,"4,296.00",MACINTYRE CARE,SP0000473
WANDSWORTH COUNCIL,ASC,SOCIAL SERVICES,PRIVATE,Revenue,EXTERNAL RESIDENTIAL CARE,130245330,24/11/2015,810118,"4,909.16",MACINTYRE CARE,SP0000473
WANDSWORTH COUNCIL,ASC,SOCIAL SERVICES,PRIVATE,Revenue,EXTERNAL RESIDENTIAL CARE,130245330,24/11/2015,810119,"4,909.16",MACINTYRE CARE,SP0000473
WANDSWORTH COUNCIL,ASC,SOCIAL SERVICES,PRIVATE,Revenue,EXTERNAL RESIDENTIAL CARE,130245330,24/11/2015,810121,"4,907.76",MACINTYRE CARE,SP0000473
WANDSWORTH COUNCIL,ASC,SOCIAL SERVICES,PRIVATE,Revenue,EXTERNAL RESIDENTIAL CARE,130245330,24/11/2015,810122,"5,010.76",MACINTYRE CARE,SP0000473
WANDSWORTH COUNCIL,ASC,SOCIAL SERVICES,PRIVATE,Revenue,EXTERNAL RESIDENTIAL CARE,130245330,24/11/2015,810123,"4,907.76",MACINTYRE CARE,SP0000473
WANDSWORTH COUNCIL,ASC,SOCIAL SERVICES,PRIVATE,Revenue,EXTERNAL RESIDENTIAL CARE,130245330,24/11/2015,810124,"4,907.76",MACINTYRE CARE,SP0000473
WANDSWORTH COUNCIL,ASC,SOCIAL SERVICES,PRIVATE,Revenue,EXTERNAL RESIDENTIAL CARE,130245330,26/11/2015,813059,"2,301.48",MACINTYRE CARE,SP0000473
WANDSWORTH COUNCIL,ASC,SOCIAL SERVICES,PRIVATE,Revenue,EXTERNAL RESIDENTIAL CARE,130245330,10/11/2015,796404,"7,512.38",MCCH SOCIETY LIMITED,SP0001531
WANDSWORTH COUNCIL,ASC,SOCIAL SERVICES,PRIVATE,Revenue,EXTERNAL RESIDENTIAL CARE,130245330,10/11/2015,796405,"7,512.38",MCCH SOCIETY LIMITED,SP0001531
WANDSWORTH COUNCIL,ASC,SOCIAL SERVICES,PRIVATE,Revenue,EXTERNAL RESIDENTIAL CARE,130245330,10/11/2015,796406,"7,523.88",MCCH SOCIETY LIMITED,SP0001531
WANDSWORTH COUNCIL,ASC,SOCIAL SERVICES,PRIVATE,Revenue,EXTERNAL RESIDENTIAL CARE,130245330,10/11/2015,796407,"7,523.88",MCCH SOCIETY LIMITED,SP0001531
WANDSWORTH COUNCIL,ASC,SOCIAL SERVICES,PRIVATE,Revenue,EXTERNAL RESIDENTIAL CARE,130245330,10/11/2015,796408,"7,523.88",MCCH SOCIETY LIMITED,SP0001531
WANDSWORTH COUNCIL,ASC,SOCIAL SERVICES,PRIVATE,Revenue,EXTERNAL RESIDENTIAL CARE,130245330,10/11/2015,796409,"7,523.88",MCCH SOCIETY LIMITED,SP0001531
WANDSWORTH COUNCIL,ASC,SOCIAL SERVICES,PRIVATE,Revenue,EXTERNAL RESIDENTIAL CARE,130245330,16/11/2015,802363,"7,523.88",MCCH SOCIETY LIMITED,SP0001531
WANDSWORTH COUNCIL,ASC,SOCIAL SERVICES,PRIVATE,Revenue,EXTERNAL RESIDENTIAL CARE,130245330,16/11/2015,802364,"7,523.88",MCCH SOCIETY LIMITED,SP0001531
WANDSWORTH COUNCIL,ASC,SOCIAL SERVICES,PRIVATE,Revenue,EXTERNAL RESIDENTIAL CARE,130245330,12/11/2015,800331,"3,342.94",MENCAP,SP0000604
WANDSWORTH COUNCIL,ASC,SOCIAL SERVICES,PRIVATE,Revenue,EXTERNAL RESIDENTIAL CARE,130245330,12/11/2015,800332,"3,342.94",MENCAP,SP0000604
WANDSWORTH COUNCIL,ASC,SOCIAL SERVICES,PRIVATE,Revenue,EXTERNAL RESIDENTIAL CARE,130245330,12/11/2015,800335,"2,303.18",MENCAP,SP0000604
WANDSWORTH COUNCIL,ASC,SOCIAL SERVICES,PRIVATE,Revenue,EXTERNAL RESIDENTIAL CARE,130245330,10/11/2015,796448,"3,659.52",METROPOLITAN HOUSING TRUST,SP0000626
WANDSWORTH COUNCIL,ASC,SOCIAL SERVICES,PRIVATE,Revenue,EXTERNAL RESIDENTIAL CARE,130245330,10/11/2015,796449,"3,659.52",METROPOLITAN HOUSING TRUST,SP0000626
WANDSWORTH COUNCIL,ASC,SOCIAL SERVICES,PRIVATE,Revenue,EXTERNAL RESIDENTIAL CARE,130245330,10/11/2015,796450,"3,659.52",METROPOLITAN HOUSING TRUST,SP0000626
WANDSWORTH COUNCIL,ASC,SOCIAL SERVICES,PRIVATE,Revenue,EXTERNAL RESIDENTIAL CARE,130245330,10/11/2015,796451,"3,659.68",METROPOLITAN HOUSING TRUST,SP0000626
WANDSWORTH COUNCIL,ASC,SOCIAL SERVICES,PRIVATE,Revenue,EXTERNAL RESIDENTIAL CARE,130245330,10/11/2015,796452,"3,659.52",METROPOLITAN HOUSING TRUST,SP0000626
WANDSWORTH COUNCIL,ASC,SOCIAL SERVICES,PRIVATE,Revenue,EXTERNAL RESIDENTIAL CARE,130245330,10/11/2015,796453,"3,648.03",METROPOLITAN HOUSING TRUST,SP0000626
WANDSWORTH COUNCIL,ASC,SOCIAL SERVICES,PRIVATE,Revenue,EXTERNAL RESIDENTIAL CARE,130245330,10/11/2015,796454,"2,875.33",METROPOLITAN HOUSING TRUST,SP0000626
WANDSWORTH COUNCIL,ASC,SOCIAL SERVICES,PRIVATE,Revenue,EXTERNAL RESIDENTIAL CARE,130245330,10/11/2015,796455,"3,812.04",METROPOLITAN HOUSING TRUST,SP0000626
WANDSWORTH COUNCIL,ASC,SOCIAL SERVICES,PRIVATE,Revenue,EXTERNAL RESIDENTIAL CARE,130245330,10/11/2015,796456,"3,659.52",METROPOLITAN HOUSING TRUST,SP0000626
WANDSWORTH COUNCIL,ASC,SOCIAL SERVICES,PRIVATE,Revenue,EXTERNAL RESIDENTIAL CARE,130245330,10/11/2015,798101,"4,756.92",METROPOLITAN HOUSING TRUST,SP0000626
WANDSWORTH COUNCIL,ASC,SOCIAL SERVICES,PRIVATE,Revenue,EXTERNAL RESIDENTIAL CARE,130245330,10/11/2015,798102,"4,756.88",METROPOLITAN HOUSING TRUST,SP0000626
WANDSWORTH COUNCIL,ASC,SOCIAL SERVICES,PRIVATE,Revenue,EXTERNAL RESIDENTIAL CARE,130245330,10/11/2015,798103,"4,756.88",METROPOLITAN HOUSING TRUST,SP0000626
WANDSWORTH COUNCIL,ASC,SOCIAL SERVICES,PRIVATE,Revenue,EXTERNAL RESIDENTIAL CARE,130245330,10/11/2015,798104,"4,427.04",METROPOLITAN HOUSING TRUST,SP0000626
WANDSWORTH COUNCIL,ASC,SOCIAL SERVICES,PRIVATE,Revenue,EXTERNAL RESIDENTIAL CARE,130245330,10/11/2015,798105,"4,709.79",METROPOLITAN HOUSING TRUST,SP0000626
WANDSWORTH COUNCIL,ASC,SOCIAL SERVICES,PRIVATE,Revenue,EXTERNAL RESIDENTIAL CARE,130245330,10/11/2015,798106,"4,709.79",METROPOLITAN HOUSING TRUST,SP0000626
WANDSWORTH COUNCIL,ASC,SOCIAL SERVICES,PRIVATE,Revenue,EXTERNAL RESIDENTIAL CARE,130245330,10/11/2015,798108,"4,709.79",METROPOLITAN HOUSING TRUST,SP0000626
WANDSWORTH COUNCIL,ASC,SOCIAL SERVICES,PRIVATE,Revenue,EXTERNAL RESIDENTIAL CARE,130245330,12/11/2015,800373,"2,930.00",MISSION CARE,SP0000958
WANDSWORTH COUNCIL,ASC,SOCIAL SERVICES,PRIVATE,Revenue,EXTERNAL RESIDENTIAL CARE,130245330,04/11/2015,791512,"3,387.88",NAS SERVICES LIMITED,SP0000217
WANDSWORTH COUNCIL,ASC,SOCIAL SERVICES,PRIVATE,Revenue,EXTERNAL RESIDENTIAL CARE,130245330,05/11/2015,793019,"5,436.36",NAS SERVICES LIMITED,SP0000217
WANDSWORTH COUNCIL,ASC,SOCIAL SERVICES,PRIVATE,Revenue,EXTERNAL RESIDENTIAL CARE,130245330,20/11/2015,806965,"6,409.50",NATIONAL SOCIETY FOR EPILEPSY,SP0000120
WANDSWORTH COUNCIL,ASC,SOCIAL SERVICES,PRIVATE,Revenue,EXTERNAL RESIDENTIAL CARE,130245330,10/11/2015,798097,"6,154.44",NORWOOD SCHOOLS LTD,SP0000332
WANDSWORTH COUNCIL,ASC,SOCIAL SERVICES,PRIVATE,Revenue,EXTERNAL RESIDENTIAL CARE,130245330,10/11/2015,798098,"6,409.80",NORWOOD SCHOOLS LTD,SP0000332
WANDSWORTH COUNCIL,ASC,SOCIAL SERVICES,PRIVATE,Revenue,EXTERNAL RESIDENTIAL CARE,130245330,11/11/2015,799526,"6,154.44",NORWOOD SCHOOLS LTD,SP0000332
WANDSWORTH COUNCIL,ASC,SOCIAL SERVICES,PRIVATE,Revenue,EXTERNAL RESIDENTIAL CARE,130245330,11/11/2015,799527,"6,409.80",NORWOOD SCHOOLS LTD,SP0000332
WANDSWORTH COUNCIL,ASC,SOCIAL SERVICES,PRIVATE,Revenue,EXTERNAL RESIDENTIAL CARE,130245330,24/11/2015,809661,"4,242.00",NUTLEY HALL LTD,SP0001581
WANDSWORTH COUNCIL,ASC,SOCIAL SERVICES,PRIVATE,Revenue,EXTERNAL RESIDENTIAL CARE,130245330,19/11/2015,806060,"1,647.40",ORCHARD VALE TRUST,SP0000214
WANDSWORTH COUNCIL,ASC,SOCIAL SERVICES,PRIVATE,Revenue,EXTERNAL RESIDENTIAL CARE,130245330,10/11/2015,798128,"7,336.92",PATHWAY HEALTHCARE,SP0001779
WANDSWORTH COUNCIL,ASC,SOCIAL SERVICES,PRIVATE,Revenue,EXTERNAL RESIDENTIAL CARE,130245330,10/11/2015,798129,"6,904.07",PATHWAY HEALTHCARE,SP0001779
WANDSWORTH COUNCIL,ASC,SOCIAL SERVICES,PRIVATE,Revenue,EXTERNAL RESIDENTIAL CARE,130245330,19/11/2015,806078,"3,135.60",POTENSIAL LTD,SP0000395
WANDSWORTH COUNCIL,ASC,SOCIAL SERVICES,PRIVATE,Revenue,EXTERNAL RESIDENTIAL CARE,130245330,11/11/2015,799495,"8,183.47",PROGRESS HOUSING MARLOW,SP0000952
WANDSWORTH COUNCIL,ASC,SOCIAL SERVICES,PRIVATE,Revenue,EXTERNAL RESIDENTIAL CARE,130245330,12/11/2015,800375,"3,151.20",PROSPECTS,SP0000800
WANDSWORTH COUNCIL,ASC,SOCIAL SERVICES,PRIVATE,Revenue,EXTERNAL RESIDENTIAL CARE,130245330,27/11/2015,813778,"4,267.04",QUALITIES SERVICES LTD,SP0010094
WANDSWORTH COUNCIL,ASC,SOCIAL SERVICES,PRIVATE,Revenue,EXTERNAL RESIDENTIAL CARE,130245330,27/11/2015,813779,"4,267.04",QUALITIES SERVICES LTD,SP0010094
WANDSWORTH COUNCIL,ASC,SOCIAL SERVICES,PRIVATE,Revenue,EXTERNAL RESIDENTIAL CARE,130245330,27/11/2015,813780,"4,267.04",QUALITIES SERVICES LTD,SP0010094
WANDSWORTH COUNCIL,ASC,SOCIAL SERVICES,PRIVATE,Revenue,EXTERNAL RESIDENTIAL CARE,130245330,19/11/2015,806074,"8,300.05",RALEIGH HOUSE LTD,SP0000760
WANDSWORTH COUNCIL,ASC,SOCIAL SERVICES,PRIVATE,Revenue,EXTERNAL RESIDENTIAL CARE,130245330,19/11/2015,806075,"7,512.89",RALEIGH HOUSE LTD,SP0000760
WANDSWORTH COUNCIL,ASC,SOCIAL SERVICES,PRIVATE,Revenue,EXTERNAL RESIDENTIAL CARE,130245330,30/11/2015,814504,"4,062.44",RESIDENTIAL CARE SERVICES T/A FRANKLYN L,SP0000147
WANDSWORTH COUNCIL,ASC,SOCIAL SERVICES,PRIVATE,Revenue,EXTERNAL RESIDENTIAL CARE,130245330,12/11/2015,800359,"6,061.41",RESIDENTIAL COMMUNITY CARE,SP0000315
WANDSWORTH COUNCIL,ASC,SOCIAL SERVICES,PRIVATE,Revenue,EXTERNAL RESIDENTIAL CARE,130245330,05/11/2015,793016,"3,538.76",RIDGEWOOD CARE SERVICES LTD,SP0000969
WANDSWORTH COUNCIL,ASC,SOCIAL SERVICES,PRIVATE,Revenue,EXTERNAL RESIDENTIAL CARE,130245330,05/11/2015,793017,"3,766.44",RIDGEWOOD CARE SERVICES LTD,SP0000969
WANDSWORTH COUNCIL,ASC,SOCIAL SERVICES,PRIVATE,Revenue,EXTERNAL RESIDENTIAL CARE,130245330,19/11/2015,806041,"6,493.16",RIDGEWOOD CARE SERVICES LTD,SP0000969
WANDSWORTH COUNCIL,ASC,SOCIAL SERVICES,PRIVATE,Revenue,EXTERNAL RESIDENTIAL CARE,130245330,10/11/2015,798099,"8,501.28",ROOKERY HOVE PRIORY,SP0001498
WANDSWORTH COUNCIL,ASC,SOCIAL SERVICES,PRIVATE,Revenue,EXTERNAL RESIDENTIAL CARE,130245330,12/11/2015,800348,"5,840.68",ROYAL MENCAP SOCIETY,SP0000842
WANDSWORTH COUNCIL,ASC,SOCIAL SERVICES,PRIVATE,Revenue,EXTERNAL RESIDENTIAL CARE,130245330,12/11/2015,800349,"4,197.68",ROYAL MENCAP SOCIETY,SP0000842
WANDSWORTH COUNCIL,ASC,SOCIAL SERVICES,PRIVATE,Revenue,EXTERNAL RESIDENTIAL CARE,130245330,19/11/2015,806045,"5,840.68",ROYAL MENCAP SOCIETY,SP0000842
WANDSWORTH COUNCIL,ASC,SOCIAL SERVICES,PRIVATE,Revenue,EXTERNAL RESIDENTIAL CARE,130245330,19/11/2015,806046,"4,197.68",ROYAL MENCAP SOCIETY,SP0000842
WANDSWORTH COUNCIL,ASC,SOCIAL SERVICES,PRIVATE,Revenue,EXTERNAL RESIDENTIAL CARE,130245330,06/11/2015,795239,"10,219.46",SALISBURY SUPPORT 4 AUTISM LTD,SP0001691
WANDSWORTH COUNCIL,ASC,SOCIAL SERVICES,PRIVATE,Revenue,EXTERNAL RESIDENTIAL CARE,130245330,30/11/2015,814515,"9,889.80",SALISBURY SUPPORT 4 AUTISM LTD,SP0001691
WANDSWORTH COUNCIL,ASC,SOCIAL SERVICES,PRIVATE,Revenue,EXTERNAL RESIDENTIAL CARE,130245330,06/11/2015,794631,"3,280.22",SANCTUARY CARE LTD,SP0000121
WANDSWORTH COUNCIL,ASC,SOCIAL SERVICES,PRIVATE,Revenue,EXTERNAL RESIDENTIAL CARE,130245330,03/11/2015,790062,"8,569.29",SEEABILITY,SP0000572
WANDSWORTH COUNCIL,ASC,SOCIAL SERVICES,PRIVATE,Revenue,EXTERNAL RESIDENTIAL CARE,130245330,06/11/2015,795228,"10,566.57",SEQUENCE CARE GROUP,SP0009709
WANDSWORTH COUNCIL,ASC,SOCIAL SERVICES,PRIVATE,Revenue,EXTERNAL RESIDENTIAL CARE,130245330,26/11/2015,813063,"10,225.71",SEQUENCE CARE GROUP,SP0009709
WANDSWORTH COUNCIL,ASC,SOCIAL SERVICES,PRIVATE,Revenue,EXTERNAL RESIDENTIAL CARE,130245330,30/11/2015,814516,"2,177.99",ST DAVIDS CARE IN THE COMMUNITY,SP0000379
WANDSWORTH COUNCIL,ASC,SOCIAL SERVICES,PRIVATE,Revenue,EXTERNAL RESIDENTIAL CARE,130245330,30/11/2015,814517,"2,624.99",ST DAVIDS CARE IN THE COMMUNITY,SP0000379
WANDSWORTH COUNCIL,ASC,SOCIAL SERVICES,PRIVATE,Revenue,EXTERNAL RESIDENTIAL CARE,130245330,30/11/2015,814518,"2,177.99",ST DAVIDS CARE IN THE COMMUNITY,SP0000379
WANDSWORTH COUNCIL,ASC,SOCIAL SERVICES,PRIVATE,Revenue,EXTERNAL RESIDENTIAL CARE,130245330,05/11/2015,792945,"3,619.78",ST MARYS RESIDENTIAL HOME,SP0000215
WANDSWORTH COUNCIL,ASC,SOCIAL SERVICES,PRIVATE,Revenue,EXTERNAL RESIDENTIAL CARE,130245330,05/11/2015,792946,"3,619.77",ST MARYS RESIDENTIAL HOME,SP0000215
WANDSWORTH COUNCIL,ASC,SOCIAL SERVICES,PRIVATE,Revenue,EXTERNAL RESIDENTIAL CARE,130245330,05/11/2015,792947,"3,503.02",ST MARYS RESIDENTIAL HOME,SP0000215
WANDSWORTH COUNCIL,ASC,SOCIAL SERVICES,PRIVATE,Revenue,EXTERNAL RESIDENTIAL CARE,130245330,05/11/2015,792948,817.37,ST MARYS RESIDENTIAL HOME,SP0000215
WANDSWORTH COUNCIL,ASC,SOCIAL SERVICES,PRIVATE,Revenue,EXTERNAL RESIDENTIAL CARE,130245330,05/11/2015,792949,"1,485.71",ST MARYS RESIDENTIAL HOME,SP0000215
WANDSWORTH COUNCIL,ASC,SOCIAL SERVICES,PRIVATE,Revenue,EXTERNAL RESIDENTIAL CARE,130245330,10/11/2015,798081,"3,828.56",ST MARYS RESIDENTIAL HOME,SP0000215
WANDSWORTH COUNCIL,ASC,SOCIAL SERVICES,PRIVATE,Revenue,EXTERNAL RESIDENTIAL CARE,130245330,10/11/2015,798082,"3,772.97",ST MARYS RESIDENTIAL HOME,SP0000215
WANDSWORTH COUNCIL,ASC,SOCIAL SERVICES,PRIVATE,Revenue,EXTERNAL RESIDENTIAL CARE,130245330,10/11/2015,798083,"3,454.67",ST MARYS RESIDENTIAL HOME,SP0000215
WANDSWORTH COUNCIL,ASC,SOCIAL SERVICES,PRIVATE,Revenue,EXTERNAL RESIDENTIAL CARE,130245330,10/11/2015,798084,"3,033.08",ST MARYS RESIDENTIAL HOME,SP0000215
WANDSWORTH COUNCIL,ASC,SOCIAL SERVICES,PRIVATE,Revenue,EXTERNAL RESIDENTIAL CARE,130245330,10/11/2015,798085,"4,877.65",ST MARYS RESIDENTIAL HOME,SP0000215
WANDSWORTH COUNCIL,ASC,SOCIAL SERVICES,PRIVATE,Revenue,EXTERNAL RESIDENTIAL CARE,130245330,10/11/2015,798086,"3,503.01",ST MARYS RESIDENTIAL HOME,SP0000215
WANDSWORTH COUNCIL,ASC,SOCIAL SERVICES,PRIVATE,Revenue,EXTERNAL RESIDENTIAL CARE,130245330,10/11/2015,798087,"3,467.14",ST MARYS RESIDENTIAL HOME,SP0000215
WANDSWORTH COUNCIL,ASC,SOCIAL SERVICES,PRIVATE,Revenue,EXTERNAL RESIDENTIAL CARE,130245330,10/11/2015,798088,"3,269.48",ST MARYS RESIDENTIAL HOME,SP0000215
WANDSWORTH COUNCIL,ASC,SOCIAL SERVICES,PRIVATE,Revenue,EXTERNAL RESIDENTIAL CARE,130245330,10/11/2015,798089,"3,418.51",ST MARYS RESIDENTIAL HOME,SP0000215
WANDSWORTH COUNCIL,ASC,SOCIAL SERVICES,PRIVATE,Revenue,EXTERNAL RESIDENTIAL CARE,130245330,10/11/2015,798090,"2,238.85",ST MARYS RESIDENTIAL HOME,SP0000215
WANDSWORTH COUNCIL,ASC,SOCIAL SERVICES,PRIVATE,Revenue,EXTERNAL RESIDENTIAL CARE,130245330,10/11/2015,798091,"3,097.12",ST MARYS RESIDENTIAL HOME,SP0000215
WANDSWORTH COUNCIL,ASC,SOCIAL SERVICES,PRIVATE,Revenue,EXTERNAL RESIDENTIAL CARE,130245330,10/11/2015,798092,"3,539.72",ST MARYS RESIDENTIAL HOME,SP0000215
WANDSWORTH COUNCIL,ASC,SOCIAL SERVICES,PRIVATE,Revenue,EXTERNAL RESIDENTIAL CARE,130245330,24/11/2015,810096,"3,591.90",ST MARYS RESIDENTIAL HOME,SP0000215
WANDSWORTH COUNCIL,ASC,SOCIAL SERVICES,PRIVATE,Revenue,EXTERNAL RESIDENTIAL CARE,130245330,10/11/2015,796445,"3,257.26",STALLCOMBE HOUSE,SP0000843
WANDSWORTH COUNCIL,ASC,SOCIAL SERVICES,PRIVATE,Revenue,EXTERNAL RESIDENTIAL CARE,130245330,19/11/2015,806073,"3,152.19",STALLCOMBE HOUSE,SP0000843
WANDSWORTH COUNCIL,ASC,SOCIAL SERVICES,PRIVATE,Revenue,EXTERNAL RESIDENTIAL CARE,130245330,13/11/2015,801563,"8,982.39",SURREY & BORDERS PARTNERSHIP NHS TRUST,SP0000501
WANDSWORTH COUNCIL,ASC,SOCIAL SERVICES,PRIVATE,Revenue,EXTERNAL RESIDENTIAL CARE,130245330,13/11/2015,801564,"5,622.80",SURREY & BORDERS PARTNERSHIP NHS TRUST,SP0000501
WANDSWORTH COUNCIL,ASC,SOCIAL SERVICES,PRIVATE,Revenue,EXTERNAL RESIDENTIAL CARE,130245330,26/11/2015,813065,"13,801.00",SURREY & BORDERS PARTNERSHIP NHS TRUST,SP0000501
WANDSWORTH COUNCIL,ASC,SOCIAL SERVICES,PRIVATE,Revenue,EXTERNAL RESIDENTIAL CARE,130245330,13/11/2015,801545,"6,234.50",SUSSEX AUTISTIC COMMUNITY TRUST(CARE SER,SP0000652
WANDSWORTH COUNCIL,ASC,SOCIAL SERVICES,PRIVATE,Revenue,EXTERNAL RESIDENTIAL CARE,130245330,06/11/2015,795241,"5,987.06",SUSSEX HEALTH CARE,SP0001115
WANDSWORTH COUNCIL,ASC,SOCIAL SERVICES,PRIVATE,Revenue,EXTERNAL RESIDENTIAL CARE,130245330,11/11/2015,799492,"7,131.22",SUSSEX HEALTH CARE,SP0001115
WANDSWORTH COUNCIL,ASC,SOCIAL SERVICES,PRIVATE,Revenue,EXTERNAL RESIDENTIAL CARE,130245330,27/11/2015,813750,"6,183.58",SUSSEX HEALTH CARE,SP0001115
WANDSWORTH COUNCIL,ASC,SOCIAL SERVICES,PRIVATE,Revenue,EXTERNAL RESIDENTIAL CARE,130245330,30/11/2015,814519,"7,342.12",SUSSEX HEALTH CARE,SP0001115
WANDSWORTH COUNCIL,ASC,SOCIAL SERVICES,PRIVATE,Revenue,EXTERNAL RESIDENTIAL CARE,130245330,04/11/2015,791498,"6,408.96",THE BRANDON TRUST,SP0005337
WANDSWORTH COUNCIL,ASC,SOCIAL SERVICES,PRIVATE,Revenue,EXTERNAL RESIDENTIAL CARE,130245330,13/11/2015,801541,"5,555.20",THE CHESTNUTS,SP0000182
WANDSWORTH COUNCIL,ASC,SOCIAL SERVICES,PRIVATE,Revenue,EXTERNAL RESIDENTIAL CARE,130245330,26/11/2015,813074,"5,555.20",THE CHESTNUTS,SP0000182
WANDSWORTH COUNCIL,ASC,SOCIAL SERVICES,PRIVATE,Revenue,EXTERNAL RESIDENTIAL CARE,130245330,05/11/2015,792954,"5,462.22",THE COMMUNITY CARE COMPANY UK LTD,SP0000576
WANDSWORTH COUNCIL,ASC,SOCIAL SERVICES,PRIVATE,Revenue,EXTERNAL RESIDENTIAL CARE,130245330,05/11/2015,792955,"6,892.28",THE COMMUNITY CARE COMPANY UK LTD,SP0000576
WANDSWORTH COUNCIL,ASC,SOCIAL SERVICES,PRIVATE,Revenue,EXTERNAL RESIDENTIAL CARE,130245330,05/11/2015,792956,"5,809.06",THE COMMUNITY CARE COMPANY UK LTD,SP0000576
WANDSWORTH COUNCIL,ASC,SOCIAL SERVICES,PRIVATE,Revenue,EXTERNAL RESIDENTIAL CARE,130245330,05/11/2015,792957,"6,970.79",THE COMMUNITY CARE COMPANY UK LTD,SP0000576
WANDSWORTH COUNCIL,ASC,SOCIAL SERVICES,PRIVATE,Revenue,EXTERNAL RESIDENTIAL CARE,130245330,05/11/2015,792958,"5,989.02",THE COMMUNITY CARE COMPANY UK LTD,SP0000576
WANDSWORTH COUNCIL,ASC,SOCIAL SERVICES,PRIVATE,Revenue,EXTERNAL RESIDENTIAL CARE,130245330,11/11/2015,799488,630.00,THE COMMUNITY CARE COMPANY UK LTD,SP0000576
WANDSWORTH COUNCIL,ASC,SOCIAL SERVICES,PRIVATE,Revenue,EXTERNAL RESIDENTIAL CARE,130245330,11/11/2015,799493,"7,460.27",THE DISABILITIES TRUST,SP0000239
WANDSWORTH COUNCIL,ASC,SOCIAL SERVICES,PRIVATE,Revenue,EXTERNAL RESIDENTIAL CARE,130245330,04/11/2015,791510,"3,708.20",THE HOME FARM TRUST LTD,SP0001048
WANDSWORTH COUNCIL,ASC,SOCIAL SERVICES,PRIVATE,Revenue,EXTERNAL RESIDENTIAL CARE,130245330,24/11/2015,809655,"2,323.00",THE HOME FARM TRUST LTD,SP0001048
WANDSWORTH COUNCIL,ASC,SOCIAL SERVICES,PRIVATE,Revenue,EXTERNAL RESIDENTIAL CARE,130245330,20/11/2015,806964,"3,957.32",THE LEO TRUST,SP0000908
WANDSWORTH COUNCIL,ASC,SOCIAL SERVICES,PRIVATE,Revenue,EXTERNAL RESIDENTIAL CARE,130245330,10/11/2015,798121,"2,409.62",THE MANOR,SP0000340
WANDSWORTH COUNCIL,ASC,SOCIAL SERVICES,PRIVATE,Revenue,EXTERNAL RESIDENTIAL CARE,130245330,20/11/2015,806971,"9,223.48",THE MAPLES,SP0000154
WANDSWORTH COUNCIL,ASC,SOCIAL SERVICES,PRIVATE,Revenue,EXTERNAL RESIDENTIAL CARE,130245330,13/11/2015,801562,"5,875.84",THE REGARD PARTNERSHIP,SP0000588
WANDSWORTH COUNCIL,ASC,SOCIAL SERVICES,PRIVATE,Revenue,EXTERNAL RESIDENTIAL CARE,130245330,19/11/2015,806036,"6,913.71",THE REGARD PARTNERSHIP,SP0000588
WANDSWORTH COUNCIL,ASC,SOCIAL SERVICES,PRIVATE,Revenue,EXTERNAL RESIDENTIAL CARE,130245330,19/11/2015,806037,"7,242.14",THE REGARD PARTNERSHIP,SP0000588
WANDSWORTH COUNCIL,ASC,SOCIAL SERVICES,PRIVATE,Revenue,EXTERNAL RESIDENTIAL CARE,130245330,19/11/2015,806038,"6,816.98",THE REGARD PARTNERSHIP,SP0000588
WANDSWORTH COUNCIL,ASC,SOCIAL SERVICES,PRIVATE,Revenue,EXTERNAL RESIDENTIAL CARE,130245330,19/11/2015,806039,"6,524.24",THE REGARD PARTNERSHIP,SP0000588
WANDSWORTH COUNCIL,ASC,SOCIAL SERVICES,PRIVATE,Revenue,EXTERNAL RESIDENTIAL CARE,130245330,19/11/2015,806040,"7,618.28",THE REGARD PARTNERSHIP,SP0000588
WANDSWORTH COUNCIL,ASC,SOCIAL SERVICES,PRIVATE,Revenue,EXTERNAL RESIDENTIAL CARE,130245330,26/11/2015,813062,"5,875.84",THE REGARD PARTNERSHIP,SP0000588
WANDSWORTH COUNCIL,ASC,SOCIAL SERVICES,PRIVATE,Revenue,EXTERNAL RESIDENTIAL CARE,130245330,27/11/2015,813760,"7,483.53",THE REGARD PARTNERSHIP,SP0000588
WANDSWORTH COUNCIL,ASC,SOCIAL SERVICES,PRIVATE,Revenue,EXTERNAL RESIDENTIAL CARE,130245330,27/11/2015,813761,"7,044.22",THE REGARD PARTNERSHIP,SP0000588
WANDSWORTH COUNCIL,ASC,SOCIAL SERVICES,PRIVATE,Revenue,EXTERNAL RESIDENTIAL CARE,130245330,27/11/2015,813762,"7,144.16",THE REGARD PARTNERSHIP,SP0000588
WANDSWORTH COUNCIL,ASC,SOCIAL SERVICES,PRIVATE,Revenue,EXTERNAL RESIDENTIAL CARE,130245330,27/11/2015,813763,"5,006.39",THE REGARD PARTNERSHIP,SP0000588
WANDSWORTH COUNCIL,ASC,SOCIAL SERVICES,PRIVATE,Revenue,EXTERNAL RESIDENTIAL CARE,130245330,27/11/2015,813764,"7,872.23",THE REGARD PARTNERSHIP,SP0000588
WANDSWORTH COUNCIL,ASC,SOCIAL SERVICES,PRIVATE,Revenue,EXTERNAL RESIDENTIAL CARE,130245330,24/11/2015,810081,"4,654.32",THE WELL HOUSE,SP0000448
WANDSWORTH COUNCIL,ASC,SOCIAL SERVICES,PRIVATE,Revenue,EXTERNAL RESIDENTIAL CARE,130245330,24/11/2015,810082,"4,392.15",THE WELL HOUSE,SP0000448
WANDSWORTH COUNCIL,ASC,SOCIAL SERVICES,PRIVATE,Revenue,EXTERNAL RESIDENTIAL CARE,130245330,24/11/2015,810092,"7,395.80",TOTTERDOWN,SP0001113
WANDSWORTH COUNCIL,ASC,SOCIAL SERVICES,PRIVATE,Revenue,EXTERNAL RESIDENTIAL CARE,130245330,24/11/2015,810093,"3,671.24",TOTTERDOWN,SP0001113
WANDSWORTH COUNCIL,ASC,SOCIAL SERVICES,PRIVATE,Revenue,EXTERNAL RESIDENTIAL CARE,130245330,03/11/2015,790060,"18,638.08",TRELOAR SCHOOL,SP0000200
WANDSWORTH COUNCIL,ASC,SOCIAL SERVICES,PRIVATE,Revenue,EXTERNAL RESIDENTIAL CARE,130245330,04/11/2015,791490,"3,140.56",UNITED RESPONSE,SP0000797
WANDSWORTH COUNCIL,ASC,SOCIAL SERVICES,PRIVATE,Revenue,EXTERNAL RESIDENTIAL CARE,130245330,19/11/2015,806063,"6,108.81",WESSEX AUTISTIC SOCIETY,SP0000805
WANDSWORTH COUNCIL,ASC,SOCIAL SERVICES,PRIVATE,Revenue,EXTERNAL RESIDENTIAL CARE,130245330,10/11/2015,798125,"4,835.04",WHITE ROSE CARE,SP0000780
WANDSWORTH COUNCIL,ASC,SOCIAL SERVICES,PRIVATE,Revenue,EXTERNAL RESIDENTIAL CARE,130245330,26/11/2015,813067,"5,133.28",WHITMORE VALE HOUSING ASSOCIATION LTD,SP0000694
WANDSWORTH COUNCIL,ASC,SOCIAL SERVICES,PRIVATE,Revenue,EXTERNAL RESIDENTIAL CARE,130245330,19/11/2015,806076,"5,599.36",WINSLOW COURT,SP0000886
WANDSWORTH COUNCIL,ASC,SOCIAL SERVICES,PRIVATE,Revenue,EXTERNAL RESIDENTIAL CARE,130245330,19/11/2015,806077,"5,819.32",WINSLOW COURT,SP0000886
WANDSWORTH COUNCIL,ASC,SOCIAL SERVICES,PRIVATE,Revenue,EXTERNAL RESI RESPITE CARE,130245340,10/11/2015,798070,"28,986.00",RUSKIN MILL COLLEGE,SP0000803
WANDSWORTH COUNCIL,ASC,SOCIAL SERVICES,PRIVATE,Revenue,EXTERNAL RESI RESPITE CARE,130245340,06/11/2015,795203,"3,130.00",THE BRANDON TRUST,SP0005337
WANDSWORTH COUNCIL,ASC,SOCIAL SERVICES,PRIVATE,Revenue,ONE TO ONE CARE,130246220,16/11/2015,802467,"1,953.00",ACH OF LONDON LLP,SP0001688
WANDSWORTH COUNCIL,ASC,SOCIAL SERVICES,PRIVATE,Revenue,ONE TO ONE CARE,130246220,16/11/2015,802361,"1,600.44",CORICH COMMUNITY CARE LTD,SP0000915
WANDSWORTH COUNCIL,ASC,SOCIAL SERVICES,PRIVATE,Revenue,ONE TO ONE CARE,130246220,12/11/2015,800405,"3,214.29",CRAEGMOOR OLD RECTORY BREDE PRIORY,SP0001621
WANDSWORTH COUNCIL,ASC,SOCIAL SERVICES,PRIVATE,Revenue,ONE TO ONE CARE,130246220,12/11/2015,800406,"2,791.71",DOWNING (CHERTSEY ROAD) LTD,SP0000959
WANDSWORTH COUNCIL,ASC,SOCIAL SERVICES,PRIVATE,Revenue,ONE TO ONE CARE,130246220,11/11/2015,798960,979.69,FRANCES TAYLOR FOUNDATION,SP0000142
WANDSWORTH COUNCIL,ASC,SOCIAL SERVICES,PRIVATE,Revenue,ONE TO ONE CARE,130246220,12/11/2015,800411,979.69,FRANCES TAYLOR FOUNDATION,SP0000142
WANDSWORTH COUNCIL,ASC,SOCIAL SERVICES,PRIVATE,Revenue,ONE TO ONE CARE,130246220,12/11/2015,800413,948.09,FRANCES TAYLOR FOUNDATION,SP0000142
WANDSWORTH COUNCIL,ASC,SOCIAL SERVICES,PRIVATE,Revenue,ONE TO ONE CARE,130246220,06/11/2015,793953,"2,214.00",FRONTIER SUPPORT SERVICES LTD,SP0001132
WANDSWORTH COUNCIL,ASC,SOCIAL SERVICES,PRIVATE,Revenue,ONE TO ONE CARE,130246220,17/11/2015,803907,44.25,FRONTIER SUPPORT SERVICES LTD,SP0001132
WANDSWORTH COUNCIL,ASC,SOCIAL SERVICES,PRIVATE,Revenue,ONE TO ONE CARE,130246220,17/11/2015,803911,708.24,FRONTIER SUPPORT SERVICES LTD,SP0001132
WANDSWORTH COUNCIL,ASC,SOCIAL SERVICES,PRIVATE,Revenue,ONE TO ONE CARE,130246220,17/11/2015,803924,590.40,FRONTIER SUPPORT SERVICES LTD,SP0001132
WANDSWORTH COUNCIL,ASC,SOCIAL SERVICES,PRIVATE,Revenue,ONE TO ONE CARE,130246220,10/11/2015,798253,802.08,LARKFIELD HALL LTD T/A PEPENBURY,SP0001378
WANDSWORTH COUNCIL,ASC,SOCIAL SERVICES,PRIVATE,Revenue,ONE TO ONE CARE,130246220,24/11/2015,809922,547.60,LIFEWAYS COMMUNITY CARE LTD,SP0000364
WANDSWORTH COUNCIL,ASC,SOCIAL SERVICES,PRIVATE,Revenue,ONE TO ONE CARE,130246220,05/11/2015,792848,"1,350.52",MACINTYRE CARE,SP0000473
WANDSWORTH COUNCIL,ASC,SOCIAL SERVICES,PRIVATE,Revenue,ONE TO ONE CARE,130246220,05/11/2015,792849,"1,350.52",MACINTYRE CARE,SP0000473
WANDSWORTH COUNCIL,ASC,SOCIAL SERVICES,PRIVATE,Revenue,ONE TO ONE CARE,130246220,05/11/2015,792850,"1,910.04",MACINTYRE CARE,SP0000473
WANDSWORTH COUNCIL,ASC,SOCIAL SERVICES,PRIVATE,Revenue,ONE TO ONE CARE,130246220,05/11/2015,792851,"1,350.52",MACINTYRE CARE,SP0000473
WANDSWORTH COUNCIL,ASC,SOCIAL SERVICES,PRIVATE,Revenue,ONE TO ONE CARE,130246220,05/11/2015,792852,694.56,MACINTYRE CARE,SP0000473
WANDSWORTH COUNCIL,ASC,SOCIAL SERVICES,PRIVATE,Revenue,ONE TO ONE CARE,130246220,24/11/2015,810293,"1,350.52",MACINTYRE CARE,SP0000473
WANDSWORTH COUNCIL,ASC,SOCIAL SERVICES,PRIVATE,Revenue,ONE TO ONE CARE,130246220,24/11/2015,810294,"1,350.52",MACINTYRE CARE,SP0000473
WANDSWORTH COUNCIL,ASC,SOCIAL SERVICES,PRIVATE,Revenue,ONE TO ONE CARE,130246220,24/11/2015,810295,"1,910.04",MACINTYRE CARE,SP0000473
WANDSWORTH COUNCIL,ASC,SOCIAL SERVICES,PRIVATE,Revenue,ONE TO ONE CARE,130246220,24/11/2015,810296,"1,350.52",MACINTYRE CARE,SP0000473
WANDSWORTH COUNCIL,ASC,SOCIAL SERVICES,PRIVATE,Revenue,ONE TO ONE CARE,130246220,24/11/2015,810297,694.56,MACINTYRE CARE,SP0000473
WANDSWORTH COUNCIL,ASC,SOCIAL SERVICES,PRIVATE,Revenue,ONE TO ONE CARE,130246220,10/11/2015,798245,"2,718.72",METROPOLITAN HOUSING TRUST,SP0000626
WANDSWORTH COUNCIL,ASC,SOCIAL SERVICES,PRIVATE,Revenue,ONE TO ONE CARE,130246220,10/11/2015,798247,"2,459.52",METROPOLITAN HOUSING TRUST,SP0000626
WANDSWORTH COUNCIL,ASC,SOCIAL SERVICES,PRIVATE,Revenue,ONE TO ONE CARE,130246220,10/11/2015,798249,"1,698.24",METROPOLITAN HOUSING TRUST,SP0000626
WANDSWORTH COUNCIL,ASC,SOCIAL SERVICES,PRIVATE,Revenue,ONE TO ONE CARE,130246220,24/11/2015,809971,"1,823.61",METROPOLITAN HOUSING TRUST,SP0000626
WANDSWORTH COUNCIL,ASC,SOCIAL SERVICES,PRIVATE,Revenue,ONE TO ONE CARE,130246220,16/11/2015,802457,"2,133.60",RAINBOW MEDICAL SERVICES,SP0000037
WANDSWORTH COUNCIL,ASC,SOCIAL SERVICES,PRIVATE,Revenue,ONE TO ONE CARE,130246220,16/11/2015,802459,"1,553.60",RAINBOW MEDICAL SERVICES,SP0000037
WANDSWORTH COUNCIL,ASC,SOCIAL SERVICES,PRIVATE,Revenue,ONE TO ONE CARE,130246220,17/11/2015,803925,914.40,RAINBOW MEDICAL SERVICES,SP0000037
WANDSWORTH COUNCIL,ASC,SOCIAL SERVICES,PRIVATE,Revenue,ONE TO ONE CARE,130246220,10/11/2015,798243,671.40,ST MARYS RESIDENTIAL HOME,SP0000215
WANDSWORTH COUNCIL,ASC,SOCIAL SERVICES,PRIVATE,Revenue,ONE TO ONE CARE,130246220,10/11/2015,798244,627.90,ST MARYS RESIDENTIAL HOME,SP0000215
WANDSWORTH COUNCIL,ASC,SOCIAL SERVICES,PRIVATE,Revenue,ONE TO ONE CARE,130246220,04/11/2015,791267,324.00,THE BRANDON TRUST,SP0005337
WANDSWORTH COUNCIL,ASC,SOCIAL SERVICES,PRIVATE,Revenue,ONE TO ONE CARE,130246220,04/11/2015,791297,"1,987.20",THE BRANDON TRUST,SP0005337
WANDSWORTH COUNCIL,ASC,SOCIAL SERVICES,PRIVATE,Revenue,ONE TO ONE CARE,130246220,04/11/2015,791298,"1,312.00",THE BRANDON TRUST,SP0005337
WANDSWORTH COUNCIL,ASC,SOCIAL SERVICES,PRIVATE,Revenue,ONE TO ONE CARE,130246220,04/11/2015,791301,"2,450.88",THE BRANDON TRUST,SP0005337
WANDSWORTH COUNCIL,ASC,SOCIAL SERVICES,PRIVATE,Revenue,ONE TO ONE CARE,130246220,04/11/2015,791347,600.04,THE BRANDON TRUST,SP0005337
WANDSWORTH COUNCIL,ASC,SOCIAL SERVICES,PRIVATE,Revenue,ONE TO ONE CARE,130246220,04/11/2015,791358,331.20,THE BRANDON TRUST,SP0005337
WANDSWORTH COUNCIL,ASC,SOCIAL SERVICES,PRIVATE,Revenue,ONE TO ONE CARE,130246220,04/11/2015,791360,331.20,THE BRANDON TRUST,SP0005337
WANDSWORTH COUNCIL,ASC,SOCIAL SERVICES,PRIVATE,Revenue,ONE TO ONE CARE,130246220,05/11/2015,792839,"1,126.84",THE COMMUNITY CARE COMPANY UK LTD,SP0000576
WANDSWORTH COUNCIL,ASC,SOCIAL SERVICES,PRIVATE,Revenue,ONE TO ONE CARE,130246220,05/11/2015,792840,"1,285.11",THE COMMUNITY CARE COMPANY UK LTD,SP0000576
WANDSWORTH COUNCIL,ASC,SOCIAL SERVICES,PRIVATE,Revenue,ONE TO ONE CARE,130246220,24/11/2015,810286,"1,597.44",TOTTERDOWN,SP0001113
WANDSWORTH COUNCIL,ASC,SOCIAL SERVICES,VOL ASS,Revenue,SUPPORTED HOUSING PROGRAMME,130248030,10/11/2015,796527,"1,927.50",ACT TOO LTD,SP0000855
WANDSWORTH COUNCIL,ASC,SOCIAL SERVICES,VOL ASS,Revenue,SUPPORTED HOUSING PROGRAMME,130248030,10/11/2015,796528,690.00,ACT TOO LTD,SP0000855
WANDSWORTH COUNCIL,ASC,SOCIAL SERVICES,VOL ASS,Revenue,SUPPORTED HOUSING PROGRAMME,130248030,10/11/2015,796531,"2,160.00",ACT TOO LTD,SP0000855
WANDSWORTH COUNCIL,ASC,SOCIAL SERVICES,VOL ASS,Revenue,SUPPORTED HOUSING PROGRAMME,130248030,10/11/2015,796532,690.00,ACT TOO LTD,SP0000855
WANDSWORTH COUNCIL,ASC,SOCIAL SERVICES,VOL ASS,Revenue,SUPPORTED HOUSING PROGRAMME,130248030,06/11/2015,793949,"1,687.76",C M CARE LTD,SP0000455
WANDSWORTH COUNCIL,ASC,SOCIAL SERVICES,VOL ASS,Revenue,SUPPORTED HOUSING PROGRAMME,130248030,30/11/2015,814683,"5,000.00",CAREOLINE,SP0000483
WANDSWORTH COUNCIL,ASC,SOCIAL SERVICES,VOL ASS,Revenue,SUPPORTED HOUSING PROGRAMME,130248030,13/11/2015,801704,"8,080.68",CHOICE SUPPORT,SP0000398
WANDSWORTH COUNCIL,ASC,SOCIAL SERVICES,VOL ASS,Revenue,SUPPORTED HOUSING PROGRAMME,130248030,19/11/2015,806168,"7,822.08",CURANS CARE LTD,SP0010190
WANDSWORTH COUNCIL,ASC,SOCIAL SERVICES,VOL ASS,Revenue,SUPPORTED HOUSING PROGRAMME,130248030,17/11/2015,803907,"1,502.79",FRONTIER SUPPORT SERVICES LTD,SP0001132
WANDSWORTH COUNCIL,ASC,SOCIAL SERVICES,VOL ASS,Revenue,SUPPORTED HOUSING PROGRAMME,130248030,17/11/2015,803908,"1,535.04",FRONTIER SUPPORT SERVICES LTD,SP0001132
WANDSWORTH COUNCIL,ASC,SOCIAL SERVICES,VOL ASS,Revenue,SUPPORTED HOUSING PROGRAMME,130248030,17/11/2015,803909,"1,251.12",FRONTIER SUPPORT SERVICES LTD,SP0001132
WANDSWORTH COUNCIL,ASC,SOCIAL SERVICES,VOL ASS,Revenue,SUPPORTED HOUSING PROGRAMME,130248030,17/11/2015,803910,"15,870.84",FRONTIER SUPPORT SERVICES LTD,SP0001132
WANDSWORTH COUNCIL,ASC,SOCIAL SERVICES,VOL ASS,Revenue,SUPPORTED HOUSING PROGRAMME,130248030,17/11/2015,803911,"1,097.60",FRONTIER SUPPORT SERVICES LTD,SP0001132
WANDSWORTH COUNCIL,ASC,SOCIAL SERVICES,VOL ASS,Revenue,SUPPORTED HOUSING PROGRAMME,130248030,17/11/2015,803912,"1,533.00",FRONTIER SUPPORT SERVICES LTD,SP0001132
WANDSWORTH COUNCIL,ASC,SOCIAL SERVICES,VOL ASS,Revenue,SUPPORTED HOUSING PROGRAMME,130248030,17/11/2015,803913,"1,864.88",FRONTIER SUPPORT SERVICES LTD,SP0001132
WANDSWORTH COUNCIL,ASC,SOCIAL SERVICES,VOL ASS,Revenue,SUPPORTED HOUSING PROGRAMME,130248030,17/11/2015,803914,657.80,FRONTIER SUPPORT SERVICES LTD,SP0001132
WANDSWORTH COUNCIL,ASC,SOCIAL SERVICES,VOL ASS,Revenue,SUPPORTED HOUSING PROGRAMME,130248030,17/11/2015,803916,"1,353.32",FRONTIER SUPPORT SERVICES LTD,SP0001132
WANDSWORTH COUNCIL,ASC,SOCIAL SERVICES,VOL ASS,Revenue,SUPPORTED HOUSING PROGRAMME,130248030,17/11/2015,803917,"1,353.32",FRONTIER SUPPORT SERVICES LTD,SP0001132
WANDSWORTH COUNCIL,ASC,SOCIAL SERVICES,VOL ASS,Revenue,SUPPORTED HOUSING PROGRAMME,130248030,17/11/2015,803918,"1,097.52",FRONTIER SUPPORT SERVICES LTD,SP0001132
WANDSWORTH COUNCIL,ASC,SOCIAL SERVICES,VOL ASS,Revenue,SUPPORTED HOUSING PROGRAMME,130248030,17/11/2015,803919,"1,097.56",FRONTIER SUPPORT SERVICES LTD,SP0001132
WANDSWORTH COUNCIL,ASC,SOCIAL SERVICES,VOL ASS,Revenue,SUPPORTED HOUSING PROGRAMME,130248030,17/11/2015,803920,"1,685.92",FRONTIER SUPPORT SERVICES LTD,SP0001132
WANDSWORTH COUNCIL,ASC,SOCIAL SERVICES,VOL ASS,Revenue,SUPPORTED HOUSING PROGRAMME,130248030,17/11/2015,803923,"2,509.20",FRONTIER SUPPORT SERVICES LTD,SP0001132
WANDSWORTH COUNCIL,ASC,SOCIAL SERVICES,VOL ASS,Revenue,SUPPORTED HOUSING PROGRAMME,130248030,11/11/2015,798963,"5,246.40",GOLDKNIGHT CARE EXPERTISE LTD,SP0000891
WANDSWORTH COUNCIL,ASC,SOCIAL SERVICES,VOL ASS,Revenue,SUPPORTED HOUSING PROGRAMME,130248030,11/11/2015,798964,"5,246.40",GOLDKNIGHT CARE EXPERTISE LTD,SP0000891
WANDSWORTH COUNCIL,ASC,SOCIAL SERVICES,VOL ASS,Revenue,SUPPORTED HOUSING PROGRAMME,130248030,11/11/2015,798965,"5,246.40",GOLDKNIGHT CARE EXPERTISE LTD,SP0000891
WANDSWORTH COUNCIL,ASC,SOCIAL SERVICES,VOL ASS,Revenue,SUPPORTED HOUSING PROGRAMME,130248030,11/11/2015,798966,"5,246.40",GOLDKNIGHT CARE EXPERTISE LTD,SP0000891
WANDSWORTH COUNCIL,ASC,SOCIAL SERVICES,VOL ASS,Revenue,SUPPORTED HOUSING PROGRAMME,130248030,11/11/2015,798967,"5,246.40",GOLDKNIGHT CARE EXPERTISE LTD,SP0000891
WANDSWORTH COUNCIL,ASC,SOCIAL SERVICES,VOL ASS,Revenue,SUPPORTED HOUSING PROGRAMME,130248030,11/11/2015,798968,"2,623.20",GOLDKNIGHT CARE EXPERTISE LTD,SP0000891
WANDSWORTH COUNCIL,ASC,SOCIAL SERVICES,VOL ASS,Revenue,SUPPORTED HOUSING PROGRAMME,130248030,10/11/2015,796457,833.06,HARINGEY ASSOCIATION FOR INDEPENDENT LIV,SP0000222
WANDSWORTH COUNCIL,ASC,SOCIAL SERVICES,VOL ASS,Revenue,SUPPORTED HOUSING PROGRAMME,130248030,10/11/2015,796460,"3,247.28",HARINGEY ASSOCIATION FOR INDEPENDENT LIV,SP0000222
WANDSWORTH COUNCIL,ASC,SOCIAL SERVICES,VOL ASS,Revenue,SUPPORTED HOUSING PROGRAMME,130248030,10/11/2015,796461,"1,521.52",HARINGEY ASSOCIATION FOR INDEPENDENT LIV,SP0000222
WANDSWORTH COUNCIL,ASC,SOCIAL SERVICES,VOL ASS,Revenue,SUPPORTED HOUSING PROGRAMME,130248030,27/11/2015,813817,"1,041.33",HARINGEY ASSOCIATION FOR INDEPENDENT LIV,SP0000222
WANDSWORTH COUNCIL,ASC,SOCIAL SERVICES,VOL ASS,Revenue,SUPPORTED HOUSING PROGRAMME,130248030,27/11/2015,813818,590.10,HARINGEY ASSOCIATION FOR INDEPENDENT LIV,SP0000222
WANDSWORTH COUNCIL,ASC,SOCIAL SERVICES,VOL ASS,Revenue,SUPPORTED HOUSING PROGRAMME,130248030,27/11/2015,813819,"4,059.10",HARINGEY ASSOCIATION FOR INDEPENDENT LIV,SP0000222
WANDSWORTH COUNCIL,ASC,SOCIAL SERVICES,VOL ASS,Revenue,SUPPORTED HOUSING PROGRAMME,130248030,27/11/2015,813820,"1,901.90",HARINGEY ASSOCIATION FOR INDEPENDENT LIV,SP0000222
WANDSWORTH COUNCIL,ASC,SOCIAL SERVICES,VOL ASS,Revenue,SUPPORTED HOUSING PROGRAMME,130248030,02/11/2015,789369,"6,015.30",INDEPENDENCE HOMES LTD,SP0004378
WANDSWORTH COUNCIL,ASC,SOCIAL SERVICES,VOL ASS,Revenue,SUPPORTED HOUSING PROGRAMME,130248030,04/11/2015,791392,"5,362.48",INDEPENDENCE HOMES LTD,SP0004378
WANDSWORTH COUNCIL,ASC,SOCIAL SERVICES,VOL ASS,Revenue,SUPPORTED HOUSING PROGRAMME,130248030,04/11/2015,791393,"5,614.28",INDEPENDENCE HOMES LTD,SP0004378
WANDSWORTH COUNCIL,ASC,SOCIAL SERVICES,VOL ASS,Revenue,SUPPORTED HOUSING PROGRAMME,130248030,04/11/2015,791395,"2,603.48",LIFEWAYS COMMUNITY CARE LTD,SP0000364
WANDSWORTH COUNCIL,ASC,SOCIAL SERVICES,VOL ASS,Revenue,SUPPORTED HOUSING PROGRAMME,130248030,04/11/2015,791396,"2,498.84",LIFEWAYS COMMUNITY CARE LTD,SP0000364
WANDSWORTH COUNCIL,ASC,SOCIAL SERVICES,VOL ASS,Revenue,SUPPORTED HOUSING PROGRAMME,130248030,24/11/2015,809691,"7,303.90",LIFEWAYS COMMUNITY CARE LTD,SP0000364
WANDSWORTH COUNCIL,ASC,SOCIAL SERVICES,VOL ASS,Revenue,SUPPORTED HOUSING PROGRAMME,130248030,24/11/2015,809923,"3,885.44",LIFEWAYS COMMUNITY CARE LTD,SP0000364
WANDSWORTH COUNCIL,ASC,SOCIAL SERVICES,VOL ASS,Revenue,SUPPORTED HOUSING PROGRAMME,130248030,24/11/2015,809924,"2,596.04",LIFEWAYS COMMUNITY CARE LTD,SP0000364
WANDSWORTH COUNCIL,ASC,SOCIAL SERVICES,VOL ASS,Revenue,SUPPORTED HOUSING PROGRAMME,130248030,24/11/2015,809925,"2,166.24",LIFEWAYS COMMUNITY CARE LTD,SP0000364
WANDSWORTH COUNCIL,ASC,SOCIAL SERVICES,VOL ASS,Revenue,SUPPORTED HOUSING PROGRAMME,130248030,24/11/2015,809926,"2,227.64",LIFEWAYS COMMUNITY CARE LTD,SP0000364
WANDSWORTH COUNCIL,ASC,SOCIAL SERVICES,VOL ASS,Revenue,SUPPORTED HOUSING PROGRAMME,130248030,24/11/2015,809927,"1,982.04",LIFEWAYS COMMUNITY CARE LTD,SP0000364
WANDSWORTH COUNCIL,ASC,SOCIAL SERVICES,VOL ASS,Revenue,SUPPORTED HOUSING PROGRAMME,130248030,24/11/2015,809928,"2,289.04",LIFEWAYS COMMUNITY CARE LTD,SP0000364
WANDSWORTH COUNCIL,ASC,SOCIAL SERVICES,VOL ASS,Revenue,SUPPORTED HOUSING PROGRAMME,130248030,24/11/2015,809929,"1,982.04",LIFEWAYS COMMUNITY CARE LTD,SP0000364
WANDSWORTH COUNCIL,ASC,SOCIAL SERVICES,VOL ASS,Revenue,SUPPORTED HOUSING PROGRAMME,130248030,24/11/2015,809930,"2,227.64",LIFEWAYS COMMUNITY CARE LTD,SP0000364
WANDSWORTH COUNCIL,ASC,SOCIAL SERVICES,VOL ASS,Revenue,SUPPORTED HOUSING PROGRAMME,130248030,24/11/2015,809931,"2,411.84",LIFEWAYS COMMUNITY CARE LTD,SP0000364
WANDSWORTH COUNCIL,ASC,SOCIAL SERVICES,VOL ASS,Revenue,SUPPORTED HOUSING PROGRAMME,130248030,24/11/2015,809932,"1,736.44",LIFEWAYS COMMUNITY CARE LTD,SP0000364
WANDSWORTH COUNCIL,ASC,SOCIAL SERVICES,VOL ASS,Revenue,SUPPORTED HOUSING PROGRAMME,130248030,24/11/2015,809933,"1,920.64",LIFEWAYS COMMUNITY CARE LTD,SP0000364
WANDSWORTH COUNCIL,ASC,SOCIAL SERVICES,VOL ASS,Revenue,SUPPORTED HOUSING PROGRAMME,130248030,24/11/2015,809934,"3,210.04",LIFEWAYS COMMUNITY CARE LTD,SP0000364
WANDSWORTH COUNCIL,ASC,SOCIAL SERVICES,VOL ASS,Revenue,SUPPORTED HOUSING PROGRAMME,130248030,24/11/2015,809935,"1,142.40",LIFEWAYS COMMUNITY CARE LTD,SP0000364
WANDSWORTH COUNCIL,ASC,SOCIAL SERVICES,VOL ASS,Revenue,SUPPORTED HOUSING PROGRAMME,130248030,24/11/2015,809938,"3,335.96",LIFEWAYS COMMUNITY CARE LTD,SP0000364
WANDSWORTH COUNCIL,ASC,SOCIAL SERVICES,VOL ASS,Revenue,SUPPORTED HOUSING PROGRAMME,130248030,24/11/2015,809939,"2,394.20",LIFEWAYS COMMUNITY CARE LTD,SP0000364
WANDSWORTH COUNCIL,ASC,SOCIAL SERVICES,VOL ASS,Revenue,SUPPORTED HOUSING PROGRAMME,130248030,24/11/2015,809940,"2,551.16",LIFEWAYS COMMUNITY CARE LTD,SP0000364
WANDSWORTH COUNCIL,ASC,SOCIAL SERVICES,VOL ASS,Revenue,SUPPORTED HOUSING PROGRAMME,130248030,24/11/2015,809941,"3,335.96",LIFEWAYS COMMUNITY CARE LTD,SP0000364
WANDSWORTH COUNCIL,ASC,SOCIAL SERVICES,VOL ASS,Revenue,SUPPORTED HOUSING PROGRAMME,130248030,24/11/2015,809942,"2,603.48",LIFEWAYS COMMUNITY CARE LTD,SP0000364
WANDSWORTH COUNCIL,ASC,SOCIAL SERVICES,VOL ASS,Revenue,SUPPORTED HOUSING PROGRAMME,130248030,24/11/2015,809943,"2,969.72",LIFEWAYS COMMUNITY CARE LTD,SP0000364
WANDSWORTH COUNCIL,ASC,SOCIAL SERVICES,VOL ASS,Revenue,SUPPORTED HOUSING PROGRAMME,130248030,24/11/2015,809944,"2,341.88",LIFEWAYS COMMUNITY CARE LTD,SP0000364
WANDSWORTH COUNCIL,ASC,SOCIAL SERVICES,VOL ASS,Revenue,SUPPORTED HOUSING PROGRAMME,130248030,24/11/2015,809945,"2,551.16",LIFEWAYS COMMUNITY CARE LTD,SP0000364
WANDSWORTH COUNCIL,ASC,SOCIAL SERVICES,VOL ASS,Revenue,SUPPORTED HOUSING PROGRAMME,130248030,24/11/2015,809946,"1,444.56",LIFEWAYS COMMUNITY CARE LTD,SP0000364
WANDSWORTH COUNCIL,ASC,SOCIAL SERVICES,VOL ASS,Revenue,SUPPORTED HOUSING PROGRAMME,130248030,24/11/2015,809947,"2,025.24",LIFEWAYS COMMUNITY CARE LTD,SP0000364
WANDSWORTH COUNCIL,ASC,SOCIAL SERVICES,VOL ASS,Revenue,SUPPORTED HOUSING PROGRAMME,130248030,24/11/2015,809948,"2,025.24",LIFEWAYS COMMUNITY CARE LTD,SP0000364
WANDSWORTH COUNCIL,ASC,SOCIAL SERVICES,VOL ASS,Revenue,SUPPORTED HOUSING PROGRAMME,130248030,24/11/2015,809949,"2,025.24",LIFEWAYS COMMUNITY CARE LTD,SP0000364
WANDSWORTH COUNCIL,ASC,SOCIAL SERVICES,VOL ASS,Revenue,SUPPORTED HOUSING PROGRAMME,130248030,24/11/2015,809950,"2,244.28",LIFEWAYS COMMUNITY CARE LTD,SP0000364
WANDSWORTH COUNCIL,ASC,SOCIAL SERVICES,VOL ASS,Revenue,SUPPORTED HOUSING PROGRAMME,130248030,24/11/2015,809951,"2,518.08",LIFEWAYS COMMUNITY CARE LTD,SP0000364
WANDSWORTH COUNCIL,ASC,SOCIAL SERVICES,VOL ASS,Revenue,SUPPORTED HOUSING PROGRAMME,130248030,24/11/2015,809952,"2,025.24",LIFEWAYS COMMUNITY CARE LTD,SP0000364
WANDSWORTH COUNCIL,ASC,SOCIAL SERVICES,VOL ASS,Revenue,SUPPORTED HOUSING PROGRAMME,130248030,24/11/2015,809953,"2,244.28",LIFEWAYS COMMUNITY CARE LTD,SP0000364
WANDSWORTH COUNCIL,ASC,SOCIAL SERVICES,VOL ASS,Revenue,SUPPORTED HOUSING PROGRAMME,130248030,24/11/2015,809954,"1,860.96",LIFEWAYS COMMUNITY CARE LTD,SP0000364
WANDSWORTH COUNCIL,ASC,SOCIAL SERVICES,VOL ASS,Revenue,SUPPORTED HOUSING PROGRAMME,130248030,24/11/2015,809955,"2,345.32",LIFEWAYS COMMUNITY CARE LTD,SP0000364
WANDSWORTH COUNCIL,ASC,SOCIAL SERVICES,VOL ASS,Revenue,SUPPORTED HOUSING PROGRAMME,130248030,24/11/2015,809956,"2,867.20",LIFEWAYS COMMUNITY CARE LTD,SP0000364
WANDSWORTH COUNCIL,ASC,SOCIAL SERVICES,VOL ASS,Revenue,SUPPORTED HOUSING PROGRAMME,130248030,24/11/2015,809957,"2,655.80",LIFEWAYS COMMUNITY CARE LTD,SP0000364
WANDSWORTH COUNCIL,ASC,SOCIAL SERVICES,VOL ASS,Revenue,SUPPORTED HOUSING PROGRAMME,130248030,24/11/2015,809958,"2,655.80",LIFEWAYS COMMUNITY CARE LTD,SP0000364
WANDSWORTH COUNCIL,ASC,SOCIAL SERVICES,VOL ASS,Revenue,SUPPORTED HOUSING PROGRAMME,130248030,24/11/2015,809959,"2,655.80",LIFEWAYS COMMUNITY CARE LTD,SP0000364
WANDSWORTH COUNCIL,ASC,SOCIAL SERVICES,VOL ASS,Revenue,SUPPORTED HOUSING PROGRAMME,130248030,24/11/2015,809960,"2,655.80",LIFEWAYS COMMUNITY CARE LTD,SP0000364
WANDSWORTH COUNCIL,ASC,SOCIAL SERVICES,VOL ASS,Revenue,SUPPORTED HOUSING PROGRAMME,130248030,24/11/2015,809961,"2,655.80",LIFEWAYS COMMUNITY CARE LTD,SP0000364
WANDSWORTH COUNCIL,ASC,SOCIAL SERVICES,VOL ASS,Revenue,SUPPORTED HOUSING PROGRAMME,130248030,24/11/2015,809962,"2,655.80",LIFEWAYS COMMUNITY CARE LTD,SP0000364
WANDSWORTH COUNCIL,ASC,SOCIAL SERVICES,VOL ASS,Revenue,SUPPORTED HOUSING PROGRAMME,130248030,24/11/2015,809963,"2,655.80",LIFEWAYS COMMUNITY CARE LTD,SP0000364
WANDSWORTH COUNCIL,ASC,SOCIAL SERVICES,VOL ASS,Revenue,SUPPORTED HOUSING PROGRAMME,130248030,06/11/2015,793914,784.00,LIVE TOO LIMITED,SP0010112
WANDSWORTH COUNCIL,ASC,SOCIAL SERVICES,VOL ASS,Revenue,SUPPORTED HOUSING PROGRAMME,130248030,06/11/2015,793916,"1,800.00",LIVE TOO LIMITED,SP0010112
WANDSWORTH COUNCIL,ASC,SOCIAL SERVICES,VOL ASS,Revenue,SUPPORTED HOUSING PROGRAMME,130248030,06/11/2015,793917,"1,200.00",LIVE TOO LIMITED,SP0010112
WANDSWORTH COUNCIL,ASC,SOCIAL SERVICES,VOL ASS,Revenue,SUPPORTED HOUSING PROGRAMME,130248030,06/11/2015,793918,600.00,LIVE TOO LIMITED,SP0010112
WANDSWORTH COUNCIL,ASC,SOCIAL SERVICES,VOL ASS,Revenue,SUPPORTED HOUSING PROGRAMME,130248030,06/11/2015,793919,"11,760.00",LIVE TOO LIMITED,SP0010112
WANDSWORTH COUNCIL,ASC,SOCIAL SERVICES,VOL ASS,Revenue,SUPPORTED HOUSING PROGRAMME,130248030,06/11/2015,793921,"1,260.00",LIVE TOO LIMITED,SP0010112
WANDSWORTH COUNCIL,ASC,SOCIAL SERVICES,VOL ASS,Revenue,SUPPORTED HOUSING PROGRAMME,130248030,06/11/2015,793922,930.00,LIVE TOO LIMITED,SP0010112
WANDSWORTH COUNCIL,ASC,SOCIAL SERVICES,VOL ASS,Revenue,SUPPORTED HOUSING PROGRAMME,130248030,06/11/2015,793923,"1,440.00",LIVE TOO LIMITED,SP0010112
WANDSWORTH COUNCIL,ASC,SOCIAL SERVICES,VOL ASS,Revenue,SUPPORTED HOUSING PROGRAMME,130248030,06/11/2015,793924,"1,320.00",LIVE TOO LIMITED,SP0010112
WANDSWORTH COUNCIL,ASC,SOCIAL SERVICES,VOL ASS,Revenue,SUPPORTED HOUSING PROGRAMME,130248030,06/11/2015,793925,990.00,LIVE TOO LIMITED,SP0010112
WANDSWORTH COUNCIL,ASC,SOCIAL SERVICES,VOL ASS,Revenue,SUPPORTED HOUSING PROGRAMME,130248030,06/11/2015,793927,720.00,LIVE TOO LIMITED,SP0010112
WANDSWORTH COUNCIL,ASC,SOCIAL SERVICES,VOL ASS,Revenue,SUPPORTED HOUSING PROGRAMME,130248030,06/11/2015,793928,"1,710.00",LIVE TOO LIMITED,SP0010112
WANDSWORTH COUNCIL,ASC,SOCIAL SERVICES,VOL ASS,Revenue,SUPPORTED HOUSING PROGRAMME,130248030,06/11/2015,793931,"2,160.00",LIVE TOO LIMITED,SP0010112
WANDSWORTH COUNCIL,ASC,SOCIAL SERVICES,VOL ASS,Revenue,SUPPORTED HOUSING PROGRAMME,130248030,06/11/2015,793932,"1,350.00",LIVE TOO LIMITED,SP0010112
WANDSWORTH COUNCIL,ASC,SOCIAL SERVICES,VOL ASS,Revenue,SUPPORTED HOUSING PROGRAMME,130248030,06/11/2015,793936,"1,568.00",LIVE TOO LIMITED,SP0010112
WANDSWORTH COUNCIL,ASC,SOCIAL SERVICES,VOL ASS,Revenue,SUPPORTED HOUSING PROGRAMME,130248030,06/11/2015,793937,700.00,LIVE TOO LIMITED,SP0010112
WANDSWORTH COUNCIL,ASC,SOCIAL SERVICES,VOL ASS,Revenue,SUPPORTED HOUSING PROGRAMME,130248030,26/11/2015,813197,600.00,LIVE TOO LIMITED,SP0010112
WANDSWORTH COUNCIL,ASC,SOCIAL SERVICES,VOL ASS,Revenue,SUPPORTED HOUSING PROGRAMME,130248030,26/11/2015,813199,"1,710.00",LIVE TOO LIMITED,SP0010112
WANDSWORTH COUNCIL,ASC,SOCIAL SERVICES,VOL ASS,Revenue,SUPPORTED HOUSING PROGRAMME,130248030,26/11/2015,813201,"1,800.00",LIVE TOO LIMITED,SP0010112
WANDSWORTH COUNCIL,ASC,SOCIAL SERVICES,VOL ASS,Revenue,SUPPORTED HOUSING PROGRAMME,130248030,26/11/2015,813202,"1,200.00",LIVE TOO LIMITED,SP0010112
WANDSWORTH COUNCIL,ASC,SOCIAL SERVICES,VOL ASS,Revenue,SUPPORTED HOUSING PROGRAMME,130248030,26/11/2015,813203,"11,760.00",LIVE TOO LIMITED,SP0010112
WANDSWORTH COUNCIL,ASC,SOCIAL SERVICES,VOL ASS,Revenue,SUPPORTED HOUSING PROGRAMME,130248030,26/11/2015,813205,"1,260.00",LIVE TOO LIMITED,SP0010112
WANDSWORTH COUNCIL,ASC,SOCIAL SERVICES,VOL ASS,Revenue,SUPPORTED HOUSING PROGRAMME,130248030,26/11/2015,813206,930.00,LIVE TOO LIMITED,SP0010112
WANDSWORTH COUNCIL,ASC,SOCIAL SERVICES,VOL ASS,Revenue,SUPPORTED HOUSING PROGRAMME,130248030,26/11/2015,813207,"1,440.00",LIVE TOO LIMITED,SP0010112
WANDSWORTH COUNCIL,ASC,SOCIAL SERVICES,VOL ASS,Revenue,SUPPORTED HOUSING PROGRAMME,130248030,26/11/2015,813208,"1,320.00",LIVE TOO LIMITED,SP0010112
WANDSWORTH COUNCIL,ASC,SOCIAL SERVICES,VOL ASS,Revenue,SUPPORTED HOUSING PROGRAMME,130248030,26/11/2015,813209,990.00,LIVE TOO LIMITED,SP0010112
WANDSWORTH COUNCIL,ASC,SOCIAL SERVICES,VOL ASS,Revenue,SUPPORTED HOUSING PROGRAMME,130248030,26/11/2015,813210,720.00,LIVE TOO LIMITED,SP0010112
WANDSWORTH COUNCIL,ASC,SOCIAL SERVICES,VOL ASS,Revenue,SUPPORTED HOUSING PROGRAMME,130248030,26/11/2015,813213,"2,160.00",LIVE TOO LIMITED,SP0010112
WANDSWORTH COUNCIL,ASC,SOCIAL SERVICES,VOL ASS,Revenue,SUPPORTED HOUSING PROGRAMME,130248030,26/11/2015,813214,"1,350.00",LIVE TOO LIMITED,SP0010112
WANDSWORTH COUNCIL,ASC,SOCIAL SERVICES,VOL ASS,Revenue,SUPPORTED HOUSING PROGRAMME,130248030,26/11/2015,813217,"1,568.00",LIVE TOO LIMITED,SP0010112
WANDSWORTH COUNCIL,ASC,SOCIAL SERVICES,VOL ASS,Revenue,SUPPORTED HOUSING PROGRAMME,130248030,26/11/2015,813218,700.00,LIVE TOO LIMITED,SP0010112
WANDSWORTH COUNCIL,ASC,SOCIAL SERVICES,VOL ASS,Revenue,SUPPORTED HOUSING PROGRAMME,130248030,26/11/2015,813232,"23,280.00",LIVE TOO LIMITED,SP0010112
WANDSWORTH COUNCIL,ASC,SOCIAL SERVICES,VOL ASS,Revenue,SUPPORTED HOUSING PROGRAMME,130248030,26/11/2015,813260,784.00,LIVE TOO LIMITED,SP0010112
WANDSWORTH COUNCIL,ASC,SOCIAL SERVICES,VOL ASS,Revenue,SUPPORTED HOUSING PROGRAMME,130248030,12/11/2015,800487,604.26,MCCALLUM CARE LTD CAREMARK (WANDSWORTH),SP0006036
WANDSWORTH COUNCIL,ASC,SOCIAL SERVICES,VOL ASS,Revenue,SUPPORTED HOUSING PROGRAMME,130248030,24/11/2015,810285,570.76,MCCALLUM CARE LTD CAREMARK (WANDSWORTH),SP0006036
WANDSWORTH COUNCIL,ASC,SOCIAL SERVICES,VOL ASS,Revenue,SUPPORTED HOUSING PROGRAMME,130248030,26/11/2015,813231,"4,400.00",MORTON GARDENS,SP0008639
WANDSWORTH COUNCIL,ASC,SOCIAL SERVICES,VOL ASS,Revenue,SUPPORTED HOUSING PROGRAMME,130248030,11/11/2015,798973,"5,543.72",NORWOOD SCHOOLS LTD,SP0000332
WANDSWORTH COUNCIL,ASC,SOCIAL SERVICES,VOL ASS,Revenue,SUPPORTED HOUSING PROGRAMME,130248030,24/11/2015,809965,"5,543.72",NORWOOD SCHOOLS LTD,SP0000332
WANDSWORTH COUNCIL,ASC,SOCIAL SERVICES,VOL ASS,Revenue,SUPPORTED HOUSING PROGRAMME,130248030,06/11/2015,793967,"9,036.32",PRECIOUS HOMES LTD,SP0001459
WANDSWORTH COUNCIL,ASC,SOCIAL SERVICES,VOL ASS,Revenue,SUPPORTED HOUSING PROGRAMME,130248030,06/11/2015,793968,"2,869.71",PRECIOUS HOMES LTD,SP0001459
WANDSWORTH COUNCIL,ASC,SOCIAL SERVICES,VOL ASS,Revenue,SUPPORTED HOUSING PROGRAMME,130248030,26/11/2015,813237,"8,744.83",PRECIOUS HOMES LTD,SP0001459
WANDSWORTH COUNCIL,ASC,SOCIAL SERVICES,VOL ASS,Revenue,SUPPORTED HOUSING PROGRAMME,130248030,26/11/2015,813238,"2,777.14",PRECIOUS HOMES LTD,SP0001459
WANDSWORTH COUNCIL,ASC,SOCIAL SERVICES,VOL ASS,Revenue,SUPPORTED HOUSING PROGRAMME,130248030,10/11/2015,796592,"7,650.00",RELIABLE PERSONNEL LTD,SP0005657
WANDSWORTH COUNCIL,ASC,SOCIAL SERVICES,VOL ASS,Revenue,SUPPORTED HOUSING PROGRAMME,130248030,12/11/2015,800464,"2,491.28",ROYAL MENCAP SOCIETY,SP0000842
WANDSWORTH COUNCIL,ASC,SOCIAL SERVICES,VOL ASS,Revenue,SUPPORTED HOUSING PROGRAMME,130248030,12/11/2015,800465,"2,251.52",ROYAL MENCAP SOCIETY,SP0000842
WANDSWORTH COUNCIL,ASC,SOCIAL SERVICES,VOL ASS,Revenue,SUPPORTED HOUSING PROGRAMME,130248030,12/11/2015,800466,"2,600.24",ROYAL MENCAP SOCIETY,SP0000842
WANDSWORTH COUNCIL,ASC,SOCIAL SERVICES,VOL ASS,Revenue,SUPPORTED HOUSING PROGRAMME,130248030,12/11/2015,800467,"5,204.28",ROYAL MENCAP SOCIETY,SP0000842
WANDSWORTH COUNCIL,ASC,SOCIAL SERVICES,VOL ASS,Revenue,SUPPORTED HOUSING PROGRAMME,130248030,12/11/2015,800468,"7,069.80",ROYAL MENCAP SOCIETY,SP0000842
WANDSWORTH COUNCIL,ASC,SOCIAL SERVICES,VOL ASS,Revenue,SUPPORTED HOUSING PROGRAMME,130248030,12/11/2015,800469,"3,273.32",ROYAL MENCAP SOCIETY,SP0000842
WANDSWORTH COUNCIL,ASC,SOCIAL SERVICES,VOL ASS,Revenue,SUPPORTED HOUSING PROGRAMME,130248030,12/11/2015,800470,"4,143.72",ROYAL MENCAP SOCIETY,SP0000842
WANDSWORTH COUNCIL,ASC,SOCIAL SERVICES,VOL ASS,Revenue,SUPPORTED HOUSING PROGRAMME,130248030,12/11/2015,800471,"1,748.04",ROYAL MENCAP SOCIETY,SP0000842
WANDSWORTH COUNCIL,ASC,SOCIAL SERVICES,VOL ASS,Revenue,SUPPORTED HOUSING PROGRAMME,130248030,19/11/2015,806156,"2,251.52",ROYAL MENCAP SOCIETY,SP0000842
WANDSWORTH COUNCIL,ASC,SOCIAL SERVICES,VOL ASS,Revenue,SUPPORTED HOUSING PROGRAMME,130248030,19/11/2015,806157,"2,600.24",ROYAL MENCAP SOCIETY,SP0000842
WANDSWORTH COUNCIL,ASC,SOCIAL SERVICES,VOL ASS,Revenue,SUPPORTED HOUSING PROGRAMME,130248030,19/11/2015,806158,"3,273.32",ROYAL MENCAP SOCIETY,SP0000842
WANDSWORTH COUNCIL,ASC,SOCIAL SERVICES,VOL ASS,Revenue,SUPPORTED HOUSING PROGRAMME,130248030,19/11/2015,806159,"5,204.28",ROYAL MENCAP SOCIETY,SP0000842
WANDSWORTH COUNCIL,ASC,SOCIAL SERVICES,VOL ASS,Revenue,SUPPORTED HOUSING PROGRAMME,130248030,19/11/2015,806161,"7,069.80",ROYAL MENCAP SOCIETY,SP0000842
WANDSWORTH COUNCIL,ASC,SOCIAL SERVICES,VOL ASS,Revenue,SUPPORTED HOUSING PROGRAMME,130248030,19/11/2015,806162,"2,491.28",ROYAL MENCAP SOCIETY,SP0000842
WANDSWORTH COUNCIL,ASC,SOCIAL SERVICES,VOL ASS,Revenue,SUPPORTED HOUSING PROGRAMME,130248030,19/11/2015,806163,"4,143.72",ROYAL MENCAP SOCIETY,SP0000842
WANDSWORTH COUNCIL,ASC,SOCIAL SERVICES,VOL ASS,Revenue,SUPPORTED HOUSING PROGRAMME,130248030,19/11/2015,806164,"1,748.04",ROYAL MENCAP SOCIETY,SP0000842
WANDSWORTH COUNCIL,ASC,SOCIAL SERVICES,VOL ASS,Revenue,SUPPORTED HOUSING PROGRAMME,130248030,24/11/2015,810283,"5,274.03",ST ELIZABETHS CENTRE,SP0001019
WANDSWORTH COUNCIL,ASC,SOCIAL SERVICES,VOL ASS,Revenue,SUPPORTED HOUSING PROGRAMME,130248030,02/11/2015,789372,"3,337.20",SYMBOL UK,SP0000894
WANDSWORTH COUNCIL,ASC,SOCIAL SERVICES,VOL ASS,Revenue,SUPPORTED HOUSING PROGRAMME,130248030,02/11/2015,789373,667.44,SYMBOL UK,SP0000894
WANDSWORTH COUNCIL,ASC,SOCIAL SERVICES,VOL ASS,Revenue,SUPPORTED HOUSING PROGRAMME,130248030,02/11/2015,789368,"6,346.04",THE BRANDON TRUST,SP0005337
WANDSWORTH COUNCIL,ASC,SOCIAL SERVICES,VOL ASS,Revenue,SUPPORTED HOUSING PROGRAMME,130248030,04/11/2015,791262,"1,551.32",THE BRANDON TRUST,SP0005337
WANDSWORTH COUNCIL,ASC,SOCIAL SERVICES,VOL ASS,Revenue,SUPPORTED HOUSING PROGRAMME,130248030,04/11/2015,791263,"1,504.84",THE BRANDON TRUST,SP0005337
WANDSWORTH COUNCIL,ASC,SOCIAL SERVICES,VOL ASS,Revenue,SUPPORTED HOUSING PROGRAMME,130248030,04/11/2015,791264,"1,504.84",THE BRANDON TRUST,SP0005337
WANDSWORTH COUNCIL,ASC,SOCIAL SERVICES,VOL ASS,Revenue,SUPPORTED HOUSING PROGRAMME,130248030,04/11/2015,791265,"1,936.52",THE BRANDON TRUST,SP0005337
WANDSWORTH COUNCIL,ASC,SOCIAL SERVICES,VOL ASS,Revenue,SUPPORTED HOUSING PROGRAMME,130248030,04/11/2015,791266,"7,764.16",THE BRANDON TRUST,SP0005337
WANDSWORTH COUNCIL,ASC,SOCIAL SERVICES,VOL ASS,Revenue,SUPPORTED HOUSING PROGRAMME,130248030,04/11/2015,791267,"2,327.04",THE BRANDON TRUST,SP0005337
WANDSWORTH COUNCIL,ASC,SOCIAL SERVICES,VOL ASS,Revenue,SUPPORTED HOUSING PROGRAMME,130248030,04/11/2015,791268,"5,629.64",THE BRANDON TRUST,SP0005337
WANDSWORTH COUNCIL,ASC,SOCIAL SERVICES,VOL ASS,Revenue,SUPPORTED HOUSING PROGRAMME,130248030,04/11/2015,791269,"2,969.16",THE BRANDON TRUST,SP0005337
WANDSWORTH COUNCIL,ASC,SOCIAL SERVICES,VOL ASS,Revenue,SUPPORTED HOUSING PROGRAMME,130248030,04/11/2015,791270,"2,979.92",THE BRANDON TRUST,SP0005337
WANDSWORTH COUNCIL,ASC,SOCIAL SERVICES,VOL ASS,Revenue,SUPPORTED HOUSING PROGRAMME,130248030,04/11/2015,791271,"2,186.04",THE BRANDON TRUST,SP0005337
WANDSWORTH COUNCIL,ASC,SOCIAL SERVICES,VOL ASS,Revenue,SUPPORTED HOUSING PROGRAMME,130248030,04/11/2015,791272,"2,160.00",THE BRANDON TRUST,SP0005337
WANDSWORTH COUNCIL,ASC,SOCIAL SERVICES,VOL ASS,Revenue,SUPPORTED HOUSING PROGRAMME,130248030,04/11/2015,791273,"1,125.08",THE BRANDON TRUST,SP0005337
WANDSWORTH COUNCIL,ASC,SOCIAL SERVICES,VOL ASS,Revenue,SUPPORTED HOUSING PROGRAMME,130248030,04/11/2015,791274,"1,155.88",THE BRANDON TRUST,SP0005337
WANDSWORTH COUNCIL,ASC,SOCIAL SERVICES,VOL ASS,Revenue,SUPPORTED HOUSING PROGRAMME,130248030,04/11/2015,791275,"1,854.72",THE BRANDON TRUST,SP0005337
WANDSWORTH COUNCIL,ASC,SOCIAL SERVICES,VOL ASS,Revenue,SUPPORTED HOUSING PROGRAMME,130248030,04/11/2015,791276,"1,380.64",THE BRANDON TRUST,SP0005337
WANDSWORTH COUNCIL,ASC,SOCIAL SERVICES,VOL ASS,Revenue,SUPPORTED HOUSING PROGRAMME,130248030,04/11/2015,791277,"1,513.68",THE BRANDON TRUST,SP0005337
WANDSWORTH COUNCIL,ASC,SOCIAL SERVICES,VOL ASS,Revenue,SUPPORTED HOUSING PROGRAMME,130248030,04/11/2015,791278,"1,513.68",THE BRANDON TRUST,SP0005337
WANDSWORTH COUNCIL,ASC,SOCIAL SERVICES,VOL ASS,Revenue,SUPPORTED HOUSING PROGRAMME,130248030,04/11/2015,791279,"2,856.96",THE BRANDON TRUST,SP0005337
WANDSWORTH COUNCIL,ASC,SOCIAL SERVICES,VOL ASS,Revenue,SUPPORTED HOUSING PROGRAMME,130248030,04/11/2015,791280,"2,260.80",THE BRANDON TRUST,SP0005337
WANDSWORTH COUNCIL,ASC,SOCIAL SERVICES,VOL ASS,Revenue,SUPPORTED HOUSING PROGRAMME,130248030,04/11/2015,791281,"3,453.12",THE BRANDON TRUST,SP0005337
WANDSWORTH COUNCIL,ASC,SOCIAL SERVICES,VOL ASS,Revenue,SUPPORTED HOUSING PROGRAMME,130248030,04/11/2015,791282,"2,804.72",THE BRANDON TRUST,SP0005337
WANDSWORTH COUNCIL,ASC,SOCIAL SERVICES,VOL ASS,Revenue,SUPPORTED HOUSING PROGRAMME,130248030,04/11/2015,791284,"1,886.40",THE BRANDON TRUST,SP0005337
WANDSWORTH COUNCIL,ASC,SOCIAL SERVICES,VOL ASS,Revenue,SUPPORTED HOUSING PROGRAMME,130248030,04/11/2015,791285,"1,797.12",THE BRANDON TRUST,SP0005337
WANDSWORTH COUNCIL,ASC,SOCIAL SERVICES,VOL ASS,Revenue,SUPPORTED HOUSING PROGRAMME,130248030,04/11/2015,791286,"2,062.08",THE BRANDON TRUST,SP0005337
WANDSWORTH COUNCIL,ASC,SOCIAL SERVICES,VOL ASS,Revenue,SUPPORTED HOUSING PROGRAMME,130248030,04/11/2015,791287,"3,520.16",THE BRANDON TRUST,SP0005337
WANDSWORTH COUNCIL,ASC,SOCIAL SERVICES,VOL ASS,Revenue,SUPPORTED HOUSING PROGRAMME,130248030,04/11/2015,791288,"2,580.17",THE BRANDON TRUST,SP0005337
WANDSWORTH COUNCIL,ASC,SOCIAL SERVICES,VOL ASS,Revenue,SUPPORTED HOUSING PROGRAMME,130248030,04/11/2015,791289,"3,453.12",THE BRANDON TRUST,SP0005337
WANDSWORTH COUNCIL,ASC,SOCIAL SERVICES,VOL ASS,Revenue,SUPPORTED HOUSING PROGRAMME,130248030,04/11/2015,791290,"2,923.88",THE BRANDON TRUST,SP0005337
WANDSWORTH COUNCIL,ASC,SOCIAL SERVICES,VOL ASS,Revenue,SUPPORTED HOUSING PROGRAMME,130248030,04/11/2015,791291,"4,687.20",THE BRANDON TRUST,SP0005337
WANDSWORTH COUNCIL,ASC,SOCIAL SERVICES,VOL ASS,Revenue,SUPPORTED HOUSING PROGRAMME,130248030,04/11/2015,791292,"4,688.56",THE BRANDON TRUST,SP0005337
WANDSWORTH COUNCIL,ASC,SOCIAL SERVICES,VOL ASS,Revenue,SUPPORTED HOUSING PROGRAMME,130248030,04/11/2015,791293,"3,320.64",THE BRANDON TRUST,SP0005337
WANDSWORTH COUNCIL,ASC,SOCIAL SERVICES,VOL ASS,Revenue,SUPPORTED HOUSING PROGRAMME,130248030,04/11/2015,791294,"3,702.20",THE BRANDON TRUST,SP0005337
WANDSWORTH COUNCIL,ASC,SOCIAL SERVICES,VOL ASS,Revenue,SUPPORTED HOUSING PROGRAMME,130248030,04/11/2015,791295,"3,718.08",THE BRANDON TRUST,SP0005337
WANDSWORTH COUNCIL,ASC,SOCIAL SERVICES,VOL ASS,Revenue,SUPPORTED HOUSING PROGRAMME,130248030,04/11/2015,791296,"3,121.92",THE BRANDON TRUST,SP0005337
WANDSWORTH COUNCIL,ASC,SOCIAL SERVICES,VOL ASS,Revenue,SUPPORTED HOUSING PROGRAMME,130248030,04/11/2015,791297,"5,688.08",THE BRANDON TRUST,SP0005337
WANDSWORTH COUNCIL,ASC,SOCIAL SERVICES,VOL ASS,Revenue,SUPPORTED HOUSING PROGRAMME,130248030,04/11/2015,791298,"5,983.44",THE BRANDON TRUST,SP0005337
WANDSWORTH COUNCIL,ASC,SOCIAL SERVICES,VOL ASS,Revenue,SUPPORTED HOUSING PROGRAMME,130248030,04/11/2015,791299,"4,827.60",THE BRANDON TRUST,SP0005337
WANDSWORTH COUNCIL,ASC,SOCIAL SERVICES,VOL ASS,Revenue,SUPPORTED HOUSING PROGRAMME,130248030,04/11/2015,791300,"6,344.92",THE BRANDON TRUST,SP0005337
WANDSWORTH COUNCIL,ASC,SOCIAL SERVICES,VOL ASS,Revenue,SUPPORTED HOUSING PROGRAMME,130248030,04/11/2015,791301,"3,324.96",THE BRANDON TRUST,SP0005337
WANDSWORTH COUNCIL,ASC,SOCIAL SERVICES,VOL ASS,Revenue,SUPPORTED HOUSING PROGRAMME,130248030,04/11/2015,791302,"2,886.04",THE BRANDON TRUST,SP0005337
WANDSWORTH COUNCIL,ASC,SOCIAL SERVICES,VOL ASS,Revenue,SUPPORTED HOUSING PROGRAMME,130248030,04/11/2015,791303,"2,856.96",THE BRANDON TRUST,SP0005337
WANDSWORTH COUNCIL,ASC,SOCIAL SERVICES,VOL ASS,Revenue,SUPPORTED HOUSING PROGRAMME,130248030,04/11/2015,791304,"2,128.32",THE BRANDON TRUST,SP0005337
WANDSWORTH COUNCIL,ASC,SOCIAL SERVICES,VOL ASS,Revenue,SUPPORTED HOUSING PROGRAMME,130248030,04/11/2015,791305,"6,198.76",THE BRANDON TRUST,SP0005337
WANDSWORTH COUNCIL,ASC,SOCIAL SERVICES,VOL ASS,Revenue,SUPPORTED HOUSING PROGRAMME,130248030,04/11/2015,791306,"1,465.92",THE BRANDON TRUST,SP0005337
WANDSWORTH COUNCIL,ASC,SOCIAL SERVICES,VOL ASS,Revenue,SUPPORTED HOUSING PROGRAMME,130248030,04/11/2015,791307,"1,548.72",THE BRANDON TRUST,SP0005337
WANDSWORTH COUNCIL,ASC,SOCIAL SERVICES,VOL ASS,Revenue,SUPPORTED HOUSING PROGRAMME,130248030,04/11/2015,791308,"2,592.60",THE BRANDON TRUST,SP0005337
WANDSWORTH COUNCIL,ASC,SOCIAL SERVICES,VOL ASS,Revenue,SUPPORTED HOUSING PROGRAMME,130248030,04/11/2015,791309,"2,724.48",THE BRANDON TRUST,SP0005337
WANDSWORTH COUNCIL,ASC,SOCIAL SERVICES,VOL ASS,Revenue,SUPPORTED HOUSING PROGRAMME,130248030,04/11/2015,791310,"3,564.56",THE BRANDON TRUST,SP0005337
WANDSWORTH COUNCIL,ASC,SOCIAL SERVICES,VOL ASS,Revenue,SUPPORTED HOUSING PROGRAMME,130248030,04/11/2015,791311,"3,416.80",THE BRANDON TRUST,SP0005337
WANDSWORTH COUNCIL,ASC,SOCIAL SERVICES,VOL ASS,Revenue,SUPPORTED HOUSING PROGRAMME,130248030,04/11/2015,791312,"2,848.72",THE BRANDON TRUST,SP0005337
WANDSWORTH COUNCIL,ASC,SOCIAL SERVICES,VOL ASS,Revenue,SUPPORTED HOUSING PROGRAMME,130248030,04/11/2015,791313,"2,327.24",THE BRANDON TRUST,SP0005337
WANDSWORTH COUNCIL,ASC,SOCIAL SERVICES,VOL ASS,Revenue,SUPPORTED HOUSING PROGRAMME,130248030,04/11/2015,791314,"2,327.24",THE BRANDON TRUST,SP0005337
WANDSWORTH COUNCIL,ASC,SOCIAL SERVICES,VOL ASS,Revenue,SUPPORTED HOUSING PROGRAMME,130248030,04/11/2015,791315,"2,065.12",THE BRANDON TRUST,SP0005337
WANDSWORTH COUNCIL,ASC,SOCIAL SERVICES,VOL ASS,Revenue,SUPPORTED HOUSING PROGRAMME,130248030,04/11/2015,791329,"1,499.04",THE BRANDON TRUST,SP0005337
WANDSWORTH COUNCIL,ASC,SOCIAL SERVICES,VOL ASS,Revenue,SUPPORTED HOUSING PROGRAMME,130248030,04/11/2015,791333,591.04,THE BRANDON TRUST,SP0005337
WANDSWORTH COUNCIL,ASC,SOCIAL SERVICES,VOL ASS,Revenue,SUPPORTED HOUSING PROGRAMME,130248030,04/11/2015,791335,"1,034.48",THE BRANDON TRUST,SP0005337
WANDSWORTH COUNCIL,ASC,SOCIAL SERVICES,VOL ASS,Revenue,SUPPORTED HOUSING PROGRAMME,130248030,04/11/2015,791348,"1,385.04",THE BRANDON TRUST,SP0005337
WANDSWORTH COUNCIL,ASC,SOCIAL SERVICES,VOL ASS,Revenue,SUPPORTED HOUSING PROGRAMME,130248030,04/11/2015,791353,"1,625.36",THE BRANDON TRUST,SP0005337
WANDSWORTH COUNCIL,ASC,SOCIAL SERVICES,VOL ASS,Revenue,SUPPORTED HOUSING PROGRAMME,130248030,04/11/2015,791354,"1,674.84",THE BRANDON TRUST,SP0005337
WANDSWORTH COUNCIL,ASC,SOCIAL SERVICES,VOL ASS,Revenue,SUPPORTED HOUSING PROGRAMME,130248030,04/11/2015,791355,"5,630.08",THE BRANDON TRUST,SP0005337
WANDSWORTH COUNCIL,ASC,SOCIAL SERVICES,VOL ASS,Revenue,SUPPORTED HOUSING PROGRAMME,130248030,04/11/2015,791358,"2,459.52",THE BRANDON TRUST,SP0005337
WANDSWORTH COUNCIL,ASC,SOCIAL SERVICES,VOL ASS,Revenue,SUPPORTED HOUSING PROGRAMME,130248030,04/11/2015,791359,"3,883.68",THE BRANDON TRUST,SP0005337
WANDSWORTH COUNCIL,ASC,SOCIAL SERVICES,VOL ASS,Revenue,SUPPORTED HOUSING PROGRAMME,130248030,04/11/2015,791360,"2,618.48",THE BRANDON TRUST,SP0005337
WANDSWORTH COUNCIL,ASC,SOCIAL SERVICES,VOL ASS,Revenue,SUPPORTED HOUSING PROGRAMME,130248030,04/11/2015,791361,"1,730.88",THE BRANDON TRUST,SP0005337
WANDSWORTH COUNCIL,ASC,SOCIAL SERVICES,VOL ASS,Revenue,SUPPORTED HOUSING PROGRAMME,130248030,04/11/2015,791369,"1,465.92",THE BRANDON TRUST,SP0005337
WANDSWORTH COUNCIL,ASC,SOCIAL SERVICES,VOL ASS,Revenue,SUPPORTED HOUSING PROGRAMME,130248030,04/11/2015,791370,"2,606.80",THE BRANDON TRUST,SP0005337
WANDSWORTH COUNCIL,ASC,SOCIAL SERVICES,VOL ASS,Revenue,SUPPORTED HOUSING PROGRAMME,130248030,04/11/2015,791371,"1,114.03",THE BRANDON TRUST,SP0005337
WANDSWORTH COUNCIL,ASC,SOCIAL SERVICES,VOL ASS,Revenue,SUPPORTED HOUSING PROGRAMME,130248030,04/11/2015,791373,"2,631.48",THE BRANDON TRUST,SP0005337
WANDSWORTH COUNCIL,ASC,SOCIAL SERVICES,VOL ASS,Revenue,SUPPORTED HOUSING PROGRAMME,130248030,04/11/2015,791376,"4,177.52",THE BRANDON TRUST,SP0005337
WANDSWORTH COUNCIL,ASC,SOCIAL SERVICES,VOL ASS,Revenue,SUPPORTED HOUSING PROGRAMME,130248030,05/11/2015,792843,"9,357.84",THE BRANDON TRUST,SP0005337
WANDSWORTH COUNCIL,ASC,SOCIAL SERVICES,VOL ASS,Revenue,SUPPORTED HOUSING PROGRAMME,130248030,05/11/2015,792844,"3,119.28",THE BRANDON TRUST,SP0005337
WANDSWORTH COUNCIL,ASC,SOCIAL SERVICES,VOL ASS,Revenue,SUPPORTED HOUSING PROGRAMME,130248030,05/11/2015,792845,"3,119.28",THE BRANDON TRUST,SP0005337
WANDSWORTH COUNCIL,ASC,SOCIAL SERVICES,VOL ASS,Revenue,SUPPORTED HOUSING PROGRAMME,130248030,05/11/2015,792846,"3,119.28",THE BRANDON TRUST,SP0005337
WANDSWORTH COUNCIL,ASC,SOCIAL SERVICES,VOL ASS,Revenue,SUPPORTED HOUSING PROGRAMME,130248030,05/11/2015,792847,"3,119.28",THE BRANDON TRUST,SP0005337
WANDSWORTH COUNCIL,ASC,SOCIAL SERVICES,VOL ASS,Revenue,SUPPORTED HOUSING PROGRAMME,130248030,06/11/2015,793939,"3,298.68",THE BRANDON TRUST,SP0005337
WANDSWORTH COUNCIL,ASC,SOCIAL SERVICES,VOL ASS,Revenue,SUPPORTED HOUSING PROGRAMME,130248030,06/11/2015,793940,886.31,THE BRANDON TRUST,SP0005337
WANDSWORTH COUNCIL,ASC,SOCIAL SERVICES,VOL ASS,Revenue,SUPPORTED HOUSING PROGRAMME,130248030,06/11/2015,793941,733.04,THE BRANDON TRUST,SP0005337
WANDSWORTH COUNCIL,ASC,SOCIAL SERVICES,VOL ASS,Revenue,SUPPORTED HOUSING PROGRAMME,130248030,10/11/2015,798241,"16,262.48",THE BRANDON TRUST,SP0005337
WANDSWORTH COUNCIL,ASC,SOCIAL SERVICES,VOL ASS,Revenue,SUPPORTED HOUSING PROGRAMME,130248030,12/11/2015,800402,"1,824.49",THE BRANDON TRUST,SP0005337
WANDSWORTH COUNCIL,ASC,SOCIAL SERVICES,VOL ASS,Revenue,SUPPORTED HOUSING PROGRAMME,130248030,12/11/2015,800403,"12,615.75",THE BRANDON TRUST,SP0005337
WANDSWORTH COUNCIL,ASC,SOCIAL SERVICES,VOL ASS,Revenue,SUPPORTED HOUSING PROGRAMME,130248030,20/11/2015,806999,"2,606.80",THE BRANDON TRUST,SP0005337
WANDSWORTH COUNCIL,ASC,SOCIAL SERVICES,VOL ASS,Revenue,SUPPORTED HOUSING PROGRAMME,130248030,20/11/2015,807000,"2,606.80",THE BRANDON TRUST,SP0005337
WANDSWORTH COUNCIL,ASC,SOCIAL SERVICES,VOL ASS,Revenue,SUPPORTED HOUSING PROGRAMME,130248030,20/11/2015,807002,"3,119.28",THE BRANDON TRUST,SP0005337
WANDSWORTH COUNCIL,ASC,SOCIAL SERVICES,VOL ASS,Revenue,SUPPORTED HOUSING PROGRAMME,130248030,20/11/2015,807003,"1,730.88",THE BRANDON TRUST,SP0005337
WANDSWORTH COUNCIL,ASC,SOCIAL SERVICES,VOL ASS,Revenue,SUPPORTED HOUSING PROGRAMME,130248030,20/11/2015,807004,"2,724.48",THE BRANDON TRUST,SP0005337
WANDSWORTH COUNCIL,ASC,SOCIAL SERVICES,VOL ASS,Revenue,SUPPORTED HOUSING PROGRAMME,130248030,20/11/2015,807005,"3,119.28",THE BRANDON TRUST,SP0005337
WANDSWORTH COUNCIL,ASC,SOCIAL SERVICES,VOL ASS,Revenue,SUPPORTED HOUSING PROGRAMME,130248030,20/11/2015,807006,"3,718.08",THE BRANDON TRUST,SP0005337
WANDSWORTH COUNCIL,ASC,SOCIAL SERVICES,VOL ASS,Revenue,SUPPORTED HOUSING PROGRAMME,130248030,20/11/2015,807007,"1,125.08",THE BRANDON TRUST,SP0005337
WANDSWORTH COUNCIL,ASC,SOCIAL SERVICES,VOL ASS,Revenue,SUPPORTED HOUSING PROGRAMME,130248030,20/11/2015,807008,"3,718.08",THE BRANDON TRUST,SP0005337
WANDSWORTH COUNCIL,ASC,SOCIAL SERVICES,DIRECT,Revenue,DIRECT PAYMENTS,130250380,06/11/2015,794097,"3,176.28",I DECIDE LTD (DIRECT PAYMENT),SP0006159
WANDSWORTH COUNCIL,ASC,SOCIAL SERVICES,DIRECT,Revenue,DIRECT PAYMENTS,130250380,06/11/2015,794102,"1,884.96",I DECIDE LTD (DIRECT PAYMENT),SP0006159
WANDSWORTH COUNCIL,ASC,SOCIAL SERVICES,DIRECT,Revenue,DIRECT PAYMENTS,130250380,06/11/2015,794109,741.20,I DECIDE LTD (DIRECT PAYMENT),SP0006159
WANDSWORTH COUNCIL,ASC,SOCIAL SERVICES,DIRECT,Revenue,DIRECT PAYMENTS,130250380,06/11/2015,794110,"3,156.28",I DECIDE LTD (DIRECT PAYMENT),SP0006159
WANDSWORTH COUNCIL,ASC,SOCIAL SERVICES,DIRECT,Revenue,DIRECT PAYMENTS,130250380,11/11/2015,798974,"13,261.09",I DECIDE LTD (DIRECT PAYMENT),SP0006159
WANDSWORTH COUNCIL,ASC,SOCIAL SERVICES,DIRECT,Revenue,DIRECT PAYMENTS,130250380,06/11/2015,794384,838.12,VIBRANCE,SP0005489
WANDSWORTH COUNCIL,ASC,SOCIAL SERVICES,DIRECT,Revenue,DIRECT PAYMENTS,130250380,06/11/2015,794393,760.24,VIBRANCE,SP0005489
WANDSWORTH COUNCIL,ASC,SOCIAL SERVICES,DIRECT,Revenue,DIRECT PAYMENTS,130250380,16/11/2015,802495,"1,500.10",VIBRANCE,SP0005489
WANDSWORTH COUNCIL,ASC,SOCIAL SERVICES,CUSTOMER & CLIENT RECPTS - EXT,Revenue,CL CONT EXT RESIDEN S28A 100%,130280680,13/11/2015,801565,-505.20,ELEANOR NURSING & SOCIAL CARE,SP0000110
WANDSWORTH COUNCIL,ASC,SOCIAL SERVICES,CUSTOMER & CLIENT RECPTS - EXT,Revenue,CL CONT EXT RESIDEN S28A 100%,130280680,10/11/2015,798089,-531.22,ST MARYS RESIDENTIAL HOME,SP0000215
WANDSWORTH COUNCIL,ASC,SOCIAL SERVICES,CUSTOMER & CLIENT RECPTS - EXT,Revenue,CL CONT EXTERNAL RESIDENT S28A,130280710,05/11/2015,792950,-505.20,ASHTON CARE,SP0000695
WANDSWORTH COUNCIL,ASC,SOCIAL SERVICES,CUSTOMER & CLIENT RECPTS - EXT,Revenue,CL CONT EXTERNAL RESIDENT S28A,130280710,26/11/2015,813078,-505.20,ASHTON CARE,SP0000695
WANDSWORTH COUNCIL,ASC,SOCIAL SERVICES,CUSTOMER & CLIENT RECPTS - EXT,Revenue,CL CONT EXTERNAL RESIDENT S28A,130280710,10/11/2015,796452,-531.08,METROPOLITAN HOUSING TRUST,SP0000626
WANDSWORTH COUNCIL,ASC,SOCIAL SERVICES,CUSTOMER & CLIENT RECPTS - EXT,Revenue,CL CONT EXTERNAL RESIDENT S28A,130280710,10/11/2015,798107,-321.80,METROPOLITAN HOUSING TRUST,SP0000626
WANDSWORTH COUNCIL,ASC,SOCIAL SERVICES,CUSTOMER & CLIENT RECPTS - EXT,Revenue,CL CONT EXTERNAL RESIDENT S28A,130280710,13/11/2015,801563,-321.80,SURREY & BORDERS PARTNERSHIP NHS TRUST,SP0000501
WANDSWORTH COUNCIL,ASC,SOCIAL SERVICES,CUSTOMER & CLIENT RECPTS - EXT,Revenue,CL CONT EXTERNAL RESIDENT S28A,130280710,05/11/2015,792952,-541.28,THE COMMUNITY CARE COMPANY UK LTD,SP0000576
WANDSWORTH COUNCIL,ASC,SOCIAL SERVICES,CUSTOMER & CLIENT RECPTS - EXT,Revenue,CL CONT EXTERNAL RESIDENT S28A,130280710,11/11/2015,799490,-378.90,THE COMMUNITY CARE COMPANY UK LTD,SP0000576
WANDSWORTH COUNCIL,ASC,SOCIAL SERVICES,CUSTOMER & CLIENT RECPTS - EXT,Revenue,CL CONT EXTERNAL RESIDENT S28A,130280710,11/11/2015,799491,-541.29,THE COMMUNITY CARE COMPANY UK LTD,SP0000576
WANDSWORTH COUNCIL,ASC,SOCIAL SERVICES,CUSTOMER & CLIENT RECPTS - EXT,Revenue,CL CONT EXTERNAL RESIDENTIAL,130280720,26/11/2015,813096,-344.78,229 MITCHAM LANE LTD,SP0000884
WANDSWORTH COUNCIL,ASC,SOCIAL SERVICES,CUSTOMER & CLIENT RECPTS - EXT,Revenue,CL CONT EXTERNAL RESIDENTIAL,130280720,26/11/2015,813098,-344.78,229 MITCHAM LANE LTD,SP0000884
WANDSWORTH COUNCIL,ASC,SOCIAL SERVICES,CUSTOMER & CLIENT RECPTS - EXT,Revenue,CL CONT EXTERNAL RESIDENTIAL,130280720,26/11/2015,813099,-344.78,229 MITCHAM LANE LTD,SP0000884
WANDSWORTH COUNCIL,ASC,SOCIAL SERVICES,CUSTOMER & CLIENT RECPTS - EXT,Revenue,CL CONT EXTERNAL RESIDENTIAL,130280720,16/11/2015,802362,-429.22,ACH OF LONDON LLP,SP0001688
WANDSWORTH COUNCIL,ASC,SOCIAL SERVICES,CUSTOMER & CLIENT RECPTS - EXT,Revenue,CL CONT EXTERNAL RESIDENTIAL,130280720,19/11/2015,806035,-344.78,AIMS CARE PARTNERSHIP,SP0000561
WANDSWORTH COUNCIL,ASC,SOCIAL SERVICES,CUSTOMER & CLIENT RECPTS - EXT,Revenue,CL CONT EXTERNAL RESIDENTIAL,130280720,27/11/2015,813783,-356.28,AIMS CARE PARTNERSHIP,SP0000561
WANDSWORTH COUNCIL,ASC,SOCIAL SERVICES,CUSTOMER & CLIENT RECPTS - EXT,Revenue,CL CONT EXTERNAL RESIDENTIAL,130280720,04/11/2015,791500,-287.32,ALLIED CARE (MHS) LTD,SP0001069
WANDSWORTH COUNCIL,ASC,SOCIAL SERVICES,CUSTOMER & CLIENT RECPTS - EXT,Revenue,CL CONT EXTERNAL RESIDENTIAL,130280720,04/11/2015,791501,-266.62,ALLIED CARE (MHS) LTD,SP0001069
WANDSWORTH COUNCIL,ASC,SOCIAL SERVICES,CUSTOMER & CLIENT RECPTS - EXT,Revenue,CL CONT EXTERNAL RESIDENTIAL,130280720,12/11/2015,800329,-344.78,ASHCROFT CARE SERVICES,SP0000872
WANDSWORTH COUNCIL,ASC,SOCIAL SERVICES,CUSTOMER & CLIENT RECPTS - EXT,Revenue,CL CONT EXTERNAL RESIDENTIAL,130280720,13/11/2015,801566,-356.28,BEECH LODGE,SP0000807
WANDSWORTH COUNCIL,ASC,SOCIAL SERVICES,CUSTOMER & CLIENT RECPTS - EXT,Revenue,CL CONT EXTERNAL RESIDENTIAL,130280720,13/11/2015,801567,-356.28,BEECH LODGE,SP0000807
WANDSWORTH COUNCIL,ASC,SOCIAL SERVICES,CUSTOMER & CLIENT RECPTS - EXT,Revenue,CL CONT EXTERNAL RESIDENTIAL,130280720,13/11/2015,801568,-356.28,BEECH LODGE,SP0000807
WANDSWORTH COUNCIL,ASC,SOCIAL SERVICES,CUSTOMER & CLIENT RECPTS - EXT,Revenue,CL CONT EXTERNAL RESIDENTIAL,130280720,03/11/2015,790061,-356.28,BIRCC,SP0000584
WANDSWORTH COUNCIL,ASC,SOCIAL SERVICES,CUSTOMER & CLIENT RECPTS - EXT,Revenue,CL CONT EXTERNAL RESIDENTIAL,130280720,03/11/2015,790064,-353.62,BIRCC,SP0000584
WANDSWORTH COUNCIL,ASC,SOCIAL SERVICES,CUSTOMER & CLIENT RECPTS - EXT,Revenue,CL CONT EXTERNAL RESIDENTIAL,130280720,24/11/2015,810095,-344.78,BIRCC,SP0000584
WANDSWORTH COUNCIL,ASC,SOCIAL SERVICES,CUSTOMER & CLIENT RECPTS - EXT,Revenue,CL CONT EXTERNAL RESIDENTIAL,130280720,19/11/2015,806071,-638.48,CAMERON LODGE LIMITED,SP0000271
WANDSWORTH COUNCIL,ASC,SOCIAL SERVICES,CUSTOMER & CLIENT RECPTS - EXT,Revenue,CL CONT EXTERNAL RESIDENTIAL,130280720,23/11/2015,808733,-541.28,CARE UNLIMITED GROUP LTD,SP0001575
WANDSWORTH COUNCIL,ASC,SOCIAL SERVICES,CUSTOMER & CLIENT RECPTS - EXT,Revenue,CL CONT EXTERNAL RESIDENTIAL,130280720,27/11/2015,813749,-344.78,CENTRUST CARE HOMES LTD,SP0000141
WANDSWORTH COUNCIL,ASC,SOCIAL SERVICES,CUSTOMER & CLIENT RECPTS - EXT,Revenue,CL CONT EXTERNAL RESIDENTIAL,130280720,04/11/2015,791495,-400.60,CHATSWORTH CARE,SP0000831
WANDSWORTH COUNCIL,ASC,SOCIAL SERVICES,CUSTOMER & CLIENT RECPTS - EXT,Revenue,CL CONT EXTERNAL RESIDENTIAL,130280720,13/11/2015,801569,-356.28,CHERRY LODGE,SP0000965
WANDSWORTH COUNCIL,ASC,SOCIAL SERVICES,CUSTOMER & CLIENT RECPTS - EXT,Revenue,CL CONT EXTERNAL RESIDENTIAL,130280720,04/11/2015,791492,-577.48,CHOICE CARE GROUP,SP0001367
WANDSWORTH COUNCIL,ASC,SOCIAL SERVICES,CUSTOMER & CLIENT RECPTS - EXT,Revenue,CL CONT EXTERNAL RESIDENTIAL,130280720,24/11/2015,810094,"-1,323.23",CHOICE CARE GROUP,SP0001367
WANDSWORTH COUNCIL,ASC,SOCIAL SERVICES,CUSTOMER & CLIENT RECPTS - EXT,Revenue,CL CONT EXTERNAL RESIDENTIAL,130280720,26/11/2015,813069,-577.48,CHOICE CARE GROUP,SP0001367
WANDSWORTH COUNCIL,ASC,SOCIAL SERVICES,CUSTOMER & CLIENT RECPTS - EXT,Revenue,CL CONT EXTERNAL RESIDENTIAL,130280720,13/11/2015,801554,-343.80,CMG HOMES LTD,SP0000075
WANDSWORTH COUNCIL,ASC,SOCIAL SERVICES,CUSTOMER & CLIENT RECPTS - EXT,Revenue,CL CONT EXTERNAL RESIDENTIAL,130280720,13/11/2015,801555,-343.80,CMG HOMES LTD,SP0000075
WANDSWORTH COUNCIL,ASC,SOCIAL SERVICES,CUSTOMER & CLIENT RECPTS - EXT,Revenue,CL CONT EXTERNAL RESIDENTIAL,130280720,26/11/2015,813083,-400.60,CMG HOMES LTD,SP0000075
WANDSWORTH COUNCIL,ASC,SOCIAL SERVICES,CUSTOMER & CLIENT RECPTS - EXT,Revenue,CL CONT EXTERNAL RESIDENTIAL,130280720,26/11/2015,813085,-343.80,CMG HOMES LTD,SP0000075
WANDSWORTH COUNCIL,ASC,SOCIAL SERVICES,CUSTOMER & CLIENT RECPTS - EXT,Revenue,CL CONT EXTERNAL RESIDENTIAL,130280720,26/11/2015,813086,-400.60,CMG HOMES LTD,SP0000075
WANDSWORTH COUNCIL,ASC,SOCIAL SERVICES,CUSTOMER & CLIENT RECPTS - EXT,Revenue,CL CONT EXTERNAL RESIDENTIAL,130280720,26/11/2015,813087,-132.00,CMG HOMES LTD,SP0000075
WANDSWORTH COUNCIL,ASC,SOCIAL SERVICES,CUSTOMER & CLIENT RECPTS - EXT,Revenue,CL CONT EXTERNAL RESIDENTIAL,130280720,26/11/2015,813088,-321.80,CMG HOMES LTD,SP0000075
WANDSWORTH COUNCIL,ASC,SOCIAL SERVICES,CUSTOMER & CLIENT RECPTS - EXT,Revenue,CL CONT EXTERNAL RESIDENTIAL,130280720,26/11/2015,813089,-321.80,CMG HOMES LTD,SP0000075
WANDSWORTH COUNCIL,ASC,SOCIAL SERVICES,CUSTOMER & CLIENT RECPTS - EXT,Revenue,CL CONT EXTERNAL RESIDENTIAL,130280720,26/11/2015,813090,-505.20,CMG HOMES LTD,SP0000075
WANDSWORTH COUNCIL,ASC,SOCIAL SERVICES,CUSTOMER & CLIENT RECPTS - EXT,Revenue,CL CONT EXTERNAL RESIDENTIAL,130280720,26/11/2015,813091,-321.80,CMG HOMES LTD,SP0000075
WANDSWORTH COUNCIL,ASC,SOCIAL SERVICES,CUSTOMER & CLIENT RECPTS - EXT,Revenue,CL CONT EXTERNAL RESIDENTIAL,130280720,06/11/2015,795235,-68.95,COUNTRY CARE,SP0000090
WANDSWORTH COUNCIL,ASC,SOCIAL SERVICES,CUSTOMER & CLIENT RECPTS - EXT,Revenue,CL CONT EXTERNAL RESIDENTIAL,130280720,30/11/2015,814505,-149.41,COUNTRY CARE,SP0000090
WANDSWORTH COUNCIL,ASC,SOCIAL SERVICES,CUSTOMER & CLIENT RECPTS - EXT,Revenue,CL CONT EXTERNAL RESIDENTIAL,130280720,20/11/2015,806967,-321.80,CRAEGMOOR FACILITIES CO LTD,SP0000306
WANDSWORTH COUNCIL,ASC,SOCIAL SERVICES,CUSTOMER & CLIENT RECPTS - EXT,Revenue,CL CONT EXTERNAL RESIDENTIAL,130280720,12/11/2015,800334,-308.14,CRAEGMOOR OLD RECTORY BREDE PRIORY,SP0001621
WANDSWORTH COUNCIL,ASC,SOCIAL SERVICES,CUSTOMER & CLIENT RECPTS - EXT,Revenue,CL CONT EXTERNAL RESIDENTIAL,130280720,06/11/2015,795246,-321.80,DOLPHIN HOMES LTD,SP0000331
